account_party,address,code,date,document_number,expense_code_name,expense_code_name_short,id,party_cell,party_cell_code,party_cell_geoobject,purpose,source_bank_account_number,source_bank_account_type,sum,target_legal_personality,target_legal_personality_code,target_type
РПЛ,"Київ, вулиця Миколи Лєскова, 9",70,2019-12-28,bn,Банківські послуги,Інші витрати,362339,Центральний офіс,37279703,Україна,Комісія за ведення поточних рахунків клієнта,26006580179,current,74.00,"АТ ""Райффайзен банк Аваль""",14305909,юридична особа
РПЛ,"Київ, вулиця Миколи Лєскова, 9",70,2019-12-28,bn,Банківські послуги,Інші витрати,362338,Центральний офіс,37279703,Україна,Комісія за ведення поточних рахунків клієнта,26006580179,current,250.00,"АТ ""Райффайзен банк Аваль""",14305909,юридична особа
РПЛ,"Київ, вулиця Миколи Лєскова, 9",70,2019-12-28,bn_1,Банківські послуги,Інші витрати,362337,Центральний офіс,37279703,Україна,Комісія за ведення поточних рахунків клієнта,26006580179,current,6.00,"АТ ""Райффайзен банк Аваль""",14305909,юридична особа
РПЛ,"Київ, вулиця Миколи Лєскова, 9",70,2019-12-28,bn,Банківські послуги,Інші витрати,362336,Центральний офіс,37279703,Україна,Комісія за ведення поточних рахунків клієнта,26006580179,current,6.00,"АТ ""Райффайзен банк Аваль""",14305909,юридична особа
РПЛ,"Київ, вулиця Протасів Яр, 8",62,2019-12-26,1766,Сплата ЄСВ,Податкові платежі,361863,Центральний офіс,37279703,Україна,Відшкодування витрат за користування електромережами за грудень,26009580176,state,4000.00,"ТОВ ""Житло-Сервіс""",30167045,юридична особа
РПЛ,"Київ, вулиця Протасів Яр, 8",62,2019-12-26,1760,Сплата ЄСВ,Податкові платежі,361862,Центральний офіс,37279703,Україна,Відшкодування витрат за користування електромережами за листопад,26009580176,state,4088.59,"ТОВ ""Житло-Сервіс""",30167045,юридична особа
РПЛ,"Київ, вулиця Протасів Яр, 8",63,2019-12-26,1764,Податок на доходи,Податкові платежі,361754,Центральний офіс,37279703,Україна,Використання витрат за теплопостачання за грудень,26009580176,state,1640.90,"ТОВ ""Житло-Сервіс""",30167045,юридична особа
РПЛ,"Київ, вулиця Антоновича, 103",76,2019-12-26,1762,Послуги зв’язку,Послуги зв’язку,358786,Центральний офіс,37279703,Україна,Авансовий платіж за телекомунікаційні послуги у січні 2020р.,26009580176,state,1700.00,"ТОВ НВФ ""ВОЛЗ""",24251847,юридична особа
РПЛ,"Івано-Франківська область, Івано-Франківськ, вулиця Галицька, 130",79,2019-12-26,1765,"Оренда будинків і приміщень та експлуатаційні витрати (прибирання, страхування орендованих будинків, охорона, сигналізація, ремонт, вивіз сміття, тощо)",Оренда нерухомості,358695,Центральний офіс,37279703,Україна,Орендна плата за грудень,26009580176,state,1500.00,"ПП ""Фармацевтична компанія ""Здорова родина",34078368,юридична особа
РПЛ,"Київ, вулиця Протасів Яр, 8",79,2019-12-26,1761,"Оренда будинків і приміщень та експлуатаційні витрати (прибирання, страхування орендованих будинків, охорона, сигналізація, ремонт, вивіз сміття, тощо)",Оренда нерухомості,358694,Центральний офіс,37279703,Україна,За обслуговування та утримання будинку за листопад,26009580176,state,1113.25,"ТОВ ""Житло-Сервіс""",30167045,юридична особа
РПЛ,"Чернівецька область, Глибоцький район, Молодія, вулиця Головна, 72",79,2019-12-26,1759,"Оренда будинків і приміщень та експлуатаційні витрати (прибирання, страхування орендованих будинків, охорона, сигналізація, ремонт, вивіз сміття, тощо)",Оренда нерухомості,358693,Центральний офіс,37279703,Україна,За оренду приміщення у листопаді,26009580176,state,210.04,Центральна районна комунальна аптека №22,01980688,юридична особа
РПЛ,"Київ, вулиця Протасів Яр, 8",79,2019-12-26,1763,"Оренда будинків і приміщень та експлуатаційні витрати (прибирання, страхування орендованих будинків, охорона, сигналізація, ремонт, вивіз сміття, тощо)",Оренда нерухомості,358692,Центральний офіс,37279703,Україна,За обслуговування та утримання будинку за грудень,26009580176,state,1113.25,"ТОВ ""Житло-Сервіс""",30167045,юридична особа
РПЛ,"Київ, вулиця Миколи Лєскова, 9",70,2019-12-24,1757,Банківські послуги,Інші витрати,362357,Центральний офіс,37279703,Україна,Комісія банку за зарахування коштів на СКР працівників,26009580176,state,180.34,"Київська філія АТ ""Райффайзен банк Аваль""",23494105,юридична особа
РПЛ,"Київ, вулиця Леоніда Первомайського, 9А",61,2019-12-24,1755,Військовий збір,Податкові платежі,361987,Центральний офіс,37279703,Україна,Військовий збір нарахований на доходи громадян,26009580176,state,2704.57,УДКСУ у Шевченківському районі м. Києва,37995466,юридична особа
РПЛ,"Київ, вулиця Миколи Лєскова, 4",61,2019-12-24,1752,Військовий збір,Податкові платежі,361986,Центральний офіс,37279703,Україна,Єдиний соціальний внесок нарахований на доходи громадян,26009580176,state,11829.79,ГУ ДФС у м. Києві,39439980,юридична особа
РПЛ,"Київ, вулиця Миколи Лєскова, 4",62,2019-12-24,1754,Сплата ЄСВ,Податкові платежі,361861,Центральний офіс,37279703,Україна,Єдиний соціальний внесок нарахований на доходи громадян-допомога по тимчасовій непрацездатності,26009580176,state,4610.80,ГУ ДФС у м. Києві,39439980,юридична особа
РПЛ,"Київ, вулиця Леоніда Первомайського, 9А",63,2019-12-24,1751,Податок на доходи,Податкові платежі,361753,Центральний офіс,37279703,Україна,Податок на доходи фізичних осіб ,26009580176,state,21020.43,УДКСУ у Печерському районі м. Києва,38004897,юридична особа
РПЛ,"Київ, вулиця Леоніда Первомайського, 9А",63,2019-12-24,1750,Податок на доходи,Податкові платежі,361752,Центральний офіс,37279703,Україна,"Податок на доходи фізичних осіб, оренда автомобіля ",26009580176,state,1800.00,УДКСУ у Печерському районі м. Києва,38004897,юридична особа
РПЛ,"Чернігівська область, Чернігів",84,2019-12-24,1758,"Заробітна плата, премії","Заробітна плата, лікарняні, вагітності, відрядження, компенсації",361492,Центральний офіс,37279703,Україна,Заробітна плата за 2 половину грудня,26009580176,state,10628.87,Амельченко Василь Васильович,,фізична особа
РПЛ,"Чернігівська область, Чернігів",84,2019-12-24,1756,"Заробітна плата, премії","Заробітна плата, лікарняні, вагітності, відрядження, компенсації",361491,Центральний офіс,37279703,Україна,Заробітна плата за 2 половину грудня,26009580176,state,9468.29,Луговець Ольга Олександрівна,,фізична особа
РПЛ,"Київська обл., Васильків",84,2019-12-24,1756,"Заробітна плата, премії","Заробітна плата, лікарняні, вагітності, відрядження, компенсації",361490,Центральний офіс,37279703,Україна,Заробітна плата за 2 половину грудня,26009580176,state,27786.98,Падурець Людмила Володимирівна,,фізична особа
РПЛ,"Київ, вулиця Вишгородська",84,2019-12-24,1756,"Заробітна плата, премії","Заробітна плата, лікарняні, вагітності, відрядження, компенсації",361489,Центральний офіс,37279703,Україна,Заробітна плата за 2 половину грудня,26009580176,state,23468.34,Євтушенко Наталія Федорівна,,фізична особа
РПЛ,"Чернігівська область, Сновський район, Сновськ",84,2019-12-24,1756,"Заробітна плата, премії","Заробітна плата, лікарняні, вагітності, відрядження, компенсації",361488,Центральний офіс,37279703,Україна,Заробітна плата за 2 половину грудня,26009580176,state,17547.27,Данильченко Ніна Василівна,,фізична особа
РПЛ,"Київ, вулиця Вишгородська",84,2019-12-24,1756,"Заробітна плата, премії","Заробітна плата, лікарняні, вагітності, відрядження, компенсації",361487,Центральний офіс,37279703,Україна,Заробітна плата за 2 половину грудня,26009580176,state,8217.44,Відмиш Євген Аркадійович,,фізична особа
РПЛ,"Київ, вулиця Вишгородська",84,2019-12-24,1756,"Заробітна плата, премії","Заробітна плата, лікарняні, вагітності, відрядження, компенсації",361486,Центральний офіс,37279703,Україна,Заробітна плата за 2 половину грудня,26009580176,state,3682.67,Василенко Ніна Дмитрівна,,фізична особа
РПЛ,"Вінницька область, Вінниця, вулиця Академіка Янгеля, 45",84,2019-12-23,1749,"Заробітна плата, премії","Заробітна плата, лікарняні, вагітності, відрядження, компенсації",361435,Центральний офіс,37279703,Україна,Вода питна,26006580179,current,225.00,"ТОВ ""Еко-сфера""",32320552,юридична особа
РПЛ,"Київ, вулиця Миколи Лєскова, 9",70,2019-12-18,1748,Банківські послуги,Інші витрати,362356,Центральний офіс,37279703,Україна,Комісія банку за зарахування коштів на СКР працівників,26009580176,state,11.73,"Київська філія АТ ""Райффайзен банк Аваль""",23494105,юридична особа
РПЛ,"Київ, вулиця Леоніда Первомайського, 9А",61,2019-12-18,1744,Військовий збір,Податкові платежі,361985,Центральний офіс,37279703,Україна,Військовий збір нарахований на доходи громадян,26009580176,state,110.00,УДКСУ у Шевченківському районі м. Києва,37995466,юридична особа
РПЛ,"Київ, вулиця Миколи Лєскова, 4",62,2019-12-18,1746,Сплата ЄСВ,Податкові платежі,361860,Центральний офіс,37279703,Україна,Єдиний соціальний внесок нарахований на доходи громадян,26009580176,state,1603.00,ГУ ДФС у м. Києві,39439980,юридична особа
РПЛ,"Київ, вулиця Леоніда Первомайського, 9А",63,2019-12-18,1745,Податок на доходи,Податкові платежі,361751,Центральний офіс,37279703,Україна,Податок на доходи фізичних осіб ,26009580176,state,1312.00,УДКСУ у Печерському районі м. Києва,38004897,юридична особа
РПЛ,"Чернігівська область, Чернігів",84,2019-12-18,1747,"Заробітна плата, премії","Заробітна плата, лікарняні, вагітності, відрядження, компенсації",361485,Центральний офіс,37279703,Україна,Заробітна плата за 1 половину грудня,26009580176,state,5864.99,Луговець Ольга Олександрівна,,фізична особа
РПЛ,"Київ, вулиця Миколи Лєскова, 9",70,2019-12-17,1743,Банківські послуги,Інші витрати,362355,Центральний офіс,37279703,Україна,Комісія банку за зарахування коштів на СКР працівників,26009580176,state,45.69,"Київська філія АТ ""Райффайзен банк Аваль""",23494105,юридична особа
РПЛ,"Київ, вулиця Леоніда Первомайського, 9А",61,2019-12-17,1740,Військовий збір,Податкові платежі,361984,Центральний офіс,37279703,Україна,Військовий збір нарахований на доходи громадян,26009580176,state,555.00,УДКСУ у Шевченківському районі м. Києва,37995466,юридична особа
РПЛ,"Київ, вулиця Миколи Лєскова, 4",62,2019-12-17,1738,Сплата ЄСВ,Податкові платежі,361859,Центральний офіс,37279703,Україна,Єдиний соціальний внесок нарахований на доходи громадян,26009580176,state,8130.00,ГУ ДФС у м. Києві,39439980,юридична особа
РПЛ,"Київ, вулиця Леоніда Первомайського, 9А",63,2019-12-17,1739,Податок на доходи,Податкові платежі,361750,Центральний офіс,37279703,Україна,Податок на доходи фізичних осіб ,26009580176,state,6652.00,УДКСУ у Печерському районі м. Києва,38004897,юридична особа
РПЛ,"Київська обл., Васильків",84,2019-12-17,1742,"Заробітна плата, премії","Заробітна плата, лікарняні, вагітності, відрядження, компенсації",361484,Центральний офіс,37279703,Україна,Заробітна плата за 1 половину грудня,26009580176,state,5864.99,Падурець Людмила Володимирівна,,фізична особа
РПЛ,"Київ, вулиця Вишгородська",84,2019-12-17,1742,"Заробітна плата, премії","Заробітна плата, лікарняні, вагітності, відрядження, компенсації",361483,Центральний офіс,37279703,Україна,Заробітна плата за 1 половину грудня,26009580176,state,5864.99,Євтушенко Наталія Федорівна,,фізична особа
РПЛ,"Чернігівська область, Сновський район, Сновськ",84,2019-12-17,1742,"Заробітна плата, премії","Заробітна плата, лікарняні, вагітності, відрядження, компенсації",361482,Центральний офіс,37279703,Україна,Заробітна плата за 1 половину грудня,26009580176,state,3258.34,Данильченко Ніна Василівна,,фізична особа
РПЛ,"Київ, вулиця Вишгородська",84,2019-12-17,1742,"Заробітна плата, премії","Заробітна плата, лікарняні, вагітності, відрядження, компенсації",361481,Центральний офіс,37279703,Україна,Заробітна плата за 1 половину грудня,26009580176,state,6516.67,Відмиш Євген Аркадійович,,фізична особа
РПЛ,Київ,84,2019-12-17,1742,"Заробітна плата, премії","Заробітна плата, лікарняні, вагітності, відрядження, компенсації",361480,Центральний офіс,37279703,Україна,Заробітна плата за 1 половину грудня,26009580176,state,1341.67,Василенко Ніна Дмитрівна,,фізична особа
РПЛ,"Чернігівська область, Чернігів",84,2019-12-17,1741,"Заробітна плата, премії","Заробітна плата, лікарняні, вагітності, відрядження, компенсації",361479,Центральний офіс,37279703,Україна,Заробітна плата за 1 половину грудня,26009580176,state,6900.00,Амельченко Василь Васильович,,фізична особа
РПЛ,"Київ, вулиця Миколи Лєскова, 9",70,2019-12-09,1736,Банківські послуги,Інші витрати,362335,Центральний офіс,37279703,Україна,Комісія банку за зарахування коштів на СКР працівників,26006580179,current,6.43,"Київська філія АТ ""Райффайзен банк Аваль""",23494105,юридична особа
РПЛ,"Київ, вулиця Миколи Лєскова, 4",61,2019-12-09,1734,Військовий збір,Податкові платежі,361983,Центральний офіс,37279703,Україна,Єдиний соціальний внесок нарахований на доходи громадян,26009580176,state,879.00,ГУ ДФС у м. Києві,39439980,юридична особа
РПЛ,"Київ, вулиця Леоніда Первомайського, 9А",61,2019-12-09,1732,Військовий збір,Податкові платежі,361968,Центральний офіс,37279703,Україна,Військовий збір нарахований на доходи громадян,26006580179,current,59.89,УДКСУ у Шевченківському районі м. Києва,37995466,юридична особа
РПЛ,"Київ, вулиця Леоніда Первомайського, 9А",63,2019-12-09,1733,Податок на доходи,Податкові платежі,361733,Центральний офіс,37279703,Україна,Податок на доходи фізичних осіб ,26006580179,current,712.20,УДКСУ у Печерському районі м. Києва,38004897,юридична особа
РПЛ,"Київ, вулиця Антоновича, 103",76,2019-12-09,1737,Послуги зв’язку,Послуги зв’язку,358785,Центральний офіс,37279703,Україна,Телекомунікаційні послуги за грудень,26009580176,state,1700.00,"ТОВ НВФ ""ВОЛЗ""",24251847,юридична особа
РПЛ,"Київ, вулиця Вишгородська",72,2019-12-09,1735,"Придбання, ремонт офісної техніки та програмного забезпечення (Бухгалтерські програми, Ліга.закон, домени)",Придбання офісної техніки та програмного забезпечення,358743,Центральний офіс,37279703,Україна,Допомога по тимчасовій  непрацездатності за жовтень,26006580179,current,3213.88,Самсонова Аліна Вікторівна,,фізична особа
РПЛ,"Київ, вулиця Зодчих, 70, 66",70,2019-12-05,1730,Банківські послуги,Інші витрати,362354,Центральний офіс,37279703,Україна,Надання в строкове платне користування Віртуальної інфраструктури за грудень,26009580176,state,9152.10,Мельник Володимир Миколайович,2915401614,фізична особа
РПЛ,"Київ, вулиця Зодчих, 70, 66",63,2019-12-05,1731,Податок на доходи,Податкові платежі,361749,Центральний офіс,37279703,Україна,Надання в строкове платне користування Віртуальної інфраструктури за грудень,26009580176,state,1084.50,Мельник Володимир Миколайович,2915401614,фізична особа
РПЛ,"Київ, вулиця Миколи Лєскова, 9",70,2019-12-04,1728,Банківські послуги,Інші витрати,362353,Центральний офіс,37279703,Україна,Комісія банку за зарахування коштів на СКР працівників,26009580176,state,59.63,"Київська філія АТ ""Райффайзен банк Аваль""",23494105,юридична особа
РПЛ,"Київ, вулиця Леоніда Первомайського, 9А",61,2019-12-04,1725,Військовий збір,Податкові платежі,361982,Центральний офіс,37279703,Україна,Військовий збір нарахований на доходи громадян,26009580176,state,687.00,УДКСУ у Шевченківському районі м. Києва,37995466,юридична особа
РПЛ,"Київ, вулиця Миколи Лєскова, 4",62,2019-12-04,1726,Сплата ЄСВ,Податкові платежі,361858,Центральний офіс,37279703,Україна,Єдиний соціальний внесок нарахований на доходи громадян,26009580176,state,10068.00,ГУ ДФС у м. Києві,39439980,юридична особа
РПЛ,"Київ, вулиця Леоніда Первомайського, 9А",63,2019-12-04,1724,Податок на доходи,Податкові платежі,361748,Центральний офіс,37279703,Україна,Податок на доходи фізичних осіб ,26009580176,state,8237.00,УДКСУ у Печерському районі м. Києва,38004897,юридична особа
РПЛ,"Чернігівська область, Чернігів",84,2019-12-04,1729,"Заробітна плата, премії","Заробітна плата, лікарняні, вагітності, відрядження, компенсації",361478,Центральний офіс,37279703,Україна,Заробітна плата за 2 половину листопада,26009580176,state,7022.78,Амельченко Василь Васильович,,фізична особа
РПЛ,"Київська обл., Васильків",84,2019-12-04,1727,"Заробітна плата, премії","Заробітна плата, лікарняні, вагітності, відрядження, компенсації",361477,Центральний офіс,37279703,Україна,Заробітна плата за 2 половину листопада,26009580176,state,6231.74,Падурець Людмила Володимирівна,,фізична особа
РПЛ,"Чернігівська область, Чернігів, вулиця Івана Мазепи, 23",84,2019-12-04,1727,"Заробітна плата, премії","Заробітна плата, лікарняні, вагітності, відрядження, компенсації",361476,Центральний офіс,37279703,Україна,Заробітна плата за 2 половину листопада,26009580176,state,5987.77,Луговець Ольга Олександрівна,,фізична особа
РПЛ,"Київ, вулиця Вишгородська",84,2019-12-04,1727,"Заробітна плата, премії","Заробітна плата, лікарняні, вагітності, відрядження, компенсації",361475,Центральний офіс,37279703,Україна,Заробітна плата за 2 половину листопада,26009580176,state,6231.74,Євтушенко Наталія Федорівна,,фізична особа
РПЛ,"Чернігівська область, Сновський район, Сновськ",84,2019-12-04,1727,"Заробітна плата, премії","Заробітна плата, лікарняні, вагітності, відрядження, компенсації",361474,Центральний офіс,37279703,Україна,Заробітна плата за 2 половину листопада,26009580176,state,3258.34,Данильченко Ніна Василівна,,фізична особа
РПЛ,"Київ, вулиця Вишгородська",84,2019-12-04,1727,"Заробітна плата, премії","Заробітна плата, лікарняні, вагітності, відрядження, компенсації",361473,Центральний офіс,37279703,Україна,Заробітна плата за 2 половину листопада,26009580176,state,6639.45,Відмиш Євген Аркадійович,,фізична особа
РПЛ,Київ,84,2019-12-04,1727,"Заробітна плата, премії","Заробітна плата, лікарняні, вагітності, відрядження, компенсації",361472,Центральний офіс,37279703,Україна,Заробітна плата за 2 половину листопада,26009580176,state,1464.45,Василенко Ніна Дмитрівна,,фізична особа
РПЛ,"Дніпропетровська область, Дніпровський район, Підгородне, Центральна вулиця, 46",59,2019-12-02,1722,Грошова застава,Грошова застава,362437,Центральний офіс,37279703,Україна,"Грошова застава місцевої організації ""ПОЛІТИЧНА ПАРТІЯ ОЛЕГА ЛЯШКА"", яка висунула виборчий список кандидатів у депутати міської ради",26006580179,current,3286.00,Підгородненська міська виборча комісія,43354552,юридична особа
РПЛ,"Вінницька область, Вінниця, вулиця Академіка Янгеля, 45",62,2019-12-02,1695,Сплата ЄСВ,Податкові платежі,361851,Центральний офіс,37279703,Україна,Вода питна,26006580179,current,150.00,"ТОВ ""Еко-сфера""",32320552,юридична особа
РПЛ,"Київ, вулиця Миколи Лєскова, 9",70,2019-11-29,1721,Банківські послуги,Інші витрати,362352,Центральний офіс,37279703,Україна,Комісія банку за зарахування коштів на СКР працівників,26009580176,state,56.99,"Київська філія АТ ""Райффайзен банк Аваль""",23494105,юридична особа
РПЛ,"Київ, вулиця Миколи Лєскова, 9",70,2019-11-29,bn,Банківські послуги,Інші витрати,362351,Центральний офіс,37279703,Україна,Комісія за вих.перекази в нацвалюті (Клієнт-Банк),26009580176,state,60.00,"АТ ""Райффайзен банк Аваль""",14305909,юридична особа
РПЛ,"Київ, вулиця Миколи Лєскова, 9",70,2019-11-29,bn,Банківські послуги,Інші витрати,362350,Центральний офіс,37279703,Україна,Комісія за вих.перекази в нацвалюті (Клієнт-Банк),26009580176,state,6.00,"АТ ""Райффайзен банк Аваль""",14305909,юридична особа
РПЛ,"Київ, вулиця Миколи Лєскова, 9",70,2019-11-29,bn,Банківські послуги,Інші витрати,362334,Центральний офіс,37279703,Україна,Комісія за ведення поточних рахунків клієнта,26006580179,current,250.00,"АТ ""Райффайзен банк Аваль""",14305909,юридична особа
РПЛ,"Київ, вулиця Миколи Лєскова, 9",70,2019-11-29,bn,Банківські послуги,Інші витрати,362333,Центральний офіс,37279703,Україна,Комісія за вих.перекази в нацвалюті (Клієнт-Банк),26006580179,current,10.00,"АТ ""Райффайзен банк Аваль""",14305909,юридична особа
РПЛ,"Київ, вулиця Леоніда Первомайського, 9А",61,2019-11-29,1719,Військовий збір,Податкові платежі,361981,Центральний офіс,37279703,Україна,Військовий збір нарахований на доходи громадян,26009580176,state,531.00,УДКСУ у Шевченківському районі м. Києва,37995466,юридична особа
РПЛ,"Київ, вулиця Миколи Лєскова, 4",62,2019-11-29,1717,Сплата ЄСВ,Податкові платежі,361857,Центральний офіс,37279703,Україна,Єдиний соціальний внесок нарахований на доходи громадян,26009580176,state,7787.00,ГУ ДФС у м. Києві,39439980,юридична особа
РПЛ,"Київ, вулиця Леоніда Первомайського, 9А",63,2019-11-29,1718,Податок на доходи,Податкові платежі,361747,Центральний офіс,37279703,Україна,Податок на доходи фізичних осіб ,26009580176,state,6372.00,УДКСУ у Печерському районі м. Києва,38004897,юридична особа
РПЛ,Київ,84,2019-11-29,1720,"Заробітна плата, премії","Заробітна плата, лікарняні, вагітності, відрядження, компенсації",361471,Центральний офіс,37279703,Україна,Заробітна плата за 2 половину листопада,26009580176,state,12050.35,Поліщук Анна Валентинівна,,фізична особа
РПЛ,Київ,84,2019-11-29,1720,"Заробітна плата, премії","Заробітна плата, лікарняні, вагітності, відрядження, компенсації",361470,Центральний офіс,37279703,Україна,Заробітна плата за 2 половину листопада,26009580176,state,16442.49,Макарова Юлія Миколаївна,,фізична особа
РПЛ,"Івано-Франківська область, Івано-Франківськ, вулиця Галицька, 130",61,2019-11-28,1716,Військовий збір,Податкові платежі,361967,Центральний офіс,37279703,Україна,Орендна плата за жовтень,26006580179,current,1500.00,"ПП ""Фармацевтична компанія ""Здорова родина",34078368,юридична особа
РПЛ,"Івано-Франківська область, Івано-Франківськ, вулиця Галицька, 130",62,2019-11-28,1714,Сплата ЄСВ,Податкові платежі,361850,Центральний офіс,37279703,Україна,Орендна плата за листопад,26006580179,current,1500.00,"ПП ""Фармацевтична компанія ""Здорова родина",34078368,юридична особа
РПЛ,"Івано-Франківська область, Івано-Франківськ, вулиця Галицька, 130",79,2019-11-28,1715,"Оренда будинків і приміщень та експлуатаційні витрати (прибирання, страхування орендованих будинків, охорона, сигналізація, ремонт, вивіз сміття, тощо)",Оренда нерухомості,358677,Центральний офіс,37279703,Україна,"Вивіз сміття, відшкодування витрат за електроенергію",26006580179,current,36.15,"ПП ""Фармацевтична компанія ""Здорова родина",34078368,юридична особа
РПЛ,"Полтавська область, Зіньківський район, Зіньків, вулиця Воздвиженська, 67",59,2019-11-26,1713,Грошова застава,Грошова застава,362436,Центральний офіс,37279703,Україна,"Грошова застава місцевої організації ""ПОЛІТИЧНА ПАРТІЯ ОЛЕГА ЛЯШКА"", яка висунула виборчий список кандидатів у депутати міської ради",26006580179,current,1471.00,Зіньківська міська виборча комісія,33977134,юридична особа
РПЛ,"Київ, вулиця Антоновича, 103",76,2019-11-26,1712,Послуги зв’язку,Послуги зв’язку,358784,Центральний офіс,37279703,Україна,Телекомунікаційні послуги за листопад,26009580176,state,1700.00,"ТОВ НВФ ""ВОЛЗ""",24251847,юридична особа
РПЛ,"Київ, вулиця Миколи Лєскова, 9",70,2019-11-19,1710,Банківські послуги,Інші витрати,362349,Центральний офіс,37279703,Україна,Комісія банку за зарахування коштів на СКР працівників,26009580176,state,91.75,"Київська філія АТ ""Райффайзен банк Аваль""",23494105,юридична особа
РПЛ,"Київ, вулиця Леоніда Первомайського, 9А",61,2019-11-19,1708,Військовий збір,Податкові платежі,361980,Центральний офіс,37279703,Україна,Військовий збір нарахований на доходи громадян,26009580176,state,997.00,УДКСУ у Шевченківському районі м. Києва,37995466,юридична особа
РПЛ,"Київ, вулиця Леоніда Первомайського, 9А",63,2019-11-19,1706,Податок на доходи,Податкові платежі,361746,Центральний офіс,37279703,Україна,Податок на доходи фізичних осіб ,26009580176,state,11955.00,УДКСУ у Печерському районі м. Києва,38004897,юридична особа
РПЛ,"Чернігівська область, Чернігів",84,2019-11-19,1711,"Заробітна плата, премії","Заробітна плата, лікарняні, вагітності, відрядження, компенсації",361469,Центральний офіс,37279703,Україна,Заробітна плата за 1 половину листопада,26009580176,state,7590.00,Амельченко Василь Васильович,,фізична особа
РПЛ,Київ,84,2019-11-19,1709,"Заробітна плата, премії","Заробітна плата, лікарняні, вагітності, відрядження, компенсації",361468,Центральний офіс,37279703,Україна,Заробітна плата за 1 половину листопада,26009580176,state,7168.33,Поліщук Анна Валентинівна,,фізична особа
РПЛ,"Київська обл., Васильків",84,2019-11-19,1709,"Заробітна плата, премії","Заробітна плата, лікарняні, вагітності, відрядження, компенсації",361467,Центральний офіс,37279703,Україна,Заробітна плата за 1 половину листопада,26009580176,state,6451.51,Падурець Людмила Володимирівна,,фізична особа
РПЛ,Київ,84,2019-11-19,1709,"Заробітна плата, премії","Заробітна плата, лікарняні, вагітності, відрядження, компенсації",361466,Центральний офіс,37279703,Україна,Заробітна плата за 1 половину листопада,26009580176,state,6451.51,Макарова Юлія Миколаївна,,фізична особа
РПЛ,"Чернігівська область, Чернігів",84,2019-11-19,1709,"Заробітна плата, премії","Заробітна плата, лікарняні, вагітності, відрядження, компенсації",361465,Центральний офіс,37279703,Україна,Заробітна плата за 1 половину листопада,26009580176,state,6451.51,Луговець Ольга Олександрівна,,фізична особа
РПЛ,Київ,84,2019-11-19,1709,"Заробітна плата, премії","Заробітна плата, лікарняні, вагітності, відрядження, компенсації",361464,Центральний офіс,37279703,Україна,Заробітна плата за 1 половину листопада,26009580176,state,6451.51,Євтушенко Наталія Федорівна,,фізична особа
РПЛ,"Чернігівська область, Сновський район, Сновськ",84,2019-11-19,1709,"Заробітна плата, премії","Заробітна плата, лікарняні, вагітності, відрядження, компенсації",361463,Центральний офіс,37279703,Україна,Заробітна плата за 1 половину листопада,26009580176,state,3584.16,Данильченко Ніна Василівна,,фізична особа
РПЛ,"Київ, вулиця Вишгородська",84,2019-11-19,1709,"Заробітна плата, премії","Заробітна плата, лікарняні, вагітності, відрядження, компенсації",361462,Центральний офіс,37279703,Україна,Заробітна плата за 1 половину листопада,26009580176,state,7168.33,Відмиш Євген Аркадійович,,фізична особа
РПЛ,Київ,84,2019-11-19,1709,"Заробітна плата, премії","Заробітна плата, лікарняні, вагітності, відрядження, компенсації",361461,Центральний офіс,37279703,Україна,Заробітна плата за 1 половину листопада,26009580176,state,2146.67,Василенко Ніна Дмитрівна,,фізична особа
РПЛ,"Київ, вулиця Миколи Лєскова, 4",79,2019-11-19,1707,"Оренда будинків і приміщень та експлуатаційні витрати (прибирання, страхування орендованих будинків, охорона, сигналізація, ремонт, вивіз сміття, тощо)",Оренда нерухомості,358691,Центральний офіс,37279703,Україна,Єдиний соціальний внесок нарахований на доходи громадян,26009580176,state,14612.00,ГУ ДФС у м. Києві,39439980,юридична особа
РПЛ,"Київ, вулиця Миколи Лєскова, 9",70,2019-11-15,1705,Банківські послуги,Інші витрати,362348,Центральний офіс,37279703,Україна,Комісія банку за зарахування коштів на СКР працівників,26009580176,state,19.11,"Київська філія АТ ""Райффайзен банк Аваль""",23494105,юридична особа
РПЛ,"Київ, вулиця Миколи Лєскова, 4",61,2019-11-15,1703,Військовий збір,Податкові платежі,361979,Центральний офіс,37279703,Україна,Єдиний соціальний внесок нарахований на доходи громадян,26009580176,state,2620.00,ГУ ДФС у м. Києві,39439980,юридична особа
РПЛ,"Київ, вулиця Леоніда Первомайського, 9А",61,2019-11-15,1702,Військовий збір,Податкові платежі,361978,Центральний офіс,37279703,Україна,Військовий збір нарахований на доходи громадян,26009580176,state,179.00,УДКСУ у Шевченківському районі м. Києва,37995466,юридична особа
РПЛ,"Київ, вулиця Леоніда Первомайського, 9А",63,2019-11-15,1701,Податок на доходи,Податкові платежі,361745,Центральний офіс,37279703,Україна,Податок на доходи фізичних осіб ,26009580176,state,2137.00,УДКСУ у Печерському районі м. Києва,38004897,юридична особа
РПЛ,"Київ, вулиця Вишгородська",83,2019-11-15,1704,"Виплати працівникам (не зарплата): лікарняні, вагітності, відрядження, компенсації ","Заробітна плата, лікарняні, вагітності, відрядження, компенсації",361625,Центральний офіс,37279703,Україна,Відпускні за листопад,26009580176,state,9553.05,Карімов Осман Мусайович,,фізична особа
РПЛ,"Київ, вулиця Миколи Лєскова, 9",70,2019-11-13,1700,Банківські послуги,Інші витрати,362347,Центральний офіс,37279703,Україна,Комісія банку за зарахування коштів на СКР працівників,26009580176,state,19.17,"Київська філія АТ ""Райффайзен банк Аваль""",23494105,юридична особа
РПЛ,"Київ, вулиця Леоніда Первомайського, 9А",61,2019-11-13,1696,Військовий збір,Податкові платежі,361977,Центральний офіс,37279703,Україна,Військовий збір нарахований на доходи громадян,26009580176,state,179.00,УДКСУ у Шевченківському районі м. Києва,37995466,юридична особа
РПЛ,"Київ, вулиця Миколи Лєскова, 4",62,2019-11-13,1697,Сплата ЄСВ,Податкові платежі,361856,Центральний офіс,37279703,Україна,Єдиний соціальний внесок нарахований на доходи громадян,26009580176,state,2620.00,ГУ ДФС у м. Києві,39439980,юридична особа
РПЛ,"Київ, вулиця Леоніда Первомайського, 9А",63,2019-11-13,1698,Податок на доходи,Податкові платежі,361744,Центральний офіс,37279703,Україна,Податок на доходи фізичних осіб ,26009580176,state,2143.00,УДКСУ у Печерському районі м. Києва,38004897,юридична особа
РПЛ,"Київська обл., Біла Церква",83,2019-11-13,1699,"Виплати працівникам (не зарплата): лікарняні, вагітності, відрядження, компенсації ","Заробітна плата, лікарняні, вагітності, відрядження, компенсації",361624,Центральний офіс,37279703,Україна,Відпускні за листопад,26009580176,state,9583.37,Остапенко Сергій Анатолійович,,фізична особа
РПЛ,"Вінницька область, Вінниця, вулиця Академіка Янгеля, 45",69,2019-11-11,1695,Організація заходів та інші організаційні послуги,Організація заходів та інші організаційні послуги,362464,Центральний офіс,37279703,Україна,Вода питна,26006580179,current,150.00,"ТОВ ""Еко-сфера""",32320552,юридична особа
РПЛ,"Київ, вулиця Миколи Лєскова, 9",70,2019-11-11,1694,Банківські послуги,Інші витрати,362332,Центральний офіс,37279703,Україна,Комісія банку за зарахування коштів на СКР працівників,26006580179,current,1.60,"Київська філія АТ ""Райффайзен банк Аваль""",23494105,юридична особа
РПЛ,"Київ, вулиця Вишгородська",70,2019-11-11,1693,Банківські послуги,Інші витрати,362329,Центральний офіс,37279703,Україна,Допомога по тимчасовій  непрацездатності за жовтень,26006580179,current,801.87,Самсонова Аліна Вікторівна,,фізична особа
РПЛ,"Київ, вулиця Леоніда Первомайського, 9А",61,2019-11-11,1691,Військовий збір,Податкові платежі,361966,Центральний офіс,37279703,Україна,Військовий збір нарахований на доходи громадян,26006580179,current,14.97,УДКСУ у Шевченківському районі м. Києва,37995466,юридична особа
РПЛ,"Київ, вулиця Миколи Лєскова, 4",62,2019-11-11,1692,Сплата ЄСВ,Податкові платежі,361855,Центральний офіс,37279703,Україна,Єдиний соціальний внесок нарахований на доходи громадян,26009580176,state,220.00,ГУ ДФС у м. Києві,39439980,юридична особа
РПЛ,"Київ, вулиця Леоніда Первомайського, 9А",63,2019-11-11,1690,Податок на доходи,Податкові платежі,361732,Центральний офіс,37279703,Україна,Податок на доходи фізичних осіб ,26006580179,current,179.66,УДКСУ у Печерському районі м. Києва,38004897,юридична особа
РПЛ,"Київ, вулиця Миколи Лєскова, 4",43,2019-11-05,1682,Інші витрати,Інші витрати,362521,Центральний офіс,37279703,Україна,Єдиний соціальний внесок нарахований на доходи громадян,26009580176,state,16914.00,ГУ ДФС у м. Києві,39439980,юридична особа
РПЛ,"Київ, вулиця Миколи Лєскова, 9",70,2019-11-05,1686,Банківські послуги,Інші витрати,362346,Центральний офіс,37279703,Україна,Комісія банку за зарахування коштів на СКР працівників,26009580176,state,107.97,"Київська філія АТ ""Райффайзен банк Аваль""",23494105,юридична особа
РПЛ,"Київ, вулиця Леоніда Первомайського, 9А",61,2019-11-05,1683,Військовий збір,Податкові платежі,361976,Центральний офіс,37279703,Україна,Військовий збір нарахований на доходи громадян,26009580176,state,1154.00,УДКСУ у Шевченківському районі м. Києва,37995466,юридична особа
РПЛ,"Київ, вулиця Леоніда Первомайського, 9А",63,2019-11-05,1684,Податок на доходи,Податкові платежі,361743,Центральний офіс,37279703,Україна,Податок на доходи фізичних осіб ,26009580176,state,13839.00,УДКСУ у Печерському районі м. Києва,38004897,юридична особа
РПЛ,"Чернігівська область, Чернігів",84,2019-11-05,1687,"Заробітна плата, премії","Заробітна плата, лікарняні, вагітності, відрядження, компенсації",361460,Центральний офіс,37279703,Україна,Заробітна плата за 2 половину жовтня,26009580176,state,7903.64,Амельченко Василь Васильович,,фізична особа
РПЛ,"Київ, вулиця Вишгородська",84,2019-11-05,1685,"Заробітна плата, премії","Заробітна плата, лікарняні, вагітності, відрядження, компенсації",361459,Центральний офіс,37279703,Україна,Заробітна плата за 2 половину жовтня,26009580176,state,3073.64,Василенко Ніна Дмитрівна,,фізична особа
РПЛ,"Київ, вулиця Вишгородська",84,2019-11-05,1685,"Заробітна плата, премії","Заробітна плата, лікарняні, вагітності, відрядження, компенсації",361458,Центральний офіс,37279703,Україна,Заробітна плата за 2 половину жовтня,26009580176,state,3732.27,Відмиш Євген Аркадійович,,фізична особа
РПЛ,"Чернігівська область, Сновський район, Сновськ",84,2019-11-05,1685,"Заробітна плата, премії","Заробітна плата, лікарняні, вагітності, відрядження, компенсації",361457,Центральний офіс,37279703,Україна,Заробітна плата за 2 половину жовтня,26009580176,state,3732.27,Данильченко Ніна Василівна,,фізична особа
РПЛ,"Київ, вулиця Вишгородська",84,2019-11-05,1685,"Заробітна плата, премії","Заробітна плата, лікарняні, вагітності, відрядження, компенсації",361456,Центральний офіс,37279703,Україна,Заробітна плата за 2 половину жовтня,26009580176,state,7084.84,Євтушенко Наталія Федорівна,,фізична особа
РПЛ,"Київ, вулиця Вишгородська",84,2019-11-05,1685,"Заробітна плата, премії","Заробітна плата, лікарняні, вагітності, відрядження, компенсації",361455,Центральний офіс,37279703,Україна,Заробітна плата за 2 половину жовтня,26009580176,state,5225.19,Карімов Осман Мусайович,,фізична особа
РПЛ,"Чернігівська область, Чернігів",84,2019-11-05,1685,"Заробітна плата, премії","Заробітна плата, лікарняні, вагітності, відрядження, компенсації",361454,Центральний офіс,37279703,Україна,Заробітна плата за 2 половину жовтня,26009580176,state,6718.09,Луговець Ольга Олександрівна,,фізична особа
РПЛ,"Київ, вулиця Вишгородська",84,2019-11-05,1685,"Заробітна плата, премії","Заробітна плата, лікарняні, вагітності, відрядження, компенсації",361453,Центральний офіс,37279703,Україна,Заробітна плата за 2 половину жовтня,26009580176,state,6840.87,Макарова Юлія Миколаївна,,фізична особа
РПЛ,"Київська обл., Біла Церква",84,2019-11-05,1685,"Заробітна плата, премії","Заробітна плата, лікарняні, вагітності, відрядження, компенсації",361452,Центральний офіс,37279703,Україна,Заробітна плата за 2 половину жовтня,26009580176,state,2978.50,Остапенко Сергій Анатолійович,,фізична особа
РПЛ,"Київська обл., Васильків",84,2019-11-05,1685,"Заробітна плата, премії","Заробітна плата, лікарняні, вагітності, відрядження, компенсації",361451,Центральний офіс,37279703,Україна,Заробітна плата за 2 половину жовтня,26009580176,state,7084.84,Падурець Людмила Володимирівна,,фізична особа
РПЛ,Київ,84,2019-11-05,1685,"Заробітна плата, премії","Заробітна плата, лікарняні, вагітності, відрядження, компенсації",361450,Центральний офіс,37279703,Україна,Заробітна плата за 2 половину жовтня,26009580176,state,7514.64,Поліщук Анна Валентинівна,,фізична особа
РПЛ,"Чернівецька область, Глибоцький район, Молодія, вулиця Головна, 72",79,2019-11-05,1689,"Оренда будинків і приміщень та експлуатаційні витрати (прибирання, страхування орендованих будинків, охорона, сигналізація, ремонт, вивіз сміття, тощо)",Оренда нерухомості,358690,Центральний офіс,37279703,Україна,За оренду приміщення у жовтні,26009580176,state,208.57,Центральна районна комунальна аптека №22,01980688,юридична особа
РПЛ,"Чернівецька область, Глибоцький район, Молодія, вулиця Головна, 72",79,2019-11-05,1688,"Оренда будинків і приміщень та експлуатаційні витрати (прибирання, страхування орендованих будинків, охорона, сигналізація, ремонт, вивіз сміття, тощо)",Оренда нерухомості,358689,Центральний офіс,37279703,Україна,За оренду приміщення у вересні,26009580176,state,207.12,Центральна районна комунальна аптека №22,01980688,юридична особа
РПЛ,"Київ, вулиця Зодчих, 70, 66",43,2019-11-04,1681,Інші витрати,Інші витрати,362520,Центральний офіс,37279703,Україна,Надання в строкове платне користування Віртуальної інфраструктури за жовтень,26009580176,state,1135.01,Мельник Володимир Миколайович,2915401614,фізична особа
РПЛ,"Київ, вулиця Зодчих, 70, 66",63,2019-11-04,1680,Податок на доходи,Податкові платежі,361742,Центральний офіс,37279703,Україна,Надання в строкове платне користування Віртуальної інфраструктури за листопад,26009580176,state,9578.39,Мельник Володимир Миколайович,2915401614,фізична особа
РПЛ,"Київ, вулиця Протасів Яр, 8",79,2019-11-04,1678,"Оренда будинків і приміщень та експлуатаційні витрати (прибирання, страхування орендованих будинків, охорона, сигналізація, ремонт, вивіз сміття, тощо)",Оренда нерухомості,358688,Центральний офіс,37279703,Україна,Відшкодування витрат за користування ел.мережами за жовтень,26009580176,state,3396.31,"ТОВ ""Житло-Сервіс""",30167045,юридична особа
РПЛ,"Київ, вулиця Протасів Яр, 8",79,2019-11-04,1679,"Оренда будинків і приміщень та експлуатаційні витрати (прибирання, страхування орендованих будинків, охорона, сигналізація, ремонт, вивіз сміття, тощо)",Оренда нерухомості,358687,Центральний офіс,37279703,Україна,За обслуговування та утримання будинку за жовтень,26009580176,state,1113.25,"ТОВ ""Житло-Сервіс""",30167045,юридична особа
РПЛ,"Київ, вулиця Миколи Лєскова, 9",70,2019-10-31,bn,Банківські послуги,Інші витрати,362345,Центральний офіс,37279703,Україна,Комісія банку за зарахування коштів на СКР працівників,26009580176,state,84.00,"АТ ""Райффайзен банк Аваль""",14305909,юридична особа
РПЛ,"Київ, вулиця Миколи Лєскова, 9",70,2019-10-31,bn,Банківські послуги,Інші витрати,362331,Центральний офіс,37279703,Україна,Комісія за вих.перекази в нацвалюті (Клієнт-Банк),26006580179,current,4.00,"АТ ""Райффайзен банк Аваль""",14305909,юридична особа
РПЛ,"Київ, вулиця Миколи Лєскова, 9",70,2019-10-31,bn,Банківські послуги,Інші витрати,362330,Центральний офіс,37279703,Україна,Комісія за ведення поточних рахунків клієнта,26006580179,current,250.00,"АТ ""Райффайзен банк Аваль""",14305909,юридична особа
РПЛ,"Київ, вулиця Леоніда Первомайського, 9А",61,2019-10-31,1674,Військовий збір,Податкові платежі,361975,Центральний офіс,37279703,Україна,Військовий збір нарахований на доходи громадян,26009580176,state,90.00,УДКСУ у Шевченківському районі м. Києва,37995466,юридична особа
РПЛ,"Київ, вулиця Шолуденка, 33/19",62,2019-10-31,1676,Сплата ЄСВ,Податкові платежі,361854,Центральний офіс,37279703,Україна,Єдиний соціальний внесок нарахований на доходи громадян,26009580176,state,1320.00,ГУ ДФС у м. Києві,43141267,юридична особа
РПЛ,"Київ, вулиця Леоніда Первомайського, 9А",63,2019-10-31,1675,Податок на доходи,Податкові платежі,361741,Центральний офіс,37279703,Україна,Податок на доходи фізичних осіб ,26009580176,state,1080.00,УДКСУ у Печерському районі м. Києва,38004897,юридична особа
РПЛ,Київ,83,2019-10-31,1677,"Виплати працівникам (не зарплата): лікарняні, вагітності, відрядження, компенсації ","Заробітна плата, лікарняні, вагітності, відрядження, компенсації",361623,Центральний офіс,37279703,Україна,Відпускні за жовтень,26009580176,state,4830.00,Смола Сергій Сергійович,,фізична особа
РПЛ,"Київ, вулиця Миколи Лєскова, 9",70,2019-10-29,1673,Банківські послуги,Інші витрати,362344,Центральний офіс,37279703,Україна,Комісія банку за зарахування коштів на СКР працівників,26009580176,state,26.25,"Київська філія АТ ""Райффайзен банк Аваль""",23494105,юридична особа
РПЛ,"Київ, вулиця Леоніда Первомайського, 9А",61,2019-10-29,1669,Військовий збір,Податкові платежі,361974,Центральний офіс,37279703,Україна,Військовий збір нарахований на доходи громадян,26009580176,state,245.00,УДКСУ у Шевченківському районі м. Києва,37995466,юридична особа
РПЛ,"Київ, вулиця Леоніда Первомайського, 9А",63,2019-10-29,1670,Податок на доходи,Податкові платежі,361740,Центральний офіс,37279703,Україна,Податок на доходи фізичних осіб ,26009580176,state,2936.00,УДКСУ у Печерському районі м. Києва,38004897,юридична особа
РПЛ,Київ,83,2019-10-29,1672,"Виплати працівникам (не зарплата): лікарняні, вагітності, відрядження, компенсації ","Заробітна плата, лікарняні, вагітності, відрядження, компенсації",361622,Центральний офіс,37279703,Україна,Відпускні за жовтень,26009580176,state,13127.21,Нечипорук Олександр Григорович,,фізична особа
РПЛ,"Київ, вулиця Шолуденка, 33/19",79,2019-10-29,1671,"Оренда будинків і приміщень та експлуатаційні витрати (прибирання, страхування орендованих будинків, охорона, сигналізація, ремонт, вивіз сміття, тощо)",Оренда нерухомості,358686,Центральний офіс,37279703,Україна,Єдиний соціальний внесок нарахований на доходи громадян,26009580176,state,3588.00,ГУ ДФС у м. Києві,43141267,юридична особа
РПЛ,"Київ, вулиця Олекси Довбуша, 37",76,2019-10-25,1668,Послуги зв’язку,Послуги зв’язку,358783,Центральний офіс,37279703,Україна,"Навантажувально-розвантажувальні роботи, пакування-розпакування",26009580176,state,1920.00,"ТОВ ""Муравей-Україна""",37292640,юридична особа
РПЛ,"Київ, вулиця Миколи Лєскова, 9",70,2019-10-23,1667,Банківські послуги,Інші витрати,362343,Центральний офіс,37279703,Україна,Комісія банку за зарахування коштів на СКР працівників,26009580176,state,11.78,"Київська філія АТ ""Райффайзен банк Аваль""",23494105,юридична особа
РПЛ,"Київ, вулиця Миколи Лєскова, 9",70,2019-10-23,1665,Банківські послуги,Інші витрати,362342,Центральний офіс,37279703,Україна,Комісія банку за зарахування коштів на СКР працівників,26009580176,state,4.43,"Київська філія АТ ""Райффайзен банк Аваль""",23494105,юридична особа
РПЛ,"Київ, вулиця Леоніда Первомайського, 9А",61,2019-10-23,1663,Військовий збір,Податкові платежі,361973,Центральний офіс,37279703,Україна,Військовий збір нарахований на доходи громадян,26009580176,state,152.00,УДКСУ у Шевченківському районі м. Києва,37995466,юридична особа
РПЛ,"Київ, вулиця Леоніда Первомайського, 9А",63,2019-10-23,1662,Податок на доходи,Податкові платежі,361739,Центральний офіс,37279703,Україна,Податок на доходи фізичних осіб ,26009580176,state,1815.00,УДКСУ у Печерському районі м. Києва,38004897,юридична особа
РПЛ,"Київ, вулиця Шолуденка, 33/19",63,2019-10-23,1661,Податок на доходи,Податкові платежі,361738,Центральний офіс,37279703,Україна,Єдиний соціальний внесок нарахований на доходи громадян,26009580176,state,2215.00,ГУ ДФС у м. Києві,43141267,юридична особа
РПЛ,"Київ, вулиця Вишгородська",83,2019-10-23,1666,"Виплати працівникам (не зарплата): лікарняні, вагітності, відрядження, компенсації ","Заробітна плата, лікарняні, вагітності, відрядження, компенсації",361621,Центральний офіс,37279703,Україна,Відпускні за жовтень,26009580176,state,5889.50,Відмиш Євген Аркадійович,,фізична особа
РПЛ,"Київ, вулиця Вишгородська",83,2019-10-23,1664,"Виплати працівникам (не зарплата): лікарняні, вагітності, відрядження, компенсації ","Заробітна плата, лікарняні, вагітності, відрядження, компенсації",361620,Центральний офіс,37279703,Україна,Відпускні за жовтень,26009580176,state,2214.86,Відмиш Євген Аркадійович,,фізична особа
РПЛ,"Чернігівська область, Сновський район, Сновськ, вулиця Декабристів, 11",72,2019-10-23,1660,"Придбання, ремонт офісної техніки та програмного забезпечення (Бухгалтерські програми, Ліга.закон, домени)",Придбання офісної техніки та програмного забезпечення,358746,Центральний офіс,37279703,Україна,Папір А4 80 гр.,26009580176,state,220.00,Анищенко Т В,2488913769,фізична особа
РПЛ,"Київ, вулиця Протасів Яр, 8",84,2019-10-22,1658,"Заробітна плата, премії","Заробітна плата, лікарняні, вагітності, відрядження, компенсації",361500,Центральний офіс,37279703,Україна,Попередня оплата за опалення за листопад,26009580176,state,5441.07,"ТОВ ""Житло-Сервіс""",30167045,юридична особа
РПЛ,"Київ, вулиця Олекси Довбуша, 37",84,2019-10-22,1657,"Заробітна плата, премії","Заробітна плата, лікарняні, вагітності, відрядження, компенсації",361499,Центральний офіс,37279703,Україна,"Навантажувально-розвантажувальні роботи, пакування-розпакування",26009580176,state,2880.00,"ТОВ ""Муравей-Україна""",37292640,юридична особа
РПЛ,"Київ, вулиця Олекси Довбуша, 37",72,2019-10-22,1659,"Придбання, ремонт офісної техніки та програмного забезпечення (Бухгалтерські програми, Ліга.закон, домени)",Придбання офісної техніки та програмного забезпечення,358745,Центральний офіс,37279703,Україна,Послуги по зберіганню з 01.10.2019р. по 25.10.2019р,26009580176,state,8074.80,"ТОВ ""Муравей-Україна""",37292640,юридична особа
РПЛ,"Київ, вулиця Миколи Лєскова, 9",70,2019-10-18,1656,Банківські послуги,Інші витрати,362341,Центральний офіс,37279703,Україна,Комісія банку за зарахування коштів на СКР працівників,26009580176,state,99.56,"Київська філія АТ ""Райффайзен банк Аваль""",23494105,юридична особа
РПЛ,"Київ, вулиця Леоніда Первомайського, 9А",61,2019-10-18,1651,Військовий збір,Податкові платежі,361972,Центральний офіс,37279703,Україна,Військовий збір нарахований на доходи громадян,26009580176,state,1116.00,УДКСУ у Шевченківському районі м. Києва,37995466,юридична особа
РПЛ,"Київ, вулиця Шолуденка, 33/19",62,2019-10-18,1650,Сплата ЄСВ,Податкові платежі,361853,Центральний офіс,37279703,Україна,Єдиний соціальний внесок нарахований на доходи громадян,26009580176,state,16365.00,ГУ ДФС у м. Києві,43141267,юридична особа
РПЛ,"Київ, вулиця Леоніда Первомайського, 9А",63,2019-10-18,1652,Податок на доходи,Податкові платежі,361737,Центральний офіс,37279703,Україна,Податок на доходи фізичних осіб ,26009580176,state,13390.00,УДКСУ у Печерському районі м. Києва,38004897,юридична особа
РПЛ,"Чернігівська область, Чернігів",63,2019-10-18,1653,Податок на доходи,Податкові платежі,361735,Центральний офіс,37279703,Україна,Заробітна плата за 1 половину жовтня,26009580176,state,6586.36,Амельченко Василь Васильович,,фізична особа
РПЛ,Київ,84,2019-10-18,1655,"Заробітна плата, премії","Заробітна плата, лікарняні, вагітності, відрядження, компенсації",361449,Центральний офіс,37279703,Україна,Заробітна плата за 1 половину жовтня,26009580176,state,6220.45,Поліщук Анна Валентинівна,,фізична особа
РПЛ,"Київська обл., Васильків",84,2019-10-18,1655,"Заробітна плата, премії","Заробітна плата, лікарняні, вагітності, відрядження, компенсації",361448,Центральний офіс,37279703,Україна,Заробітна плата за 1 половину жовтня,26009580176,state,5598.41,Падурець Людмила Володимирівна,,фізична особа
РПЛ,"Київська обл., Біла Церква",84,2019-10-18,1655,"Заробітна плата, премії","Заробітна плата, лікарняні, вагітності, відрядження, компенсації",361447,Центральний офіс,37279703,Україна,Заробітна плата за 1 половину жовтня,26009580176,state,1811.25,Остапенко Сергій Анатолійович,,фізична особа
РПЛ,Київ,84,2019-10-18,1655,"Заробітна плата, премії","Заробітна плата, лікарняні, вагітності, відрядження, компенсації",361446,Центральний офіс,37279703,Україна,Заробітна плата за 1 половину жовтня,26009580176,state,6220.45,Нечипорук Олександр Григорович,,фізична особа
РПЛ,"Київ, вулиця Вишгородська",84,2019-10-18,1655,"Заробітна плата, премії","Заробітна плата, лікарняні, вагітності, відрядження, компенсації",361445,Центральний офіс,37279703,Україна,Заробітна плата за 1 половину жовтня,26009580176,state,5598.41,Макарова Юлія Миколаївна,,фізична особа
РПЛ,"Чернігівська область, Чернігів",84,2019-10-18,1655,"Заробітна плата, премії","Заробітна плата, лікарняні, вагітності, відрядження, компенсації",361444,Центральний офіс,37279703,Україна,Заробітна плата за 1 половину жовтня,26009580176,state,5598.41,Луговець Ольга Олександрівна,,фізична особа
РПЛ,"Київ, вулиця Вишгородська",84,2019-10-18,1655,"Заробітна плата, премії","Заробітна плата, лікарняні, вагітності, відрядження, компенсації",361443,Центральний офіс,37279703,Україна,Заробітна плата за 1 половину жовтня,26009580176,state,4354.31,Карімов Осман Мусайович,,фізична особа
РПЛ,Київ,84,2019-10-18,1655,"Заробітна плата, премії","Заробітна плата, лікарняні, вагітності, відрядження, компенсації",361442,Центральний офіс,37279703,Україна,Заробітна плата за 1 половину жовтня,26009580176,state,5598.41,Євтушенко Наталія Федорівна,,фізична особа
РПЛ,"Чернігівська область, Сновський район, Сновськ",84,2019-10-18,1655,"Заробітна плата, премії","Заробітна плата, лікарняні, вагітності, відрядження, компенсації",361441,Центральний офіс,37279703,Україна,Заробітна плата за 1 половину жовтня,26009580176,state,3110.23,Данильченко Ніна Василівна,,фізична особа
РПЛ,"Київ, вулиця Вишгородська",84,2019-10-18,1655,"Заробітна плата, премії","Заробітна плата, лікарняні, вагітності, відрядження, компенсації",361440,Центральний офіс,37279703,Україна,Заробітна плата за 1 половину жовтня,26009580176,state,3110.23,Відмиш Євген Аркадійович,,фізична особа
РПЛ,Київ,84,2019-10-18,1654,"Заробітна плата, премії","Заробітна плата, лікарняні, вагітності, відрядження, компенсації",361439,Центральний офіс,37279703,Україна,Заробітна плата за 1 половину жовтня,26009580176,state,3512.73,Смола Сергій Сергійович,,фізична особа
РПЛ,Київ,79,2019-10-18,1655,"Оренда будинків і приміщень та експлуатаційні витрати (прибирання, страхування орендованих будинків, охорона, сигналізація, ремонт, вивіз сміття, тощо)",Оренда нерухомості,358683,Центральний офіс,37279703,Україна,Заробітна плата за 1 половину жовтня,26009580176,state,2561.36,Василенко Ніна Дмитрівна,,фізична особа
РПЛ,"Вінницька область, Вінниця, вулиця Академіка Янгеля, 45",69,2019-10-17,1648,Організація заходів та інші організаційні послуги,Організація заходів та інші організаційні послуги,362463,Центральний офіс,37279703,Україна,Вода питна,26006580179,current,150.00,"ТОВ ""Еко-сфера""",32320552,юридична особа
РПЛ,"Івано-Франківська область, Івано-Франківськ, вулиця Галицька, 130",79,2019-10-17,1649,"Оренда будинків і приміщень та експлуатаційні витрати (прибирання, страхування орендованих будинків, охорона, сигналізація, ремонт, вивіз сміття, тощо)",Оренда нерухомості,358685,Центральний офіс,37279703,Україна,"Вивів сміття, відшкодування витрат за електроенергію",26009580176,state,61.10,"ПП ""Фармацевтична компанія ""Здорова родина",34078368,юридична особа
РПЛ,"Київ, вулиця Олекси Довбуша, 37",84,2019-10-11,1647,"Заробітна плата, премії","Заробітна плата, лікарняні, вагітності, відрядження, компенсації",361498,Центральний офіс,37279703,Україна,Послуги по зберіганню з 1.09.2019р. по 30.09.2019р,26009580176,state,9417.60,"ТОВ ""Муравей-Україна""",37292640,юридична особа
РПЛ,"Київ, вулиця Протасів Яр, 8",84,2019-10-11,1645,"Заробітна плата, премії","Заробітна плата, лікарняні, вагітності, відрядження, компенсації",361497,Центральний офіс,37279703,Україна,Відшкодування витрат за користування мережами за вересень,26009580176,state,2121.41,"ТОВ ""Житло-Сервіс""",30167045,юридична особа
РПЛ,"Київ, вулиця Протасів Яр, 8",79,2019-10-11,1646,"Оренда будинків і приміщень та експлуатаційні витрати (прибирання, страхування орендованих будинків, охорона, сигналізація, ремонт, вивіз сміття, тощо)",Оренда нерухомості,358684,Центральний офіс,37279703,Україна,"Ослуговування та утримання будинку Кловський узвіз, 7",26009580176,state,1113.25,"ТОВ ""Житло-Сервіс""",30167045,юридична особа
РПЛ,"Одеська область, Роздільнянський район, Роздільна, вулиця Леніна, 44",84,2019-10-10,331,"Заробітна плата, премії","Заробітна плата, лікарняні, вагітності, відрядження, компенсації",361496,Центральний офіс,37279703,Україна,Інформаційні послуги,26009580176,state,2223.00,"ТОВ ""Роздільнянське видавництво ""ВПЕРЕД""",37530836,юридична особа
РПЛ,"Київ, вулиця Антоновича, 103",84,2019-10-08,1643,"Заробітна плата, премії","Заробітна плата, лікарняні, вагітності, відрядження, компенсації",361495,Центральний офіс,37279703,Україна,Доступ до мобільного зв'язку за вересень,26009580176,state,3.37,"ТОВ НВФ ""ВОЛЗ""",24251847,юридична особа
РПЛ,"Київ, вулиця Антоновича, 103",76,2019-10-08,1644,Послуги зв’язку,Послуги зв’язку,358782,Центральний офіс,37279703,Україна,Телекомунікаційні послуги за жовтень,26009580176,state,1700.00,"ТОВ НВФ ""ВОЛЗ""",24251847,юридична особа
РПЛ,"Київ, вулиця Зодчих, 70, 66",84,2019-10-07,1642,"Заробітна плата, премії","Заробітна плата, лікарняні, вагітності, відрядження, компенсації",361494,Центральний офіс,37279703,Україна,Надання в строкове платне користування Віртуальної інфраструктури за жовтень,26009580176,state,9116.63,Мельник Володимир Миколайович,2915401614,фізична особа
РПЛ,Київ,59,2019-10-04,1639,Грошова застава,Грошова застава,362439,Центральний офіс,37279703,Україна,Заробітна плата за 2 половину вересня,26009580176,state,7218.42,Поліщук Анна Валентинівна,,фізична особа
РПЛ,Київ,59,2019-10-04,1639,Грошова застава,Грошова застава,362438,Центральний офіс,37279703,Україна,Заробітна плата за 2 половину вересня,26009580176,state,5017.83,Карімов Осман Мусайович,,фізична особа
РПЛ,"Київ, вулиця Миколи Лєскова, 9",70,2019-10-04,1640,Банківські послуги,Інші витрати,362340,Центральний офіс,37279703,Україна,Комісія банку за зарахування коштів на СКР працівників,26009580176,state,143.26,"Київська філія АТ ""Райффайзен банк Аваль""",23494105,юридична особа
РПЛ,"Київ, вулиця Леоніда Первомайського, 9А",61,2019-10-04,1637,Військовий збір,Податкові платежі,361971,Центральний офіс,37279703,Україна,Військовий збір нарахований на доходи громадян,26009580176,state,1361.00,УДКСУ у Шевченківському районі м. Києва,37995466,юридична особа
РПЛ,"Чернігівська область, Чернігів",61,2019-10-04,1641,Військовий збір,Податкові платежі,361970,Центральний офіс,37279703,Україна,Заробітна плата за 2 половину вересня,26009580176,state,1380.01,Амельченко Василь Васильович,,фізична особа
РПЛ,"Чернігівська область, Сновський район, Сновськ",61,2019-10-04,1639,Військовий збір,Податкові платежі,361969,Центральний офіс,37279703,Україна,Заробітна плата за 2 половину вересня,26009580176,state,3584.16,Данильченко Ніна Василівна,,фізична особа
РПЛ,"Київ, вулиця Миколи Лєскова, 4",62,2019-10-04,1638,Сплата ЄСВ,Податкові платежі,361852,Центральний офіс,37279703,Україна,Єдиний соціальний внесок нарахований на доходи громадян,26009580176,state,19953.00,ГУ ДФС у м. Києві,39439980,юридична особа
РПЛ,"Київ, вулиця Леоніда Первомайського, 9А",63,2019-10-04,1636,Податок на доходи,Податкові платежі,361736,Центральний офіс,37279703,Україна,Податок на доходи фізичних осіб ,26009580176,state,16325.00,УДКСУ у Печерському районі м. Києва,38004897,юридична особа
РПЛ,"Київ, вулиця Вишгородська",63,2019-10-04,1639,Податок на доходи,Податкові платежі,361734,Центральний офіс,37279703,Україна,Заробітна плата за 2 половину вересня,26009580176,state,3584.16,Відмиш Євген Аркадійович,,фізична особа
РПЛ,"Київська обл., Васильків",84,2019-10-04,1639,"Заробітна плата, премії","Заробітна плата, лікарняні, вагітності, відрядження, компенсації",361438,Центральний офіс,37279703,Україна,Заробітна плата за 2 половину вересня,26009580176,state,6818.26,Падурець Людмила Володимирівна,,фізична особа
РПЛ,"Київська обл., Біла Церква",84,2019-10-04,1639,"Заробітна плата, премії","Заробітна плата, лікарняні, вагітності, відрядження, компенсації",361437,Центральний офіс,37279703,Україна,Заробітна плата за 2 половину вересня,26009580176,state,2508.92,Остапенко Сергій Анатолійович,,фізична особа
РПЛ,Київ,84,2019-10-04,1639,"Заробітна плата, премії","Заробітна плата, лікарняні, вагітності, відрядження, компенсації",361436,Центральний офіс,37279703,Україна,Заробітна плата за 2 половину вересня,26009580176,state,2951.67,Василенко Ніна Дмитрівна,,фізична особа
РПЛ,Київ,79,2019-10-04,1639,"Оренда будинків і приміщень та експлуатаційні витрати (прибирання, страхування орендованих будинків, охорона, сигналізація, ремонт, вивіз сміття, тощо)",Оренда нерухомості,358682,Центральний офіс,37279703,Україна,Заробітна плата за 2 половину вересня,26009580176,state,6278.97,Самсонова Аліна Вікторівна,,фізична особа
РПЛ,Київ,79,2019-10-04,1639,"Оренда будинків і приміщень та експлуатаційні витрати (прибирання, страхування орендованих будинків, охорона, сигналізація, ремонт, вивіз сміття, тощо)",Оренда нерухомості,358681,Центральний офіс,37279703,Україна,Заробітна плата за 2 половину вересня,26009580176,state,13807.78,Нечипорук Олександр Григорович,,фізична особа
РПЛ,Київ,79,2019-10-04,1639,"Оренда будинків і приміщень та експлуатаційні витрати (прибирання, страхування орендованих будинків, охорона, сигналізація, ремонт, вивіз сміття, тощо)",Оренда нерухомості,358680,Центральний офіс,37279703,Україна,Заробітна плата за 2 половину вересня,26009580176,state,6574.29,Макарова Юлія Миколаївна,,фізична особа
РПЛ,"Чернігівська область, Чернігів",79,2019-10-04,1639,"Оренда будинків і приміщень та експлуатаційні витрати (прибирання, страхування орендованих будинків, охорона, сигналізація, ремонт, вивіз сміття, тощо)",Оренда нерухомості,358679,Центральний офіс,37279703,Україна,Заробітна плата за 2 половину вересня,26009580176,state,6465.60,Луговець Ольга Олександрівна,,фізична особа
РПЛ,Київ,79,2019-10-04,1639,"Оренда будинків і приміщень та експлуатаційні витрати (прибирання, страхування орендованих будинків, охорона, сигналізація, ремонт, вивіз сміття, тощо)",Оренда нерухомості,358678,Центральний офіс,37279703,Україна,Заробітна плата за 2 половину вересня,26009580176,state,6818.26,Євтушенко Наталія Федорівна,,фізична особа
РПЛ,"Київ, вулиця Зодчих, 70, 66",84,2019-10-03,1635,"Заробітна плата, премії","Заробітна плата, лікарняні, вагітності, відрядження, компенсації",361493,Центральний офіс,37279703,Україна,Надання в строкове платне користування Віртуальної інфраструктури за жовтень,26009580176,state,961.23,Мельник Володимир Миколайович,2915401614,фізична особа
РПЛ,"Івано-Франківська область, Івано-Франківськ, вулиця Галицька, 130",79,2019-10-03,1634,"Оренда будинків і приміщень та експлуатаційні витрати (прибирання, страхування орендованих будинків, охорона, сигналізація, ремонт, вивіз сміття, тощо)",Оренда нерухомості,358676,Центральний офіс,37279703,Україна,Орендна плата за вересень,26006580179,current,1500.00,"ПП ""Фармацевтична компанія ""Здорова родина",34078368,юридична особа
РПЛ,"Київ, проспект Академіка Палладіна, 18/30",72,2019-10-01,1633,"Придбання, ремонт офісної техніки та програмного забезпечення (Бухгалтерські програми, Ліга.закон, домени)",Придбання офісної техніки та програмного забезпечення,358744,Центральний офіс,37279703,Україна,"Заправка, ремонт картриджей",26009580176,state,10789.99,"ТОВ ""ЛКОМ""",39310603,юридична особа
РПЛ,"Київ, вулиця Миколи Лєскова, 9",70,2019-09-30,bn,Банківські послуги,Інші витрати,362328,Центральний офіс,37279703,Україна,Комісія за вих. Перекази в національній валюті (Клієнт-Банк),26009580176,state,192.00,"АТ ""Райффайзен банк Аваль""",14305909,юридична особа
РПЛ,"Київ, вулиця Миколи Лєскова, 9",70,2019-09-30,1632,Банківські послуги,Інші витрати,362327,Центральний офіс,37279703,Україна,Комісія банку за зарахування коштів на СКР працівників,26009580176,state,259.95,"АТ ""Райффайзен банк Аваль""",14305909,юридична особа
РПЛ,"Київ, вулиця Миколи Лєскова, 9",70,2019-09-30,1627,Банківські послуги,Інші витрати,362326,Центральний офіс,37279703,Україна,Комісія банку за зарахування коштів на СКР працівників,26009580176,state,12.44,"АТ ""Райффайзен банк Аваль""",14305909,юридична особа
РПЛ,"Київ, вулиця Миколи Лєскова, 9",70,2019-09-30,bn,Банківські послуги,Інші витрати,362290,Центральний офіс,37279703,Україна,Комсія банку за зарахування коштів на СКР працівників,26006580179,current,20.00,"АТ ""Райффайзен банк Аваль""",14305909,юридична особа
РПЛ,"Київ, вулиця Миколи Лєскова, 9",70,2019-09-30,bn,Банківські послуги,Інші витрати,362289,Центральний офіс,37279703,Україна,Комісія за ведення поточних рахунків клієнта,26006580179,current,250.00,"АТ ""Райффайзен банк Аваль""",14305909,юридична особа
РПЛ,"Київ, вулиця Леоніда Первомайського, 9А",61,2019-09-30,1629,Військовий збір,Податкові платежі,361965,Центральний офіс,37279703,Україна,Військовий збір нарахований на доходи громадян-заробітна плата за 1 пол.вересня,26009580176,state,2422.00,УДКСУ у Шевченківському районі м. Києва,37995466,юридична особа
РПЛ,"Київ, вулиця Леоніда Первомайського, 9А",61,2019-09-30,1624,Військовий збір,Податкові платежі,361964,Центральний офіс,37279703,Україна,Військовий збір нарахований на доходи громадян-заробітна плата за 1 пол.вересня,26009580176,state,116.00,УДКСУ у Шевченківському районі м. Києва,37995466,юридична особа
РПЛ,"Київ, вулиця Шолуденка, 33/19",62,2019-09-30,1630,Сплата ЄСВ,Податкові платежі,361849,Центральний офіс,37279703,Україна,ЄСВ нарахований на доходи громадян- заробітна плата за 2 пол. вересня,26009580176,state,35522.00,ГУ ДФС у м. Києві,39439980,юридична особа
РПЛ,"Київ, вулиця Шолуденка, 33/19",62,2019-09-30,1623,Сплата ЄСВ,Податкові платежі,361848,Центральний офіс,37279703,Україна,ЄСВ нарахований на доходи громадян- заробітна плата за 2 пол. вересня,26009580176,state,1700.00,ГУ ДФС у м. Києві,39439980,юридична особа
РПЛ,"Київ, вулиця Леоніда Первомайського, 9А",63,2019-09-30,1628,Податок на доходи,Податкові платежі,361731,Центральний офіс,37279703,Україна,Податок на доходи фізичних осіб-заробітна плата за 2 пол. вересня,26009580176,state,29064.00,УДКСУ у Печерському районі м. Києва,38004897,юридична особа
РПЛ,"Київ, вулиця Леоніда Первомайського, 9А",63,2019-09-30,1625,Податок на доходи,Податкові платежі,361730,Центральний офіс,37279703,Україна,Податок на доходи фізичних осіб-заробітна плата за 2 пол. вересня,26009580176,state,1391.00,УДКСУ у Печерському районі м. Києва,38004897,юридична особа
РПЛ,Київ,84,2019-09-30,1631,"Заробітна плата, премії","Заробітна плата, лікарняні, вагітності, відрядження, компенсації",361430,Центральний офіс,37279703,Україна,Заробітна плата за 2 половину вересня,26009580176,state,17427.50,Новохацька Олександра Вікторівна,,фізична особа
РПЛ,Київ,84,2019-09-30,1631,"Заробітна плата, премії","Заробітна плата, лікарняні, вагітності, відрядження, компенсації",361429,Центральний офіс,37279703,Україна,Заробітна плата за 2 половину вересня,26009580176,state,23188.36,Куц Тарас Федорович,,фізична особа
РПЛ,"Черкаська область, Черкаський район, Дубіївка",84,2019-09-30,1631,"Заробітна плата, премії","Заробітна плата, лікарняні, вагітності, відрядження, компенсації",361428,Центральний офіс,37279703,Україна,Заробітна плата за 2 половину вересня,26009580176,state,26610.48,Кутілова Вікторія Володимирівна,,фізична особа
РПЛ,Київ,84,2019-09-30,1631,"Заробітна плата, премії","Заробітна плата, лікарняні, вагітності, відрядження, компенсації",361427,Центральний офіс,37279703,Україна,Заробітна плата за 2 половину вересня,26009580176,state,14628.58,Кравченко Сергій Вікторович,,фізична особа
РПЛ,Київ,84,2019-09-30,1631,"Заробітна плата, премії","Заробітна плата, лікарняні, вагітності, відрядження, компенсації",361426,Центральний офіс,37279703,Україна,Заробітна плата за 2 половину вересня,26009580176,state,23134.31,Короткий Геннадій Леонідович,,фізична особа
РПЛ,Київ,84,2019-09-30,1631,"Заробітна плата, премії","Заробітна плата, лікарняні, вагітності, відрядження, компенсації",361425,Центральний офіс,37279703,Україна,Заробітна плата за 2 половину вересня,26009580176,state,24987.96,Даниленко Антон Олександрович,,фізична особа
РПЛ,"Київська обл., Обухівський район, Українка",84,2019-09-30,1626,"Заробітна плата, премії","Заробітна плата, лікарняні, вагітності, відрядження, компенсації",361424,Центральний офіс,37279703,Україна,Заробітна плата за 2 половину вересня,26009580176,state,2043.66,Байбула Юрій Михайлович,,фізична особа
РПЛ,"Київська обл., Васильків",84,2019-09-30,1626,"Заробітна плата, премії","Заробітна плата, лікарняні, вагітності, відрядження, компенсації",361423,Центральний офіс,37279703,Україна,Заробітна плата за 2 половину вересня,26009580176,state,4175.93,Криворучко Ігор Олегович,,фізична особа
РПЛ,"Київська обл., Києво-Святошинський район, Петропавлівська Борщагівка, вулиця Соборна, 111",66,2019-09-27,15,Повернення внесків приватних внесків (донорам),Повернення приватних внесків (донорам),362159,Центральний офіс,37279703,Україна,Повернення надлишково перерахованих коштів згідно акту звірки,26006580179,current,2080.00,"КП РГ ""Ренійський вісник""",32631423,юридична особа
РПЛ,"Київ, вулиця Хрещатик, 22",62,2019-09-25,1622,Сплата ЄСВ,Податкові платежі,361847,Центральний офіс,37279703,Україна,Марки,26009580176,state,3000.00,"Київська міська дирекція ПАТ ""Укрпошта""",01189979,юридична особа
РПЛ,"Київ, вулиця Хрещатик, 1/2",63,2019-09-24,1621,Податок на доходи,Податкові платежі,361729,Центральний офіс,37279703,Україна,Оренда залу,26009580176,state,3000.00,"ПАТ ""Готель ""Дніпро""",02573547,юридична особа
РПЛ,"Київ, вулиця Миколи Лєскова, 9",70,2019-09-20,1620,Банківські послуги,Інші витрати,362325,Центральний офіс,37279703,Україна,Комісія банку за зарахування коштів на СКР працівників,26009580176,state,159.24,"АТ ""Райффайзен банк Аваль""",14305909,юридична особа
РПЛ,"Київ, вулиця Леоніда Первомайського, 9А",61,2019-09-20,1616,Військовий збір,Податкові платежі,361963,Центральний офіс,37279703,Україна,Військовий збір нарахований на доходи громадян-заробітна плата за 1 пол.вересня,26009580176,state,1484.00,УДКСУ у Шевченківському районі м. Києва,37995466,юридична особа
РПЛ,"Київ, вулиця Шолуденка, 33/19",62,2019-09-20,1618,Сплата ЄСВ,Податкові платежі,361846,Центральний офіс,37279703,Україна,ЄСВ нарахований на доходи громадян- заробітна плата за 1 пол. Вересня,26009580176,state,21760.00,ГУ ДФС у м. Києві,39439980,юридична особа
РПЛ,"Київ, вулиця Леоніда Первомайського, 9А",63,2019-09-20,1617,Податок на доходи,Податкові платежі,361728,Центральний офіс,37279703,Україна,Податок на доходи фізичних осіб-заробітна плата за 1 пол. Вересня,26009580176,state,17803.00,УДКСУ у Печерському районі м. Києва,38004897,юридична особа
РПЛ,Київ,84,2019-09-20,1619,"Заробітна плата, премії","Заробітна плата, лікарняні, вагітності, відрядження, компенсації",361422,Центральний офіс,37279703,Україна,Заробітна плата за 1 пол. вересня,26009580176,state,6516.67,Поліщук Анна Валентинівна,,фізична особа
РПЛ,"Київська обл., Васильків",84,2019-09-20,1619,"Заробітна плата, премії","Заробітна плата, лікарняні, вагітності, відрядження, компенсації",361421,Центральний офіс,37279703,Україна,Заробітна плата за 1 пол. вересня,26009580176,state,5864.99,Падурець Людмила Володимирівна,,фізична особа
РПЛ,"Київська обл., Біла Церква",84,2019-09-20,1619,"Заробітна плата, премії","Заробітна плата, лікарняні, вагітності, відрядження, компенсації",361420,Центральний офіс,37279703,Україна,Заробітна плата за 1 пол. вересня,26009580176,state,2280.83,Остапенко Сергій Анатолійович,,фізична особа
РПЛ,Київ,84,2019-09-20,1619,"Заробітна плата, премії","Заробітна плата, лікарняні, вагітності, відрядження, компенсації",361419,Центральний офіс,37279703,Україна,Заробітна плата за 1 пол. вересня,26009580176,state,5213.34,Новохацька Олександра Вікторівна,,фізична особа
РПЛ,Київ,84,2019-09-20,1619,"Заробітна плата, премії","Заробітна плата, лікарняні, вагітності, відрядження, компенсації",361418,Центральний офіс,37279703,Україна,Заробітна плата за 1 пол. вересня,26009580176,state,5864.99,Макарова Юлія Миколаївна,,фізична особа
РПЛ,"Чернігівська область, Чернігів",84,2019-09-20,1619,"Заробітна плата, премії","Заробітна плата, лікарняні, вагітності, відрядження, компенсації",361417,Центральний офіс,37279703,Україна,Заробітна плата за 1 пол. вересня,26009580176,state,2932.51,Луговець Ольга Олександрівна,,фізична особа
РПЛ,Київ,84,2019-09-20,1619,"Заробітна плата, премії","Заробітна плата, лікарняні, вагітності, відрядження, компенсації",361416,Центральний офіс,37279703,Україна,Заробітна плата за 1 пол. вересня,26009580176,state,6401.66,Куц Тарас Федорович,,фізична особа
РПЛ,"Черкаська область, Черкаський район, Дубіївка",84,2019-09-20,1619,"Заробітна плата, премії","Заробітна плата, лікарняні, вагітності, відрядження, компенсації",361415,Центральний офіс,37279703,Україна,Заробітна плата за 1 пол. вересня,26009580176,state,6401.66,Кутілова Вікторія Володимирівна,,фізична особа
РПЛ,Київ,84,2019-09-20,1619,"Заробітна плата, премії","Заробітна плата, лікарняні, вагітності, відрядження, компенсації",361414,Центральний офіс,37279703,Україна,Заробітна плата за 1 пол. вересня,26009580176,state,5213.34,Кравченко Сергій Вікторович,,фізична особа
РПЛ,Київ,84,2019-09-20,1619,"Заробітна плата, премії","Заробітна плата, лікарняні, вагітності, відрядження, компенсації",361413,Центральний офіс,37279703,Україна,Заробітна плата за 1 пол. вересня,26009580176,state,6401.66,Короткий Геннадій Леонідович,,фізична особа
РПЛ,Київ,84,2019-09-20,1619,"Заробітна плата, премії","Заробітна плата, лікарняні, вагітності, відрядження, компенсації",361412,Центральний офіс,37279703,Україна,Заробітна плата за 1 пол. вересня,26009580176,state,4561.67,Карімов Осман Мусайович,,фізична особа
РПЛ,Київ,84,2019-09-20,1619,"Заробітна плата, премії","Заробітна плата, лікарняні, вагітності, відрядження, компенсації",361411,Центральний офіс,37279703,Україна,Заробітна плата за 1 пол. вересня,26009580176,state,5864.99,Євтушенко Наталія Федорівна,,фізична особа
РПЛ,"Чернігівська область, Сновський район, Сновськ",84,2019-09-20,1619,"Заробітна плата, премії","Заробітна плата, лікарняні, вагітності, відрядження, компенсації",361410,Центральний офіс,37279703,Україна,Заробітна плата за 1 пол. вересня,26009580176,state,3258.34,Данильченко Ніна Василівна,,фізична особа
РПЛ,Київ,84,2019-09-20,1619,"Заробітна плата, премії","Заробітна плата, лікарняні, вагітності, відрядження, компенсації",361409,Центральний офіс,37279703,Україна,Заробітна плата за 1 пол. вересня,26009580176,state,6900.00,Даниленко Антон Олександрович,,фізична особа
РПЛ,Київ,84,2019-09-20,1619,"Заробітна плата, премії","Заробітна плата, лікарняні, вагітності, відрядження, компенсації",361408,Центральний офіс,37279703,Україна,Заробітна плата за 1 пол. вересня,26009580176,state,3258.34,Відмиш Євген Аркадійович,,фізична особа
РПЛ,Київ,84,2019-09-20,1619,"Заробітна плата, премії","Заробітна плата, лікарняні, вагітності, відрядження, компенсації",361407,Центральний офіс,37279703,Україна,Заробітна плата за 1 пол. вересня,26009580176,state,2683.33,Василенко Ніна Дмитрівна,,фізична особа
РПЛ,"Київ, вулиця Олекси Довбуша, 37",61,2019-09-19,1615,Військовий збір,Податкові платежі,361962,Центральний офіс,37279703,Україна,"Послуги по зберіганню, навантажувально-розвантажувальні роботи",26009580176,state,3070.80,"ТОВ ""Муравей-Україна""",37292640,юридична особа
РПЛ,"Київ, проспект Степана Бандери, 22",79,2019-09-19,4507,"Оренда будинків і приміщень та експлуатаційні витрати (прибирання, страхування орендованих будинків, охорона, сигналізація, ремонт, вивіз сміття, тощо)",Оренда нерухомості,358661,Центральний офіс,37279703,Україна,Повернення переплати за нафтопродукти,26009580176,state,1339.37,"ТОВ ""ГРАНД-ПЕТРОЛ""",39641883,юридична особа
РПЛ,"Київ, вулиця Анни Ахматової, 5",82,2019-09-18,1614,"Гонорари, в тому числі за надані консультаційні послуги","Гонорари, в тому числі за надані консультаційні послуги",362450,Центральний офіс,37279703,Україна,Консультаційні послуги (Проведення тренінгів),26009580176,state,50000.00,Шкарпітко В.А.,,юридична особа
РПЛ,"Чернігівська область, Чернігів",66,2019-09-18,1612,Повернення внесків приватних внесків (донорам),Повернення приватних внесків (донорам),362179,Центральний офіс,37279703,Україна,"ст.15(п.8)ЗУ ""Про політ.партії в Україні""",26006580179,current,149000.00,Омеляненко Тетяна Іванівна,,фізична особа
РПЛ,"Чернігівська область, Чернігів",66,2019-09-18,1611,Повернення внесків приватних внесків (донорам),Повернення приватних внесків (донорам),362178,Центральний офіс,37279703,Україна,"ст.15(п.8)ЗУ ""Про політ.партії в Україні""",26006580179,current,149000.00,Омеляненко Тетяна Іванівна,,фізична особа
РПЛ,"Івано-Франківська область, Івано-Франківськ, вулиця Галицька, 130",79,2019-09-18,1613,"Оренда будинків і приміщень та експлуатаційні витрати (прибирання, страхування орендованих будинків, охорона, сигналізація, ремонт, вивіз сміття, тощо)",Оренда нерухомості,358675,Центральний офіс,37279703,Україна,Відшкодування витрат за комунальні послуги у червні 2019 (доплата),26009580176,state,7.48,"ПП ""Фармацевтична компанія ""Здорова родина",34078368,юридична особа
РПЛ,"Київ, вулиця Миколи Лєскова, 9",70,2019-09-17,1609,Банківські послуги,Інші витрати,362324,Центральний офіс,37279703,Україна,Комісія банку за зарахування коштів на СКР працівників,26009580176,state,24.02,"АТ ""Райффайзен банк Аваль""",14305909,юридична особа
РПЛ,"Київ, вулиця Зодчих, 70, 66",61,2019-09-17,1610,Військовий збір,Податкові платежі,361961,Центральний офіс,37279703,Україна,Надання в строкове платне користування Віртуальн.інфраструктури за липень,26009580176,state,119.06,Мельник Володимир Миколайович,2915401614,фізична особа
РПЛ,"Київ, вулиця Леоніда Первомайського, 9А",61,2019-09-17,1607,Військовий збір,Податкові платежі,361960,Центральний офіс,37279703,Україна,Військовий збір нарахований на доходи громадян-відпускні за версень,26009580176,state,224.00,УДКСУ у Шевченківському районі м. Києва,37995466,юридична особа
РПЛ,"Київ, вулиця Шолуденка, 33/19",62,2019-09-17,1605,Сплата ЄСВ,Податкові платежі,361845,Центральний офіс,37279703,Україна,ЄСВ нарахований на доходи громадян- відпускні за вересень,26009580176,state,3282.00,ГУ ДФС у м. Києві,39439980,юридична особа
РПЛ,"Київ, вулиця Леоніда Первомайського, 9А",63,2019-09-17,1606,Податок на доходи,Податкові платежі,361727,Центральний офіс,37279703,Україна,Податок на доходи фізичних осіб-відпускні за вересень,26009580176,state,2686.00,УДКСУ у Печерському районі м. Києва,38004897,юридична особа
РПЛ,"Київська обл., Обухівський район, Обухів",84,2019-09-17,1608,"Заробітна плата, премії","Заробітна плата, лікарняні, вагітності, відрядження, компенсації",361406,Центральний офіс,37279703,Україна,"Заробітна плата за вересень, компен.за невик.відпустку",26009580176,state,10439.42,Потеряйко Вадим Юрійович,,фізична особа
РПЛ,"Житомирська область, Коростенський район, Сингаї",84,2019-09-17,1608,"Заробітна плата, премії","Заробітна плата, лікарняні, вагітності, відрядження, компенсації",361405,Центральний офіс,37279703,Україна,"Заробітна плата за вересень, компен.за невик.відпустку",26009580176,state,1569.15,Лазаренко Анатолій Іванович,,фізична особа
РПЛ,"Київ, вулиця Антоновича, 103",76,2019-09-17,1604,Послуги зв’язку,Послуги зв’язку,358781,Центральний офіс,37279703,Україна,Телекомунікаційні послуги (послуги інтернет) за серпень,26009580176,state,1700.00,"ТОВ НВФ ""ВОЛЗ""",24251847,юридична особа
РПЛ,"Київ, вулиця Миколи Лєскова, 9",70,2019-09-16,1599,Банківські послуги,Інші витрати,362323,Центральний офіс,37279703,Україна,Комісія банку за зарахування коштів на СКР працівників,26009580176,state,17.76,"АТ ""Райффайзен банк Аваль""",14305909,юридична особа
РПЛ,"Чернігівська область, Чернігів",66,2019-09-16,1594,Повернення внесків приватних внесків (донорам),Повернення приватних внесків (донорам),362177,Центральний офіс,37279703,Україна,"ст.15(п.8)ЗУ ""Про політ.партії в Україні""",26006580179,current,149000.00,Омеляненко Тетяна Іванівна,,фізична особа
РПЛ,"Чернігівська область, Чернігів",66,2019-09-16,1592,Повернення внесків приватних внесків (донорам),Повернення приватних внесків (донорам),362176,Центральний офіс,37279703,Україна,"ст.15(п.8)ЗУ ""Про політ.партії в Україні""",26006580179,current,149000.00,Омеляненко Тетяна Іванівна,,фізична особа
РПЛ,"Чернігівська область, Чернігів",66,2019-09-16,1593,Повернення внесків приватних внесків (донорам),Повернення приватних внесків (донорам),362175,Центральний офіс,37279703,Україна,"ст.15(п.8)ЗУ ""Про політ.партії в Україні""",26006580179,current,149000.00,Омеляненко Тетяна Іванівна,,фізична особа
РПЛ,"Київ, вулиця Леоніда Первомайського, 9А",61,2019-09-16,1595,Військовий збір,Податкові платежі,361959,Центральний офіс,37279703,Україна,Військовий збір нарахований на доходи громадян-відпускні за версень,26009580176,state,166.00,УДКСУ у Шевченківському районі м. Києва,37995466,юридична особа
РПЛ,"Київ, вулиця Шолуденка, 33/19",62,2019-09-16,1597,Сплата ЄСВ,Податкові платежі,361844,Центральний офіс,37279703,Україна,ЄСВ нарахований на доходи громадян- відпускні за вересень,26009580176,state,2427.00,ГУ ДФС у м. Києві,39439980,юридична особа
РПЛ,"Київ, вулиця Антоновича, 103",63,2019-09-16,1600,Податок на доходи,Податкові платежі,361726,Центральний офіс,37279703,Україна,"Абонентплата, доступ до мобільного звʼязку за серпень",26009580176,state,289.21,"ТОВ НВФ ""ВОЛЗ""",24251847,юридична особа
РПЛ,"Київ, вулиця Леоніда Первомайського, 9А",63,2019-09-16,1596,Податок на доходи,Податкові платежі,361725,Центральний офіс,37279703,Україна,Податок на доходи фізичних осіб-відпускні за вересень,26009580176,state,1986.00,УДКСУ у Печерському районі м. Києва,38004897,юридична особа
РПЛ,"Київ, вулиця Антоновича, 103",76,2019-09-16,1601,Послуги зв’язку,Послуги зв’язку,358780,Центральний офіс,37279703,Україна,Телекомунікаційні послуги (послуги інтернет) за вересень,26009580176,state,1700.00,"ТОВ НВФ ""ВОЛЗ""",24251847,юридична особа
РПЛ,"Київ, вулиця Зодчих, 70, 66",79,2019-09-16,1602,"Оренда будинків і приміщень та експлуатаційні витрати (прибирання, страхування орендованих будинків, охорона, сигналізація, ремонт, вивіз сміття, тощо)",Оренда нерухомості,358674,Центральний офіс,37279703,Україна,Надання в строкове платне користування Віртуальн.інфраструктури за серпень,26009580176,state,1145.43,Мельник Володимир Миколайович,2915401614,фізична особа
РПЛ,"Київ, вулиця Зодчих, 70, 66",58,2019-09-16,1603,"Виготовлення друкованих матеріалів (плакатів, листівок, буклетів та інших агітаційних матеріалів)",Друкована агітація,358571,Центральний офіс,37279703,Україна,Надання в строкове платне користування Віртуальн.інфраструктури у режимі гіпервізора за вересень,26009580176,state,9666.27,Мельник Володимир Миколайович,2915401614,фізична особа
РПЛ,"Волинська область, Луцьк",64,2019-09-12,1588,Повернення платежів партії,Повернення,362181,Центральний офіс,37279703,Україна,"ст.15(п.8)ЗУ ""Про політ.партії в Україні""",26006580179,current,398500.00,Свирида О М,,фізична особа
РПЛ,"Житомирська область, Новоград-Волинський, вулиця Замкова, 7",66,2019-09-12,1590,Повернення внесків приватних внесків (донорам),Повернення приватних внесків (донорам),362180,Центральний офіс,37279703,Україна,"ст.15(п.8)ЗУ ""Про політ.партії в Україні""",26006580179,current,33000.00,"МПП ""РОТОР""",22050984,юридична особа
РПЛ,"Чернігівська область, Чернігів",66,2019-09-12,1591,Повернення внесків приватних внесків (донорам),Повернення приватних внесків (донорам),362174,Центральний офіс,37279703,Україна,"ст.15(п.8)ЗУ ""Про політ.партії в Україні""",26006580179,current,149000.00,Омеляненко Тетяна Іванівна,,фізична особа
РПЛ,"Харківська область, Харків",66,2019-09-12,1589,Повернення внесків приватних внесків (донорам),Повернення приватних внесків (донорам),362173,Центральний офіс,37279703,Україна,"ст.15(п.8)ЗУ ""Про політ.партії в Україні""",26006580179,current,200000.00,Мазікін Олексій Андрійович,,фізична особа
РПЛ,"Київ, вулиця Миколи Лєскова, 9",70,2019-09-11,1587,Банківські послуги,Інші витрати,362322,Центральний офіс,37279703,Україна,Комісія банку за зарахування коштів на СКР працівників,26009580176,state,258.21,"АТ ""Райффайзен банк Аваль""",14305909,юридична особа
РПЛ,"Київ, вулиця Леоніда Первомайського, 9А",61,2019-09-11,1583,Військовий збір,Податкові платежі,361958,Центральний офіс,37279703,Україна,Військовий збір нарахований на доходи громадян-відпускні за версень,26009580176,state,2410.00,УДКСУ у Шевченківському районі м. Києва,37995466,юридична особа
РПЛ,"Київ, вулиця Шолуденка, 33/19",62,2019-09-11,1585,Сплата ЄСВ,Податкові платежі,361843,Центральний офіс,37279703,Україна,ЄСВ нарахований на доходи громадян- відпускні за вересень,26009580176,state,35285.00,ГУ ДФС у м. Києві,39439980,юридична особа
РПЛ,"Київ, вулиця Леоніда Первомайського, 9А",63,2019-09-11,1584,Податок на доходи,Податкові платежі,361724,Центральний офіс,37279703,Україна,Податок на доходи фізичних осіб-відпускні за вересень,26009580176,state,28870.00,УДКСУ у Печерському районі м. Києва,38004897,юридична особа
РПЛ,Київ,84,2019-09-11,1586,"Заробітна плата, премії","Заробітна плата, лікарняні, вагітності, відрядження, компенсації",361403,Центральний офіс,37279703,Україна,"Заробітна плата за вересень, компен.за невик.відпустку",26009580176,state,11845.11,Яковлєва Вероніка Павлівна,,фізична особа
РПЛ,Київ,84,2019-09-11,1586,"Заробітна плата, премії","Заробітна плата, лікарняні, вагітності, відрядження, компенсації",361402,Центральний офіс,37279703,Україна,"Заробітна плата за вересень, компен.за невик.відпустку",26009580176,state,17147.46,Бондаренко Юрій Леонідович,,фізична особа
РПЛ,Київ,84,2019-09-11,1586,"Заробітна плата, премії","Заробітна плата, лікарняні, вагітності, відрядження, компенсації",361401,Центральний офіс,37279703,Україна,"Заробітна плата за вересень, компен.за невик.відпустку",26009580176,state,32389.17,Мелещук Наталія Володимирівна,,фізична особа
РПЛ,Київ,84,2019-09-11,1586,"Заробітна плата, премії","Заробітна плата, лікарняні, вагітності, відрядження, компенсації",361400,Центральний офіс,37279703,Україна,"Заробітна плата за вересень, компен.за невик.відпустку",26009580176,state,20757.82,Пугачова Ярослава Павлівна,,фізична особа
РПЛ,Київ,84,2019-09-11,1586,"Заробітна плата, премії","Заробітна плата, лікарняні, вагітності, відрядження, компенсації",361399,Центральний офіс,37279703,Україна,"Заробітна плата за вересень, компен.за невик.відпустку",26009580176,state,27238.45,Торговець Юлія Василівна,,фізична особа
РПЛ,"Дніпропетровська область, Дніпро́",84,2019-09-11,1586,"Заробітна плата, премії","Заробітна плата, лікарняні, вагітності, відрядження, компенсації",361398,Центральний офіс,37279703,Україна,"Заробітна плата за вересень, компен.за невик.відпустку",26009580176,state,5527.35,Штогрін Тетяна Миколаївна,,фізична особа
РПЛ,"Миколаївська область, Миколаїв",84,2019-09-11,1586,"Заробітна плата, премії","Заробітна плата, лікарняні, вагітності, відрядження, компенсації",361397,Центральний офіс,37279703,Україна,"Заробітна плата за вересень, компен.за невик.відпустку",26009580176,state,9758.99,Виноградова Ольга Сергіївна,,фізична особа
РПЛ,"Закарпатська область, Ужгород",84,2019-09-11,1586,"Заробітна плата, премії","Заробітна плата, лікарняні, вагітності, відрядження, компенсації",361396,Центральний офіс,37279703,Україна,"Заробітна плата за вересень, компен.за невик.відпустку",26009580176,state,4438.88,Андрушко Кветослава Антонівна,,фізична особа
РПЛ,"Київ, вулиця Миколи Лєскова, 9",70,2019-09-10,1582,Банківські послуги,Інші витрати,362321,Центральний офіс,37279703,Україна,Комісія банку за зарахування коштів на СКР працівників,26009580176,state,361.79,"АТ ""Райффайзен банк Аваль""",14305909,юридична особа
РПЛ,"Київ, вулиця Миколи Лєскова, 9",70,2019-09-10,1577,Банківські послуги,Інші витрати,362320,Центральний офіс,37279703,Україна,Комісія банку за зарахування коштів на СКР працівників,26009580176,state,121.39,"АТ ""Райффайзен банк Аваль""",14305909,юридична особа
РПЛ,"Київ, вулиця Леоніда Первомайського, 9А",61,2019-09-10,1578,Військовий збір,Податкові платежі,361957,Центральний офіс,37279703,Україна,Військовий збір нарахований на доходи громадян-відпускні за версень,26009580176,state,3439.00,УДКСУ у Шевченківському районі м. Києва,37995466,юридична особа
РПЛ,"Київ, вулиця Леоніда Первомайського, 9А",61,2019-09-10,1575,Військовий збір,Податкові платежі,361956,Центральний офіс,37279703,Україна,Військовий збір нарахований на доходи громадян-відпускні за версень,26009580176,state,1178.00,УДКСУ у Шевченківському районі м. Києва,37995466,юридична особа
РПЛ,"Київ, вулиця Шолуденка, 33/19",62,2019-09-10,1580,Сплата ЄСВ,Податкові платежі,361842,Центральний офіс,37279703,Україна,ЄСВ нарахований на доходи громадян- відпускні за вересень,26009580176,state,50426.00,ГУ ДФС у м. Києві,39439980,юридична особа
РПЛ,"Київ, вулиця Шолуденка, 33/19",62,2019-09-10,1573,Сплата ЄСВ,Податкові платежі,361841,Центральний офіс,37279703,Україна,ЄСВ нарахований на доходи громадян- відпускні за вересень,26009580176,state,17266.00,ГУ ДФС у м. Києві,39439980,юридична особа
РПЛ,"Київ, вулиця Леоніда Первомайського, 9А",63,2019-09-10,1579,Податок на доходи,Податкові платежі,361723,Центральний офіс,37279703,Україна,Податок на доходи фізичних осіб-відпускні за вересень,26009580176,state,41258.00,УДКСУ у Печерському районі м. Києва,38004897,юридична особа
РПЛ,"Київ, вулиця Леоніда Первомайського, 9А",63,2019-09-10,1574,Податок на доходи,Податкові платежі,361722,Центральний офіс,37279703,Україна,Податок на доходи фізичних осіб-відпускні за вересень,26009580176,state,14127.00,УДКСУ у Печерському районі м. Києва,38004897,юридична особа
РПЛ,"Київська обл., Миронівський район, Миронівка",84,2019-09-10,1581,"Заробітна плата, премії","Заробітна плата, лікарняні, вагітності, відрядження, компенсації",361395,Центральний офіс,37279703,Україна,"Заробітна плата за вересень, компен.за невик.відпустку",26009580176,state,1695.97,Цидик Роман Володимирович,,фізична особа
РПЛ,"Миколаївська область, Миколаїв",84,2019-09-10,1581,"Заробітна плата, премії","Заробітна плата, лікарняні, вагітності, відрядження, компенсації",361394,Центральний офіс,37279703,Україна,"Заробітна плата за вересень, компен.за невик.відпустку",26009580176,state,4266.93,Хомик Діана Валентинівна,,фізична особа
РПЛ,"Київська обл., Бориспіль",84,2019-09-10,1581,"Заробітна плата, премії","Заробітна плата, лікарняні, вагітності, відрядження, компенсації",361393,Центральний офіс,37279703,Україна,"Заробітна плата за вересень, компен.за невик.відпустку",26009580176,state,27495.00,Федун Юрій Степанович,,фізична особа
РПЛ,"Чернігівська область, Чернігів",84,2019-09-10,1581,"Заробітна плата, премії","Заробітна плата, лікарняні, вагітності, відрядження, компенсації",361392,Центральний офіс,37279703,Україна,"Заробітна плата за вересень, компен.за невик.відпустку",26009580176,state,36540.58,Соколова Анжеліка Артурівна,,фізична особа
РПЛ,Київ,84,2019-09-10,1581,"Заробітна плата, премії","Заробітна плата, лікарняні, вагітності, відрядження, компенсації",361391,Центральний офіс,37279703,Україна,"Заробітна плата за вересень, компен.за невик.відпустку",26009580176,state,5325.32,Сірик Тетяна Василівна,,фізична особа
РПЛ,Київ,84,2019-09-10,1581,"Заробітна плата, премії","Заробітна плата, лікарняні, вагітності, відрядження, компенсації",361390,Центральний офіс,37279703,Україна,"Заробітна плата за вересень, компен.за невик.відпустку",26009580176,state,15209.06,Машир Олександр Іванович,,фізична особа
РПЛ,"Полтавська область, Полтава",84,2019-09-10,1581,"Заробітна плата, премії","Заробітна плата, лікарняні, вагітності, відрядження, компенсації",361389,Центральний офіс,37279703,Україна,"Заробітна плата за вересень, компен.за невик.відпустку",26009580176,state,14907.41,Матяш Руслан Анатолійович,,фізична особа
РПЛ,Київ,84,2019-09-10,1581,"Заробітна плата, премії","Заробітна плата, лікарняні, вагітності, відрядження, компенсації",361388,Центральний офіс,37279703,Україна,"Заробітна плата за вересень, компен.за невик.відпустку",26009580176,state,11017.99,Линовицький Ігор Олександрович,,фізична особа
РПЛ,"Київська обл., Вишгородський район, Тарасівщина",84,2019-09-10,1581,"Заробітна плата, премії","Заробітна плата, лікарняні, вагітності, відрядження, компенсації",361387,Центральний офіс,37279703,Україна,"Заробітна плата за вересень, компен.за невик.відпустку",26009580176,state,13960.49,Крамар Оксана Станіславівна,,фізична особа
РПЛ,"Київська обл., Біла Церква",84,2019-09-10,1581,"Заробітна плата, премії","Заробітна плата, лікарняні, вагітності, відрядження, компенсації",361386,Центральний офіс,37279703,Україна,"Заробітна плата за вересень, компен.за невик.відпустку",26009580176,state,8314.91,Дністрян Володимир Семенович,,фізична особа
РПЛ,"Вінницька область, Немирівський район, Немирів",84,2019-09-10,1581,"Заробітна плата, премії","Заробітна плата, лікарняні, вагітності, відрядження, компенсації",361385,Центральний офіс,37279703,Україна,"Заробітна плата за вересень, компен.за невик.відпустку",26009580176,state,3002.53,Гаєвська Галина Петрівна,,фізична особа
РПЛ,Київ,84,2019-09-10,1581,"Заробітна плата, премії","Заробітна плата, лікарняні, вагітності, відрядження, компенсації",361384,Центральний офіс,37279703,Україна,"Заробітна плата за вересень, компен.за невик.відпустку",26009580176,state,19589.13,Бєлов Ігор Ігорович,,фізична особа
РПЛ,Київ,84,2019-09-10,1581,"Заробітна плата, премії","Заробітна плата, лікарняні, вагітності, відрядження, компенсації",361383,Центральний офіс,37279703,Україна,"Заробітна плата за вересень, компен.за невик.відпустку",26009580176,state,8457.75,Безпалько Вʼячеслав Андрійович,,фізична особа
РПЛ,"Київська обл., Бородянський район, Шибене",84,2019-09-10,1581,"Заробітна плата, премії","Заробітна плата, лікарняні, вагітності, відрядження, компенсації",361382,Центральний офіс,37279703,Україна,"Заробітна плата за вересень, компен.за невик.відпустку",26009580176,state,8395.11,Бардаш Олег Миколайович,,фізична особа
РПЛ,"Вінницька область, Ладижин",84,2019-09-10,1581,"Заробітна плата, премії","Заробітна плата, лікарняні, вагітності, відрядження, компенсації",361381,Центральний офіс,37279703,Україна,"Заробітна плата за вересень, компен.за невик.відпустку",26009580176,state,2714.75,Базанков Максим Сергійович,,фізична особа
РПЛ,Київ,84,2019-09-10,1576,"Заробітна плата, премії","Заробітна плата, лікарняні, вагітності, відрядження, компенсації",361380,Центральний офіс,37279703,Україна,"Заробітна плата за вересень, компен.за невик.відпустку",26009580176,state,3630.30,Парака Ярослава Володимирівна,,фізична особа
РПЛ,"Волинська область, Луцьк",84,2019-09-10,1576,"Заробітна плата, премії","Заробітна плата, лікарняні, вагітності, відрядження, компенсації",361379,Центральний офіс,37279703,Україна,"Заробітна плата за вересень, компен.за невик.відпустку",26009580176,state,10595.12,Семчук Юрій Анатолійович,,фізична особа
РПЛ,"Волинська область, Луцьк",84,2019-09-10,1576,"Заробітна плата, премії","Заробітна плата, лікарняні, вагітності, відрядження, компенсації",361378,Центральний офіс,37279703,Україна,"Заробітна плата за вересень, компен.за невик.відпустку",26009580176,state,1990.82,Ковальчук Віктор Євгенович,,фізична особа
РПЛ,"Запорізька область, Запоріжжя",84,2019-09-10,1576,"Заробітна плата, премії","Заробітна плата, лікарняні, вагітності, відрядження, компенсації",361377,Центральний офіс,37279703,Україна,"Заробітна плата за вересень, компен.за невик.відпустку",26009580176,state,4799.45,Єршова Надія Геннадіївна,,фізична особа
РПЛ,"Волинська область, Рожищенський район, Копачівка",84,2019-09-10,1576,"Заробітна плата, премії","Заробітна плата, лікарняні, вагітності, відрядження, компенсації",361376,Центральний офіс,37279703,Україна,"Заробітна плата за вересень, компен.за невик.відпустку",26009580176,state,9132.56,Воробйова Жанна Миколаївна,,фізична особа
РПЛ,"Волинська область, Луцьк",84,2019-09-10,1576,"Заробітна плата, премії","Заробітна плата, лікарняні, вагітності, відрядження, компенсації",361375,Центральний офіс,37279703,Україна,"Заробітна плата за вересень, компен.за невик.відпустку",26009580176,state,6809.05,Андрейчук Наталія Василівна,,фізична особа
РПЛ,"Чернівецька область, Заставнівський район, Заставна",84,2019-09-10,1576,"Заробітна плата, премії","Заробітна плата, лікарняні, вагітності, відрядження, компенсації",361374,Центральний офіс,37279703,Україна,"Заробітна плата за вересень, компен.за невик.відпустку",26009580176,state,5494.37,Гольцов Леонід Петрович,,фізична особа
РПЛ,"Вінницька область, Чернівецький район, Шендерівка",84,2019-09-10,1576,"Заробітна плата, премії","Заробітна плата, лікарняні, вагітності, відрядження, компенсації",361373,Центральний офіс,37279703,Україна,"Заробітна плата за вересень, компен.за невик.відпустку",26009580176,state,4553.41,Войцех Юлія Миколаївна,,фізична особа
РПЛ,"Чернівецька область, Кіцманський район, Витилівка",84,2019-09-10,1576,"Заробітна плата, премії","Заробітна плата, лікарняні, вагітності, відрядження, компенсації",361372,Центральний офіс,37279703,Україна,"Заробітна плата за вересень, компен.за невик.відпустку",26009580176,state,4588.61,Худик Ірина Іванівна,,фізична особа
РПЛ,"Чернівецька область, Чернівці",84,2019-09-10,1576,"Заробітна плата, премії","Заробітна плата, лікарняні, вагітності, відрядження, компенсації",361371,Центральний офіс,37279703,Україна,"Заробітна плата за вересень, компен.за невик.відпустку",26009580176,state,3795.68,Фостій Олександр Олександрович,,фізична особа
РПЛ,"Черкаська область, Черкаси",84,2019-09-10,1576,"Заробітна плата, премії","Заробітна плата, лікарняні, вагітності, відрядження, компенсації",361370,Центральний офіс,37279703,Україна,"Заробітна плата за вересень, компен.за невик.відпустку",26009580176,state,5305.94,Асанова Інна Володимирівна,,фізична особа
РПЛ,"Київ, вулиця Лятошинського, 14А",58,2019-09-10,1572,"Виготовлення друкованих матеріалів (плакатів, листівок, буклетів та інших агітаційних матеріалів)",Друкована агітація,358810,Центральний офіс,37279703,Україна,"Друк газети, розвальцювання",26009580176,state,962000.00,"ТОВ ""ВОРФІ""",41926388,юридична особа
РПЛ,"Київ, вулиця Миколи Лєскова, 9",70,2019-09-09,1555,Банківські послуги,Інші витрати,362319,Центральний офіс,37279703,Україна,Комісія банку за зарахування коштів на СКР працівників,26009580176,state,35.64,"АТ ""Райффайзен банк Аваль""",14305909,юридична особа
РПЛ,"Київ, вулиця Миколи Лєскова, 9",70,2019-09-09,1566,Банківські послуги,Інші витрати,362318,Центральний офіс,37279703,Україна,Комісія банку за зарахування коштів на СКР працівників,26009580176,state,13.29,"АТ ""Райффайзен банк Аваль""",14305909,юридична особа
РПЛ,"Київ, вулиця Миколи Лєскова, 9",70,2019-09-09,1560,Банківські послуги,Інші витрати,362317,Центральний офіс,37279703,Україна,Комісія банку за зарахування коштів на СКР працівників,26009580176,state,353.37,"АТ ""Райффайзен банк Аваль""",14305909,юридична особа
РПЛ,"Київ, вулиця Леоніда Первомайського, 9А",61,2019-09-09,1551,Військовий збір,Податкові платежі,361955,Центральний офіс,37279703,Україна,Військовий збір нарахований на доходи громадян-відпускні за версень,26009580176,state,333.00,УДКСУ у Шевченківському районі м. Києва,37995466,юридична особа
РПЛ,"Київ, вулиця Леоніда Первомайського, 9А",61,2019-09-09,1546,Військовий збір,Податкові платежі,361954,Центральний офіс,37279703,Україна,Військовий збір нарахований на доходи громадян-відпускні за версень,26009580176,state,1490.00,УДКСУ у Шевченківському районі м. Києва,37995466,юридична особа
РПЛ,"Київ, вулиця Леоніда Первомайського, 9А",61,2019-09-09,1570,Військовий збір,Податкові платежі,361953,Центральний офіс,37279703,Україна,Військовий збір нарахований на доходи громадян-відпускні за версень,26009580176,state,144.00,УДКСУ у Шевченківському районі м. Києва,37995466,юридична особа
РПЛ,"Київ, вулиця Леоніда Первомайського, 9А",61,2019-09-09,1557,Військовий збір,Податкові платежі,361952,Центральний офіс,37279703,Україна,Військовий збір нарахований на доходи громадян-відпускні за версень,26009580176,state,3411.00,УДКСУ у Шевченківському районі м. Києва,37995466,юридична особа
РПЛ,"Київ, вулиця Шолуденка, 33/19",62,2019-09-09,1552,Сплата ЄСВ,Податкові платежі,361840,Центральний офіс,37279703,Україна,ЄСВ нарахований на доходи громадян- відпускні за вересень,26009580176,state,4871.00,ГУ ДФС у м. Києві,39439980,юридична особа
РПЛ,"Херсонська область, Херсон, вулиця Стрітенська, 7",62,2019-09-09,1571,Сплата ЄСВ,Податкові платежі,361839,Центральний офіс,37279703,Україна,Відрахування із відпускних за 2019р. Іванова Романа Анатолійовича,26009580176,state,2083.62,ВДВС Корабельного РУЮ м. Херсон,34906677,юридична особа
РПЛ,"Київ, вулиця Шолуденка, 33/19",62,2019-09-09,1568,Сплата ЄСВ,Податкові платежі,361838,Центральний офіс,37279703,Україна,ЄСВ нарахований на доходи громадян- відпускні за вересень,26009580176,state,2104.00,ГУ ДФС у м. Києві,39439980,юридична особа
РПЛ,"Київ, вулиця Шолуденка, 33/19",62,2019-09-09,1558,Сплата ЄСВ,Податкові платежі,361837,Центральний офіс,37279703,Україна,ЄСВ нарахований на доходи громадян- відпускні за вересень,26009580176,state,50020.00,ГУ ДФС у м. Києві,39439980,юридична особа
РПЛ,"Київ, вулиця Леоніда Первомайського, 9А",63,2019-09-09,1553,Податок на доходи,Податкові платежі,361721,Центральний офіс,37279703,Україна,Податок на доходи фізичних осіб-відпускні за вересень,26009580176,state,3985.00,УДКСУ у Печерському районі м. Києва,38004897,юридична особа
РПЛ,"Київ, вулиця Леоніда Первомайського, 9А",63,2019-09-09,1569,Податок на доходи,Податкові платежі,361720,Центральний офіс,37279703,Україна,Податок на доходи фізичних осіб-відпускні за вересень,26009580176,state,1721.00,УДКСУ у Печерському районі м. Києва,38004897,юридична особа
РПЛ,"Київ, вулиця Леоніда Первомайського, 9А",63,2019-09-09,1556,Податок на доходи,Податкові платежі,361719,Центральний офіс,37279703,Україна,Податок на доходи фізичних осіб-відпускні за вересень,26009580176,state,40925.00,УДКСУ у Печерському районі м. Києва,38004897,юридична особа
РПЛ,"Миколаївська область, Миколаїв",84,2019-09-09,1567,"Заробітна плата, премії","Заробітна плата, лікарняні, вагітності, відрядження, компенсації",361369,Центральний офіс,37279703,Україна,"Заробітна плата за вересень, компен.за невик.відпустку",26009580176,state,1052.24,Прохорова Маргарита Ігорівна,,фізична особа
РПЛ,"Львівська область, Львів",84,2019-09-09,1564,"Заробітна плата, премії","Заробітна плата, лікарняні, вагітності, відрядження, компенсації",361368,Центральний офіс,37279703,Україна,"Заробітна плата за вересень, компен.за невик.відпустку",26009580176,state,3999.22,Маліновський Володимир Степанович,,фізична особа
РПЛ,"Харківська область, Харків",84,2019-09-09,1563,"Заробітна плата, премії","Заробітна плата, лікарняні, вагітності, відрядження, компенсації",361367,Центральний офіс,37279703,Україна,"Заробітна плата за вересень, компен.за невик.відпустку",26009580176,state,1172.99,Борисова Наталія Сергіївна,,фізична особа
РПЛ,"Харківська область, Люботин",84,2019-09-09,1562,"Заробітна плата, премії","Заробітна плата, лікарняні, вагітності, відрядження, компенсації",361366,Центральний офіс,37279703,Україна,"Заробітна плата за вересень, компен.за невик.відпустку",26009580176,state,1636.83,Левченко Анна Олексіївна,,фізична особа
РПЛ,"Харківська область, Люботин",84,2019-09-09,1561,"Заробітна плата, премії","Заробітна плата, лікарняні, вагітності, відрядження, компенсації",361365,Центральний офіс,37279703,Україна,"Заробітна плата за вересень, компен.за невик.відпустку",26009580176,state,1435.58,Сисенко Аліна Алімівна,,фізична особа
РПЛ,"Дніпропетровська область, Дніпро́",84,2019-09-09,1565,"Заробітна плата, премії","Заробітна плата, лікарняні, вагітності, відрядження, компенсації",361364,Центральний офіс,37279703,Україна,"Заробітна плата за вересень, компен.за невик.відпустку",26009580176,state,6642.84,Цаплін Євген Костянтинович,,фізична особа
РПЛ,"Херсонська область, Херсон",84,2019-09-09,1559,"Заробітна плата, премії","Заробітна плата, лікарняні, вагітності, відрядження, компенсації",361363,Центральний офіс,37279703,Україна,"Заробітна плата за вересень, компен.за невик.відпустку",26009580176,state,7118.34,Цивільський Андрій Миколайович,,фізична особа
РПЛ,"Чернігівська область, Чернігів",84,2019-09-09,1559,"Заробітна плата, премії","Заробітна плата, лікарняні, вагітності, відрядження, компенсації",361362,Центральний офіс,37279703,Україна,"Заробітна плата за вересень, компен.за невик.відпустку",26009580176,state,4038.18,Ткаченко Тетяна Вадимівна,,фізична особа
РПЛ,"Хмельницька область, Хмельницький",84,2019-09-09,1559,"Заробітна плата, премії","Заробітна плата, лікарняні, вагітності, відрядження, компенсації",361361,Центральний офіс,37279703,Україна,"Заробітна плата за вересень, компен.за невик.відпустку",26009580176,state,1738.78,Тарасюк Валентина Михайлівна,,фізична особа
РПЛ,"Чернігівська область, Чернігів",84,2019-09-09,1559,"Заробітна плата, премії","Заробітна плата, лікарняні, вагітності, відрядження, компенсації",361360,Центральний офіс,37279703,Україна,"Заробітна плата за вересень, компен.за невик.відпустку",26009580176,state,7821.39,Сухін Павло Сергійович,,фізична особа
РПЛ,"Чернігівська область, Чернігів",84,2019-09-09,1559,"Заробітна плата, премії","Заробітна плата, лікарняні, вагітності, відрядження, компенсації",361359,Центральний офіс,37279703,Україна,"Заробітна плата за вересень, компен.за невик.відпустку",26009580176,state,4672.77,Соломаха Сергій Васильович,,фізична особа
РПЛ,"Чернігівська область, Чернігів",84,2019-09-09,1559,"Заробітна плата, премії","Заробітна плата, лікарняні, вагітності, відрядження, компенсації",361358,Центральний офіс,37279703,Україна,"Заробітна плата за вересень, компен.за невик.відпустку",26009580176,state,5509.68,Соколова Ольга Вікторівна,,фізична особа
РПЛ,"Одеська область, Одеса",84,2019-09-09,1559,"Заробітна плата, премії","Заробітна плата, лікарняні, вагітності, відрядження, компенсації",361357,Центральний офіс,37279703,Україна,"Заробітна плата за вересень, компен.за невик.відпустку",26009580176,state,3999.22,Розманін Олександр Петрович,,фізична особа
РПЛ,"Донецька область, Маріуполь",84,2019-09-09,1559,"Заробітна плата, премії","Заробітна плата, лікарняні, вагітності, відрядження, компенсації",361356,Центральний офіс,37279703,Україна,"Заробітна плата за вересень, компен.за невик.відпустку",26009580176,state,5509.68,Прудніченко Алла Дмитрівна,,фізична особа
РПЛ,"Хмельницька область, Красилівський район, Красилів",84,2019-09-09,1559,"Заробітна плата, премії","Заробітна плата, лікарняні, вагітності, відрядження, компенсації",361355,Центральний офіс,37279703,Україна,"Заробітна плата за вересень, компен.за невик.відпустку",26009580176,state,5181.30,Процюк Наталія Юріївна,,фізична особа
РПЛ,"Одеська область, Одеса",84,2019-09-09,1559,"Заробітна плата, премії","Заробітна плата, лікарняні, вагітності, відрядження, компенсації",361354,Центральний офіс,37279703,Україна,"Заробітна плата за вересень, компен.за невик.відпустку",26009580176,state,4562.25,Перчеклій Микола Васильович,,фізична особа
РПЛ,"Одеська область, Одеса",84,2019-09-09,1559,"Заробітна плата, премії","Заробітна плата, лікарняні, вагітності, відрядження, компенсації",361353,Центральний офіс,37279703,Україна,"Заробітна плата за вересень, компен.за невик.відпустку",26009580176,state,5216.73,Неводчікова Ганна Ігорівна,,фізична особа
РПЛ,"Херсонська область, Херсон",84,2019-09-09,1559,"Заробітна плата, премії","Заробітна плата, лікарняні, вагітності, відрядження, компенсації",361352,Центральний офіс,37279703,Україна,"Заробітна плата за вересень, компен.за невик.відпустку",26009580176,state,931.49,Найдьонова Анастасія Юріївна,,фізична особа
РПЛ,"Одеська область, Одеса",84,2019-09-09,1559,"Заробітна плата, премії","Заробітна плата, лікарняні, вагітності, відрядження, компенсації",361351,Центральний офіс,37279703,Україна,"Заробітна плата за вересень, компен.за невик.відпустку",26009580176,state,12090.95,Лисейко Оксана Вікторівна,,фізична особа
РПЛ,"Чернігівська область, Ічнянський район, Ічня",84,2019-09-09,1559,"Заробітна плата, премії","Заробітна плата, лікарняні, вагітності, відрядження, компенсації",361350,Центральний офіс,37279703,Україна,"Заробітна плата за вересень, компен.за невик.відпустку",26009580176,state,6289.21,Крамаренко Сергій Миколайович,,фізична особа
РПЛ,"Донецька область, Маріуполь",84,2019-09-09,1559,"Заробітна плата, премії","Заробітна плата, лікарняні, вагітності, відрядження, компенсації",361349,Центральний офіс,37279703,Україна,"Заробітна плата за вересень, компен.за невик.відпустку",26009580176,state,4754.98,Коробських Сергій Олександрович,,фізична особа
РПЛ,"Донецька область, Маріуполь",84,2019-09-09,1559,"Заробітна плата, премії","Заробітна плата, лікарняні, вагітності, відрядження, компенсації",361348,Центральний офіс,37279703,Україна,"Заробітна плата за вересень, компен.за невик.відпустку",26009580176,state,1812.35,Корицька Олена Олександрівна,,фізична особа
РПЛ,"Донецька область, Маріуполь",84,2019-09-09,1559,"Заробітна плата, премії","Заробітна плата, лікарняні, вагітності, відрядження, компенсації",361347,Центральний офіс,37279703,Україна,"Заробітна плата за вересень, компен.за невик.відпустку",26009580176,state,760.38,Корицька Крістіна Анатоліївна,,фізична особа
РПЛ,"Чернігівська область, Городнянський район, Городня",84,2019-09-09,1559,"Заробітна плата, премії","Заробітна плата, лікарняні, вагітності, відрядження, компенсації",361346,Центральний офіс,37279703,Україна,"Заробітна плата за вересень, компен.за невик.відпустку",26009580176,state,4832.41,Климович Тетяна Вікторівна,,фізична особа
РПЛ,"Одеська область, Тарутинський район, Тарутине",84,2019-09-09,1559,"Заробітна плата, премії","Заробітна плата, лікарняні, вагітності, відрядження, компенсації",361345,Центральний офіс,37279703,Україна,"Заробітна плата за вересень, компен.за невик.відпустку",26009580176,state,14017.40,Кисса Святослав Вікторович,,фізична особа
РПЛ,"Херсонська область, Херсон",84,2019-09-09,1559,"Заробітна плата, премії","Заробітна плата, лікарняні, вагітності, відрядження, компенсації",361344,Центральний офіс,37279703,Україна,"Заробітна плата за вересень, компен.за невик.відпустку",26009580176,state,6318.65,Іванов Роман Анатолійович,,фізична особа
РПЛ,"Одеська область, Одеса",84,2019-09-09,1559,"Заробітна плата, премії","Заробітна плата, лікарняні, вагітності, відрядження, компенсації",361343,Центральний офіс,37279703,Україна,"Заробітна плата за вересень, компен.за невик.відпустку",26009580176,state,5683.06,Зубок Михайло Леонідович,,фізична особа
РПЛ,"Хмельницька область, Хмельницький",84,2019-09-09,1559,"Заробітна плата, премії","Заробітна плата, лікарняні, вагітності, відрядження, компенсації",361342,Центральний офіс,37279703,Україна,"Заробітна плата за вересень, компен.за невик.відпустку",26009580176,state,2371.06,Дашевський Олександр Валерійович,,фізична особа
РПЛ,"Хмельницька область, Хмельницький",84,2019-09-09,1559,"Заробітна плата, премії","Заробітна плата, лікарняні, вагітності, відрядження, компенсації",361341,Центральний офіс,37279703,Україна,"Заробітна плата за вересень, компен.за невик.відпустку",26009580176,state,4366.13,Данілкова Марина Юріївна,,фізична особа
РПЛ,"Донецька область, Маріуполь",84,2019-09-09,1559,"Заробітна плата, премії","Заробітна плата, лікарняні, вагітності, відрядження, компенсації",361340,Центральний офіс,37279703,Україна,"Заробітна плата за вересень, компен.за невик.відпустку",26009580176,state,3151.66,Горох Юрій Анатолійович,,фізична особа
РПЛ,"Донецька область, Маріуполь",84,2019-09-09,1559,"Заробітна плата, премії","Заробітна плата, лікарняні, вагітності, відрядження, компенсації",361339,Центральний офіс,37279703,Україна,"Заробітна плата за вересень, компен.за невик.відпустку",26009580176,state,5695.69,Глєбова Яна Олександрівна,,фізична особа
РПЛ,"Хмельницька область, Хмельницький",84,2019-09-09,1559,"Заробітна плата, премії","Заробітна плата, лікарняні, вагітності, відрядження, компенсації",361338,Центральний офіс,37279703,Україна,"Заробітна плата за вересень, компен.за невик.відпустку",26009580176,state,5130.84,Герас Ігор Богданович,,фізична особа
РПЛ,"Чернігівська область, Чернігів",84,2019-09-09,1559,"Заробітна плата, премії","Заробітна плата, лікарняні, вагітності, відрядження, компенсації",361337,Центральний офіс,37279703,Україна,"Заробітна плата за вересень, компен.за невик.відпустку",26009580176,state,4672.77,Галаган Ольга Сергіївна,,фізична особа
РПЛ,"Хмельницька область, Хмельницький",84,2019-09-09,1559,"Заробітна плата, премії","Заробітна плата, лікарняні, вагітності, відрядження, компенсації",361336,Центральний офіс,37279703,Україна,"Заробітна плата за вересень, компен.за невик.відпустку",26009580176,state,10383.50,Брезденюк Аліна Олегівна,,фізична особа
РПЛ,"Херсонська область, Олешківський район, Привітне",84,2019-09-09,1559,"Заробітна плата, премії","Заробітна плата, лікарняні, вагітності, відрядження, компенсації",361335,Центральний офіс,37279703,Україна,"Заробітна плата за вересень, компен.за невик.відпустку",26009580176,state,6078.75,Ахтулова Альона Олександрівна,,фізична особа
РПЛ,"Вінницька область, Вінниця",84,2019-09-09,1559,"Заробітна плата, премії","Заробітна плата, лікарняні, вагітності, відрядження, компенсації",361334,Центральний офіс,37279703,Україна,"Заробітна плата за вересень, компен.за невик.відпустку",26009580176,state,4703.12,Федорова Ольга Іванівна,,фізична особа
РПЛ,"Вінницька область, Вінниця",84,2019-09-09,1559,"Заробітна плата, премії","Заробітна плата, лікарняні, вагітності, відрядження, компенсації",361333,Центральний офіс,37279703,Україна,"Заробітна плата за вересень, компен.за невик.відпустку",26009580176,state,6496.53,Сокур Микола Миколайович,,фізична особа
РПЛ,"Вінницька область, Вінниця",84,2019-09-09,1559,"Заробітна плата, премії","Заробітна плата, лікарняні, вагітності, відрядження, компенсації",361332,Центральний офіс,37279703,Україна,"Заробітна плата за вересень, компен.за невик.відпустку",26009580176,state,2699.32,Мисака Дарʼя Вячеславівна,,фізична особа
РПЛ,"Житомирська область, Олевський район, Стовпинка",84,2019-09-09,1559,"Заробітна плата, премії","Заробітна плата, лікарняні, вагітності, відрядження, компенсації",361331,Центральний офіс,37279703,Україна,"Заробітна плата за вересень, компен.за невик.відпустку",26009580176,state,3868.03,Фещук Діана Аркадіївна,,фізична особа
РПЛ,Житомирська область,84,2019-09-09,1559,"Заробітна плата, премії","Заробітна плата, лікарняні, вагітності, відрядження, компенсації",361330,Центральний офіс,37279703,Україна,"Заробітна плата за вересень, компен.за невик.відпустку",26009580176,state,3025.93,Фещук Микола Андрійович,,фізична особа
РПЛ,"Житомирська область, Житомир",84,2019-09-09,1559,"Заробітна плата, премії","Заробітна плата, лікарняні, вагітності, відрядження, компенсації",361329,Центральний офіс,37279703,Україна,"Заробітна плата за вересень, компен.за невик.відпустку",26009580176,state,1182.81,Довбня Юлія Володимирівна,,фізична особа
РПЛ,"Тернопільська область, Тернопіль",84,2019-09-09,1554,"Заробітна плата, премії","Заробітна плата, лікарняні, вагітності, відрядження, компенсації",361328,Центральний офіс,37279703,Україна,"Заробітна плата за вересень, компен.за невик.відпустку",26009580176,state,7328.00,Стець Сергій Романович,,фізична особа
РПЛ,"Тернопільська область, Збаразький район, Травневе",84,2019-09-09,1554,"Заробітна плата, премії","Заробітна плата, лікарняні, вагітності, відрядження, компенсації",361327,Центральний офіс,37279703,Україна,"Заробітна плата за вересень, компен.за невик.відпустку",26009580176,state,2212.99,Назар Наталія Степанівна,,фізична особа
РПЛ,Тернопільська область,84,2019-09-09,1554,"Заробітна плата, премії","Заробітна плата, лікарняні, вагітності, відрядження, компенсації",361326,Центральний офіс,37279703,Україна,"Заробітна плата за вересень, компен.за невик.відпустку",26009580176,state,2478.66,Кошляк Вікторія Михайлівна,,фізична особа
РПЛ,"Тернопільська область, Тернопіль",84,2019-09-09,1554,"Заробітна плата, премії","Заробітна плата, лікарняні, вагітності, відрядження, компенсації",361325,Центральний офіс,37279703,Україна,"Заробітна плата за вересень, компен.за невик.відпустку",26009580176,state,1423.99,Мацюк Роман Володимирович,,фізична особа
РПЛ,"Тернопільська область, Тернопільський район, Довжанка",84,2019-09-09,1554,"Заробітна плата, премії","Заробітна плата, лікарняні, вагітності, відрядження, компенсації",361324,Центральний офіс,37279703,Україна,"Заробітна плата за вересень, компен.за невик.відпустку",26009580176,state,4377.79,Репко Євгенія Олексіївна,,фізична особа
РПЛ,"Київ, вулиця Протасів Яр, 8",79,2019-09-09,1536,"Оренда будинків і приміщень та експлуатаційні витрати (прибирання, страхування орендованих будинків, охорона, сигналізація, ремонт, вивіз сміття, тощо)",Оренда нерухомості,358673,Центральний офіс,37279703,Україна,Обслуговування та утримання будинку за серпень 2019р.,26009580176,state,1113.25,"ТОВ ""Житло-Сервіс""",30167045,юридична особа
РПЛ,"Полтавська область, Полтава, вулиця Європейська, 57",43,2019-09-06,1541,Інші витрати,Інші витрати,362519,Центральний офіс,37279703,Україна,Організація перевезення відправлень,26009580176,state,15783.93,"ТОВ ""Нова пошта""",31316718,юридична особа
РПЛ,"Полтавська область, Полтава, вулиця Європейська, 57",43,2019-09-06,1540,Інші витрати,Інші витрати,362518,Центральний офіс,37279703,Україна,Організація перевезення відправлень,26009580176,state,1041.17,"ТОВ ""Нова пошта""",31316718,юридична особа
РПЛ,"Київ, вулиця Анни Ахматової, 5",82,2019-09-06,1535,"Гонорари, в тому числі за надані консультаційні послуги","Гонорари, в тому числі за надані консультаційні послуги",362449,Центральний офіс,37279703,Україна,Консультаційні послуги (Проведення тренінгів),26009580176,state,1160000.00,Шкарпітко В.А.,2750612517,юридична особа
РПЛ,"Київ, вулиця Протасів Яр, 8",70,2019-09-06,1539,Банківські послуги,Інші витрати,362316,Центральний офіс,37279703,Україна,Відшкодування витрат за користування ел.мережами за липень 2019р.,26009580176,state,5017.35,"ТОВ ""Житло-Сервіс""",30167045,юридична особа
РПЛ,"Київ, вулиця Протасів Яр, 8",70,2019-09-06,1538,Банківські послуги,Інші витрати,362315,Центральний офіс,37279703,Україна,Відшкодування витрат за користування ел.мережами за серпень 2019р.,26009580176,state,4798.01,"ТОВ ""Житло-Сервіс""",30167045,юридична особа
РПЛ,"Київ, вулиця Миколи Лєскова, 9",70,2019-09-06,1550,Банківські послуги,Інші витрати,362314,Центральний офіс,37279703,Україна,Комісія банку за зарахування коштів на СКР працівників,26009580176,state,151.85,"АТ ""Райффайзен банк Аваль""",14305909,юридична особа
РПЛ,"Київ, вулиця Ярославів Вал, 33Б",61,2019-09-06,1545,Військовий збір,Податкові платежі,361951,Центральний офіс,37279703,Україна,Блокноти,26009580176,state,669471.00,"ТОВ ""ПРОДАКШН ЮА""",39572380,юридична особа
РПЛ,"Полтавська область, Полтава, вулиця Європейська, 57",62,2019-09-06,1543,Сплата ЄСВ,Податкові платежі,361836,Центральний офіс,37279703,Україна,Організація перевезення відправлень,26009580176,state,13757.81,"ТОВ ""Нова пошта""",31316718,юридична особа
РПЛ,"Київ, вулиця Шолуденка, 33/19",62,2019-09-06,1547,Сплата ЄСВ,Податкові платежі,361835,Центральний офіс,37279703,Україна,ЄСВ нарахований на доходи громадян- відпускні за вересень,26009580176,state,21843.00,ГУ ДФС у м. Києві,39439980,юридична особа
РПЛ,"Вінницька область, Калинівський район, Калинівка, вул. Івана Мазепи",62,2019-09-06,1544,Сплата ЄСВ,Податкові платежі,361817,Центральний офіс,37279703,Україна,Вода питна,26006580179,current,300.00,"ТОВ ""Еко-сфера""",32320552,юридична особа
РПЛ,"Полтавська область, Полтава, вулиця Європейська, 57",63,2019-09-06,1542,Податок на доходи,Податкові платежі,361718,Центральний офіс,37279703,Україна,Організація перевезення відправлень,26009580176,state,4862.22,"ТОВ ""Нова пошта""",31316718,юридична особа
РПЛ,"Київ, вулиця Леоніда Первомайського, 9А",63,2019-09-06,1548,Податок на доходи,Податкові платежі,361717,Центральний офіс,37279703,Україна,Податок на доходи фізичних осіб-відпускні за вересень,26009580176,state,17872.00,УДКСУ у Печерському районі м. Києва,38004897,юридична особа
РПЛ,м. Кропивницький,84,2019-09-06,1549,"Заробітна плата, премії","Заробітна плата, лікарняні, вагітності, відрядження, компенсації",361323,Центральний офіс,37279703,Україна,"Заробітна плата за вересень, компен.за невик.відпустку",26009580176,state,4672.77,Щуцька Тетяна Григорівна,,фізична особа
РПЛ,"Івано-Франківська область, Долинський район, Долина",84,2019-09-06,1549,"Заробітна плата, премії","Заробітна плата, лікарняні, вагітності, відрядження, компенсації",361322,Центральний офіс,37279703,Україна,"Заробітна плата за вересень, компен.за невик.відпустку",26009580176,state,7046.89,Федів Іван Ігорович,,фізична особа
РПЛ,"Львівська область, Львів",84,2019-09-06,1549,"Заробітна плата, премії","Заробітна плата, лікарняні, вагітності, відрядження, компенсації",361321,Центральний офіс,37279703,Україна,"Заробітна плата за вересень, компен.за невик.відпустку",26009580176,state,4875.40,Тернавський Віталій Богданович,,фізична особа
РПЛ,м. Кропивницький,84,2019-09-06,1549,"Заробітна плата, премії","Заробітна плата, лікарняні, вагітності, відрядження, компенсації",361320,Центральний офіс,37279703,Україна,"Заробітна плата за вересень, компен.за невик.відпустку",26009580176,state,5886.98,Сторчаус Віталій Сергійович,,фізична особа
РПЛ,"Львівська область, Львів",84,2019-09-06,1549,"Заробітна плата, премії","Заробітна плата, лікарняні, вагітності, відрядження, компенсації",361319,Центральний офіс,37279703,Україна,"Заробітна плата за вересень, компен.за невик.відпустку",26009580176,state,3168.38,Сидор Адріана Ігорівна,,фізична особа
РПЛ,м. Кропивницький,84,2019-09-06,1549,"Заробітна плата, премії","Заробітна плата, лікарняні, вагітності, відрядження, компенсації",361318,Центральний офіс,37279703,Україна,"Заробітна плата за вересень, компен.за невик.відпустку",26009580176,state,3330.76,Пустовойт Марина Едуардівна,,фізична особа
РПЛ,"Львівська область, Городоцький район, Керниця",84,2019-09-06,1549,"Заробітна плата, премії","Заробітна плата, лікарняні, вагітності, відрядження, компенсації",361317,Центральний офіс,37279703,Україна,"Заробітна плата за вересень, компен.за невик.відпустку",26009580176,state,4072.84,Назарчук Наталія Андріївна,,фізична особа
РПЛ,"Запорізька область, Запоріжжя",84,2019-09-06,1549,"Заробітна плата, премії","Заробітна плата, лікарняні, вагітності, відрядження, компенсації",361316,Центральний офіс,37279703,Україна,"Заробітна плата за вересень, компен.за невик.відпустку",26009580176,state,2075.14,Міненко Ірина Анатоліївна,,фізична особа
РПЛ,"Львівська область, Турківський район, Турка",84,2019-09-06,1549,"Заробітна плата, премії","Заробітна плата, лікарняні, вагітності, відрядження, компенсації",361315,Центральний офіс,37279703,Україна,"Заробітна плата за вересень, компен.за невик.відпустку",26009580176,state,3281.74,Левченко Анастасія Едуардівна,,фізична особа
РПЛ,"Львівська область, Городоцький район",84,2019-09-06,1549,"Заробітна плата, премії","Заробітна плата, лікарняні, вагітності, відрядження, компенсації",361314,Центральний офіс,37279703,Україна,"Заробітна плата за вересень, компен.за невик.відпустку",26009580176,state,2141.88,Кузьмин Марина Миколаївна,,фізична особа
РПЛ,"Івано-Франківська область, Тисменицький район, Чукалівка",84,2019-09-06,1549,"Заробітна плата, премії","Заробітна плата, лікарняні, вагітності, відрядження, компенсації",361313,Центральний офіс,37279703,Україна,"Заробітна плата за вересень, компен.за невик.відпустку",26009580176,state,11263.73,Кривченко Тетяна Миколаївна,,фізична особа
РПЛ,"Івано-Франківська область, Івано-Франківськ",84,2019-09-06,1549,"Заробітна плата, премії","Заробітна плата, лікарняні, вагітності, відрядження, компенсації",361312,Центральний офіс,37279703,Україна,"Заробітна плата за вересень, компен.за невик.відпустку",26009580176,state,4978.15,Кочержук Вячеслав Володимирович,,фізична особа
РПЛ,"Миколаївська область, Миколаїв",84,2019-09-06,1549,"Заробітна плата, премії","Заробітна плата, лікарняні, вагітності, відрядження, компенсації",361311,Центральний офіс,37279703,Україна,"Заробітна плата за вересень, компен.за невик.відпустку",26009580176,state,1423.99,Карлашевич Євген Володимирович,,фізична особа
РПЛ,"Івано-Франківська область, Тисменицький район, Старий Лисець",84,2019-09-06,1549,"Заробітна плата, премії","Заробітна плата, лікарняні, вагітності, відрядження, компенсації",361310,Центральний офіс,37279703,Україна,"Заробітна плата за вересень, компен.за невик.відпустку",26009580176,state,6659.64,Голинський Ігор Михайлович,,фізична особа
РПЛ,м. Кропивницький,84,2019-09-06,1549,"Заробітна плата, премії","Заробітна плата, лікарняні, вагітності, відрядження, компенсації",361309,Центральний офіс,37279703,Україна,"Заробітна плата за вересень, компен.за невик.відпустку",26009580176,state,1052.24,Глушко Світлана Михайлівна,,фізична особа
РПЛ,"Львівська область, Львів",84,2019-09-06,1549,"Заробітна плата, премії","Заробітна плата, лікарняні, вагітності, відрядження, компенсації",361308,Центральний офіс,37279703,Україна,"Заробітна плата за вересень, компен.за невик.відпустку",26009580176,state,1780.10,Вітик Оксана Петрівна,,фізична особа
РПЛ,"Хмельницька область, Полонський район, Хмельницький",84,2019-09-06,1549,"Заробітна плата, премії","Заробітна плата, лікарняні, вагітності, відрядження, компенсації",361307,Центральний офіс,37279703,Україна,"Заробітна плата за вересень, компен.за невик.відпустку",26009580176,state,6272.38,Богачик Яна Валентинівна,,фізична особа
РПЛ,"Миколаївська область, Миколаїв",84,2019-09-06,1549,"Заробітна плата, премії","Заробітна плата, лікарняні, вагітності, відрядження, компенсації",361306,Центральний офіс,37279703,Україна,"Заробітна плата за вересень, компен.за невик.відпустку",26009580176,state,1941.81,Баженов Сергій Владиславович,,фізична особа
РПЛ,"Київ, вулиця Протасів Яр, 8",79,2019-09-06,1537,"Оренда будинків і приміщень та експлуатаційні витрати (прибирання, страхування орендованих будинків, охорона, сигналізація, ремонт, вивіз сміття, тощо)",Оренда нерухомості,358672,Центральний офіс,37279703,Україна,Обслуговування та утримання будинку за липень 2019р.,26009580176,state,1113.25,"ТОВ ""Житло-Сервіс""",30167045,юридична особа
РПЛ,"Київ, вулиця Миколи Лєскова, 9",70,2019-09-05,1534,Банківські послуги,Інші витрати,362313,Центральний офіс,37279703,Україна,Комісія банку за зарахування коштів на СКР працівників,26009580176,state,92.94,"АТ ""Райффайзен банк Аваль""",14305909,юридична особа
РПЛ,"Київ, вулиця Миколи Лєскова, 9",70,2019-09-05,1527,Банківські послуги,Інші витрати,362312,Центральний офіс,37279703,Україна,Комісія банку за зарахування коштів на СКР працівників,26009580176,state,255.46,"АТ ""Райффайзен банк Аваль""",14305909,юридична особа
РПЛ,"Київ, вулиця Миколи Лєскова, 9",70,2019-09-05,1524,Банківські послуги,Інші витрати,362311,Центральний офіс,37279703,Україна,Комісія банку за зарахування коштів на СКР працівників,26009580176,state,90.53,"АТ ""Райффайзен банк Аваль""",14305909,юридична особа
РПЛ,"Київ, вулиця Леоніда Первомайського, 9А",61,2019-09-05,1530,Військовий збір,Податкові платежі,361950,Центральний офіс,37279703,Україна,Військовий збір нарахований на доходи громадян-відпускні за вересень,26009580176,state,866.00,УДКСУ у Шевченківському районі м. Києва,37995466,юридична особа
РПЛ,"Київ, вулиця Леоніда Первомайського, 9А",61,2019-09-05,1474,Військовий збір,Податкові платежі,361949,Центральний офіс,37279703,Україна,Військовий збір нарахований на доходи громадян-відпускні за вересень,26009580176,state,1975.00,УДКСУ у Шевченківському районі м. Києва,37995466,юридична особа
РПЛ,"Київ, вулиця Леоніда Первомайського, 9А",61,2019-09-05,1521,Військовий збір,Податкові платежі,361948,Центральний офіс,37279703,Україна,Військовий збір нарахований на доходи громадян-відпускні за вересень,26009580176,state,844.00,УДКСУ у Шевченківському районі м. Києва,37995466,юридична особа
РПЛ,"Київ, вулиця Шолуденка, 33/19",62,2019-09-05,1532,Сплата ЄСВ,Податкові платежі,361834,Центральний офіс,37279703,Україна,ЄСВ нарахований на доходи громадян- відпускні за вересень,26009580176,state,12700.00,ГУ ДФС у м. Києві,39439980,юридична особа
РПЛ,"Київ, вулиця Шолуденка, 33/19",62,2019-09-05,1475,Сплата ЄСВ,Податкові платежі,361833,Центральний офіс,37279703,Україна,ЄСВ нарахований на доходи громадян- відпускні за вересень,26009580176,state,36177.00,ГУ ДФС у м. Києві,39439980,юридична особа
РПЛ,"Київ, вулиця Шолуденка, 33/19",62,2019-09-05,1522,Сплата ЄСВ,Податкові платежі,361832,Центральний офіс,37279703,Україна,ЄСВ нарахований на доходи громадян- відпускні за вересень,26009580176,state,12370.00,ГУ ДФС у м. Києві,39439980,юридична особа
РПЛ,"Київ, вулиця Леоніда Первомайського, 9А",63,2019-09-05,1531,Податок на доходи,Податкові платежі,361716,Центральний офіс,37279703,Україна,Податок на доходи фізичних осіб-відпускні за вересень,26009580176,state,10391.00,УДКСУ у Печерському районі м. Києва,38004897,юридична особа
РПЛ,"Київ, вулиця Леоніда Первомайського, 9А",63,2019-09-05,1473,Податок на доходи,Податкові платежі,361715,Центральний офіс,37279703,Україна,Податок на доходи фізичних осіб-відпускні за вересень,26009580176,state,29600.00,УДКСУ у Печерському районі м. Києва,38004897,юридична особа
РПЛ,"Київ, вулиця Леоніда Первомайського, 9А",63,2019-09-05,1520,Податок на доходи,Податкові платежі,361714,Центральний офіс,37279703,Україна,Податок на доходи фізичних осіб-відпускні за вересень,26009580176,state,10121.00,УДКСУ у Печерському районі м. Києва,38004897,юридична особа
РПЛ,Київ,83,2019-09-05,1529,"Виплати працівникам (не зарплата): лікарняні, вагітності, відрядження, компенсації ","Заробітна плата, лікарняні, вагітності, відрядження, компенсації",361619,Центральний офіс,37279703,Україна,Відпускні за вересень,26009580176,state,1150.00,Свінцицький Сергій Дмитрович,,фізична особа
РПЛ,"Черкаська область, Черкаси",83,2019-09-05,1528,"Виплати працівникам (не зарплата): лікарняні, вагітності, відрядження, компенсації ","Заробітна плата, лікарняні, вагітності, відрядження, компенсації",361618,Центральний офіс,37279703,Україна,Відпускні за вересень,26009580176,state,2861.78,Лянна Тетяна Валеріївна,,фізична особа
РПЛ,"Полтавська область, Полтава",84,2019-09-05,1533,"Заробітна плата, премії","Заробітна плата, лікарняні, вагітності, відрядження, компенсації",361305,Центральний офіс,37279703,Україна,"Заробітна плата за вересень, компен.за невик.відпустку",26009580176,state,3687.83,Мороз Максим Вікторович,,фізична особа
РПЛ,"Полтавська область, Полтава",84,2019-09-05,1533,"Заробітна плата, премії","Заробітна плата, лікарняні, вагітності, відрядження, компенсації",361304,Центральний офіс,37279703,Україна,"Заробітна плата за вересень, компен.за невик.відпустку",26009580176,state,4527.35,Гавриш Світлана Іванівна,,фізична особа
РПЛ,"Полтавська область, Лубенський район, Новооріхівка",84,2019-09-05,1533,"Заробітна плата, премії","Заробітна плата, лікарняні, вагітності, відрядження, компенсації",361303,Центральний офіс,37279703,Україна,"Заробітна плата за вересень, компен.за невик.відпустку",26009580176,state,4123.79,Моренко Лідія Сергіївна,,фізична особа
РПЛ,"Полтавська область, Полтавський район, Копили",84,2019-09-05,1533,"Заробітна плата, премії","Заробітна плата, лікарняні, вагітності, відрядження, компенсації",361302,Центральний офіс,37279703,Україна,"Заробітна плата за вересень, компен.за невик.відпустку",26009580176,state,1672.37,Ступар Анастасія Василівна,,фізична особа
РПЛ,"Полтавська область, Лубенський район, Новооріхівка",84,2019-09-05,1533,"Заробітна плата, премії","Заробітна плата, лікарняні, вагітності, відрядження, компенсації",361301,Центральний офіс,37279703,Україна,"Заробітна плата за вересень, компен.за невик.відпустку",26009580176,state,6590.32,Мірошниченко Віталій Григорович,,фізична особа
РПЛ,"Рівненська область, Рівненський район, Велика Омеляна",84,2019-09-05,1533,"Заробітна плата, премії","Заробітна плата, лікарняні, вагітності, відрядження, компенсації",361300,Центральний офіс,37279703,Україна,"Заробітна плата за вересень, компен.за невик.відпустку",26009580176,state,2212.99,Конєва Тетяна Михайлівна,,фізична особа
РПЛ,"Рівненська область, Рівне",84,2019-09-05,1533,"Заробітна плата, премії","Заробітна плата, лікарняні, вагітності, відрядження, компенсації",361299,Центральний офіс,37279703,Україна,"Заробітна плата за вересень, компен.за невик.відпустку",26009580176,state,7782.74,Назарчук Юлія Юріївна,,фізична особа
РПЛ,"Рівненська область, Рівненський район, Городок",84,2019-09-05,1533,"Заробітна плата, премії","Заробітна плата, лікарняні, вагітності, відрядження, компенсації",361298,Центральний офіс,37279703,Україна,"Заробітна плата за вересень, компен.за невик.відпустку",26009580176,state,4115.32,Наумець Надія Стефанівна,,фізична особа
РПЛ,"Рівненська область, Рівненський район, Кустин",84,2019-09-05,1533,"Заробітна плата, премії","Заробітна плата, лікарняні, вагітності, відрядження, компенсації",361297,Центральний офіс,37279703,Україна,"Заробітна плата за вересень, компен.за невик.відпустку",26009580176,state,6356.72,Оксенюк Антон Олексійович,,фізична особа
РПЛ,"Рівненська область, Рівне",84,2019-09-05,1533,"Заробітна плата, премії","Заробітна плата, лікарняні, вагітності, відрядження, компенсації",361296,Центральний офіс,37279703,Україна,"Заробітна плата за вересень, компен.за невик.відпустку",26009580176,state,5400.54,Пікарська Оксана Миколаївна,,фізична особа
РПЛ,"Волинська область, Маневицький район, Маневичі",84,2019-09-05,1526,"Заробітна плата, премії","Заробітна плата, лікарняні, вагітності, відрядження, компенсації",361295,Центральний офіс,37279703,Україна,"Заробітна плата за вересень, компен.за невик.відпустку",26009580176,state,2508.56,Шедько Тетяна Василівна,,фізична особа
РПЛ,"Запорізька область, Запоріжжя",84,2019-09-05,1526,"Заробітна плата, премії","Заробітна плата, лікарняні, вагітності, відрядження, компенсації",361294,Центральний офіс,37279703,Україна,"Заробітна плата за вересень, компен.за невик.відпустку",26009580176,state,2772.02,Хохлов Юрій Станіславович,,фізична особа
РПЛ,"Луганська область, Сєвєродонецьк",84,2019-09-05,1526,"Заробітна плата, премії","Заробітна плата, лікарняні, вагітності, відрядження, компенсації",361293,Центральний офіс,37279703,Україна,"Заробітна плата за вересень, компен.за невик.відпустку",26009580176,state,929.35,Трощій Світлана Леонідівна,,фізична особа
РПЛ,"Київська обл., Володарський район, Володарка",84,2019-09-05,1526,"Заробітна плата, премії","Заробітна плата, лікарняні, вагітності, відрядження, компенсації",361292,Центральний офіс,37279703,Україна,"Заробітна плата за вересень, компен.за невик.відпустку",26009580176,state,4612.26,Тихонова Світлана Ігорівна,,фізична особа
РПЛ,"Луганська область, Луганськ",84,2019-09-05,1526,"Заробітна плата, премії","Заробітна плата, лікарняні, вагітності, відрядження, компенсації",361291,Центральний офіс,37279703,Україна,"Заробітна плата за вересень, компен.за невик.відпустку",26009580176,state,8595.89,Старицький Владислав Олександрович,,фізична особа
РПЛ,"Сумська область, Сумський район, Сад",84,2019-09-05,1526,"Заробітна плата, премії","Заробітна плата, лікарняні, вагітності, відрядження, компенсації",361290,Центральний офіс,37279703,Україна,"Заробітна плата за вересень, компен.за невик.відпустку",26009580176,state,3602.85,Сич Ірина Олександрівна,,фізична особа
РПЛ,"Сумська область, Сумський район, Суми",84,2019-09-05,1526,"Заробітна плата, премії","Заробітна плата, лікарняні, вагітності, відрядження, компенсації",361289,Центральний офіс,37279703,Україна,"Заробітна плата за вересень, компен.за невик.відпустку",26009580176,state,10370.55,Сидоренко Дарʼя Олександрівна,,фізична особа
РПЛ,"Луганська область, Сєвєродонецьк",84,2019-09-05,1526,"Заробітна плата, премії","Заробітна плата, лікарняні, вагітності, відрядження, компенсації",361288,Центральний офіс,37279703,Україна,"Заробітна плата за вересень, компен.за невик.відпустку",26009580176,state,7325.61,Руденко Ганна Володимирівна,,фізична особа
РПЛ,"Черкаська область, Черкаси",84,2019-09-05,1526,"Заробітна плата, премії","Заробітна плата, лікарняні, вагітності, відрядження, компенсації",361287,Центральний офіс,37279703,Україна,"Заробітна плата за вересень, компен.за невик.відпустку",26009580176,state,3556.94,Романча Андрій Юрійович,,фізична особа
РПЛ,"Дніпропетровська область, Дніпро́",84,2019-09-05,1526,"Заробітна плата, премії","Заробітна плата, лікарняні, вагітності, відрядження, компенсації",361286,Центральний офіс,37279703,Україна,"Заробітна плата за вересень, компен.за невик.відпустку",26009580176,state,5475.58,Ревенко Юлія Сергіївна,,фізична особа
РПЛ,Київ,84,2019-09-05,1526,"Заробітна плата, премії","Заробітна плата, лікарняні, вагітності, відрядження, компенсації",361285,Центральний офіс,37279703,Україна,"Заробітна плата за вересень, компен.за невик.відпустку",26009580176,state,1150.00,Перчета Андрій Ігорович,,фізична особа
РПЛ,"Черкаська область, Черкаси",84,2019-09-05,1526,"Заробітна плата, премії","Заробітна плата, лікарняні, вагітності, відрядження, компенсації",361284,Центральний офіс,37279703,Україна,"Заробітна плата за вересень, компен.за невик.відпустку",26009580176,state,6703.79,Мартюшева Наталія Вікторівна,,фізична особа
РПЛ,"Сумська область, Сумський район, Суми",84,2019-09-05,1526,"Заробітна плата, премії","Заробітна плата, лікарняні, вагітності, відрядження, компенсації",361283,Центральний офіс,37279703,Україна,"Заробітна плата за вересень, компен.за невик.відпустку",26009580176,state,4596.66,Левенко Марина Володимирівна,,фізична особа
РПЛ,"Дніпропетровська область, Дніпро́",84,2019-09-05,1526,"Заробітна плата, премії","Заробітна плата, лікарняні, вагітності, відрядження, компенсації",361282,Центральний офіс,37279703,Україна,"Заробітна плата за вересень, компен.за невик.відпустку",26009580176,state,3129.06,Лашкевич Олена Леонідівна,,фізична особа
РПЛ,"Київська обл., Києво-Святошинський район, Чабани",84,2019-09-05,1526,"Заробітна плата, премії","Заробітна плата, лікарняні, вагітності, відрядження, компенсації",361281,Центральний офіс,37279703,Україна,"Заробітна плата за вересень, компен.за невик.відпустку",26009580176,state,3063.58,Кухарук Володимир Васильович,,фізична особа
РПЛ,"Київська обл., Бровари",84,2019-09-05,1526,"Заробітна плата, премії","Заробітна плата, лікарняні, вагітності, відрядження, компенсації",361280,Центральний офіс,37279703,Україна,"Заробітна плата за вересень, компен.за невик.відпустку",26009580176,state,10919.40,Кравченко Олександр Миколайович,,фізична особа
РПЛ,"Сумська область, Сумський район, Суми",84,2019-09-05,1526,"Заробітна плата, премії","Заробітна плата, лікарняні, вагітності, відрядження, компенсації",361279,Центральний офіс,37279703,Україна,"Заробітна плата за вересень, компен.за невик.відпустку",26009580176,state,1395.50,Кохана Віра Сергіївна,,фізична особа
РПЛ,"Черкаська область, Черкаси",84,2019-09-05,1526,"Заробітна плата, премії","Заробітна плата, лікарняні, вагітності, відрядження, компенсації",361278,Центральний офіс,37279703,Україна,"Заробітна плата за вересень, компен.за невик.відпустку",26009580176,state,3014.34,Короп Наталія Іванівна,,фізична особа
РПЛ,Київ,84,2019-09-05,1526,"Заробітна плата, премії","Заробітна плата, лікарняні, вагітності, відрядження, компенсації",361277,Центральний офіс,37279703,Україна,"Заробітна плата за вересень, компен.за невик.відпустку",26009580176,state,4204.52,Кондюх Андрій Олегович,,фізична особа
РПЛ,"Чернівецька область, Чернівці",84,2019-09-05,1526,"Заробітна плата, премії","Заробітна плата, лікарняні, вагітності, відрядження, компенсації",361276,Центральний офіс,37279703,Україна,"Заробітна плата за вересень, компен.за невик.відпустку",26009580176,state,22301.70,Закієв Артур Вячеславович,,фізична особа
РПЛ,Київська обл.,84,2019-09-05,1526,"Заробітна плата, премії","Заробітна плата, лікарняні, вагітності, відрядження, компенсації",361275,Центральний офіс,37279703,Україна,"Заробітна плата за вересень, компен.за невик.відпустку",26009580176,state,4336.13,Заваліна Ксенія Валеріївна,,фізична особа
РПЛ,"Сумська область, Сумський район, Суми",84,2019-09-05,1526,"Заробітна плата, премії","Заробітна плата, лікарняні, вагітності, відрядження, компенсації",361274,Центральний офіс,37279703,Україна,"Заробітна плата за вересень, компен.за невик.відпустку",26009580176,state,5283.54,Демеха Сергій Васильович,,фізична особа
РПЛ,"Запорізька область, Запоріжжя",84,2019-09-05,1526,"Заробітна плата, премії","Заробітна плата, лікарняні, вагітності, відрядження, компенсації",361273,Центральний офіс,37279703,Україна,"Заробітна плата за вересень, компен.за невик.відпустку",26009580176,state,4705.74,Гусейнова Марія Юріївна,,фізична особа
РПЛ,"Луганська область, Сєвєродонецьк",84,2019-09-05,1526,"Заробітна плата, премії","Заробітна плата, лікарняні, вагітності, відрядження, компенсації",361272,Центральний офіс,37279703,Україна,"Заробітна плата за вересень, компен.за невик.відпустку",26009580176,state,3177.89,Бондаренко Андрій Васильович,,фізична особа
РПЛ,"Миколаївська область, Миколаїв",84,2019-09-05,1525,"Заробітна плата, премії","Заробітна плата, лікарняні, вагітності, відрядження, компенсації",361271,Центральний офіс,37279703,Україна,Заробітна плата за серпень,26009580176,state,6300.00,Прохорова Маргарита Ігорівна,,фізична особа
РПЛ,Київ,84,2019-09-05,1523,"Заробітна плата, премії","Заробітна плата, лікарняні, вагітності, відрядження, компенсації",361270,Центральний офіс,37279703,Україна,"Заробітна плата за вересень, компен.за невик.відпустку",26009580176,state,1514.75,Ткаченко Катерина Станіславівна,,фізична особа
РПЛ,"Київська обл., Броварський район, Світильня",84,2019-09-05,1523,"Заробітна плата, премії","Заробітна плата, лікарняні, вагітності, відрядження, компенсації",361269,Центральний офіс,37279703,Україна,"Заробітна плата за вересень, компен.за невик.відпустку",26009580176,state,16479.18,Сметана Тетяна Володимирівна,,фізична особа
РПЛ,Київ,84,2019-09-05,1523,"Заробітна плата, премії","Заробітна плата, лікарняні, вагітності, відрядження, компенсації",361268,Центральний офіс,37279703,Україна,"Заробітна плата за вересень, компен.за невик.відпустку",26009580176,state,8284.41,Самсонова Аліна Вікторівна,,фізична особа
РПЛ,"Київська обл., Васильків",84,2019-09-05,1523,"Заробітна плата, премії","Заробітна плата, лікарняні, вагітності, відрядження, компенсації",361267,Центральний офіс,37279703,Україна,"Заробітна плата за вересень, компен.за невик.відпустку",26009580176,state,10857.46,Криворучко Ігор Олегович,,фізична особа
РПЛ,"Луганська область, Сєвєродонецьк",84,2019-09-05,1523,"Заробітна плата, премії","Заробітна плата, лікарняні, вагітності, відрядження, компенсації",361266,Центральний офіс,37279703,Україна,"Заробітна плата за вересень, компен.за невик.відпустку",26009580176,state,628.99,Дроздова Олена Михайлівна,,фізична особа
РПЛ,"Вінницька область, Чернівецький район, Шендерівка",84,2019-09-05,1523,"Заробітна плата, премії","Заробітна плата, лікарняні, вагітності, відрядження, компенсації",361265,Центральний офіс,37279703,Україна,"Заробітна плата за вересень, компен.за невик.відпустку",26009580176,state,2481.66,Войцех Юлія Миколаївна,,фізична особа
РПЛ,"Київська обл., Обухівський район, Українка",84,2019-09-05,1523,"Заробітна плата, премії","Заробітна плата, лікарняні, вагітності, відрядження, компенсації",361264,Центральний офіс,37279703,Україна,"Заробітна плата за вересень, компен.за невик.відпустку",26009580176,state,5016.26,Байбула Юрій Михайлович,,фізична особа
РПЛ,"Запорізька область, Запоріжжя, вулиця Василя Сергієнка, 48А",70,2019-09-04,1518,Банківські послуги,Інші витрати,362310,Центральний офіс,37279703,Україна,Відрахування із зар.плати за 08. Хохлова Юрія Степановича,26009580176,state,2320.00,Хортицький ВДВ м. Запоріжжя,35037233,юридична особа
РПЛ,"Київ, вулиця Миколи Лєскова, 9",70,2019-09-04,1511,Банківські послуги,Інші витрати,362309,Центральний офіс,37279703,Україна,Комісія банку за зарахування коштів на СКР працівників,26009580176,state,1549.55,"АТ ""Райффайзен банк Аваль""",14305909,юридична особа
РПЛ,"Київ, вулиця Миколи Лєскова, 9",70,2019-09-04,1509,Банківські послуги,Інші витрати,362308,Центральний офіс,37279703,Україна,Комісія банку за зарахування коштів на СКР працівників,26009580176,state,1704.51,"АТ ""Райффайзен банк Аваль""",14305909,юридична особа
РПЛ,"Київ, вулиця Леоніда Первомайського, 9А",61,2019-09-04,1477,Військовий збір,Податкові платежі,361947,Центральний офіс,37279703,Україна,Військовий збір нарахований на доходи громадян-заробітна плата за серпень,26009580176,state,31021.00,УДКСУ у Шевченківському районі м. Києва,37995466,юридична особа
РПЛ,"Київ, вулиця Шолуденка, 33/19",62,2019-09-04,1478,Сплата ЄСВ,Податкові платежі,361831,Центральний офіс,37279703,Україна,ЄСВ нарахований на доходи громадян- заробітна плата за серпень,26009580176,state,438677.00,ГУ ДФС у м. Києві,39439980,юридична особа
РПЛ,"Київ, вулиця Леоніда Первомайського, 9А",63,2019-09-04,1476,Податок на доходи,Податкові платежі,361713,Центральний офіс,37279703,Україна,Податок на доходи фізичних осіб-заробітна плата за серпень,26009580176,state,372242.00,УДКСУ у Печерському районі м. Києва,38004897,юридична особа
РПЛ,"Харківська область, Люботин",84,2019-09-04,1517,"Заробітна плата, премії","Заробітна плата, лікарняні, вагітності, відрядження, компенсації",361263,Центральний офіс,37279703,Україна,"заробітна плата за липень, серпень",26009580176,state,8085.00,Левченко Анна Олексіївна,,фізична особа
РПЛ,"Харківська область, Харків",84,2019-09-04,1516,"Заробітна плата, премії","Заробітна плата, лікарняні, вагітності, відрядження, компенсації",361262,Центральний офіс,37279703,Україна,"заробітна плата за липень, серпень",26009580176,state,6300.00,Борисова Наталія Сергіївна,,фізична особа
РПЛ,"Харківська область, Люботин",84,2019-09-04,1515,"Заробітна плата, премії","Заробітна плата, лікарняні, вагітності, відрядження, компенсації",361261,Центральний офіс,37279703,Україна,"заробітна плата за липень, серпень",26009580176,state,8575.00,Сисенко Аліна Алімівна,,фізична особа
РПЛ,Київ,84,2019-09-04,1514,"Заробітна плата, премії","Заробітна плата, лікарняні, вагітності, відрядження, компенсації",361260,Центральний офіс,37279703,Україна,"заробітна плата за липень, серпень",26009580176,state,9187.49,Свінцицький Сергій Дмитрович,,фізична особа
РПЛ,"Черкаська область, Черкаси",84,2019-09-04,1513,"Заробітна плата, премії","Заробітна плата, лікарняні, вагітності, відрядження, компенсації",361259,Центральний офіс,37279703,Україна,"заробітна плата за липень, серпень",26009580176,state,5615.90,Лянна Тетяна Валеріївна,,фізична особа
РПЛ,"Львівська область, Львів",84,2019-09-04,1512,"Заробітна плата, премії","Заробітна плата, лікарняні, вагітності, відрядження, компенсації",361258,Центральний офіс,37279703,Україна,"заробітна плата за липень, серпень",26009580176,state,6944.31,Маліновський Володимир Степанович,,фізична особа
РПЛ,Київ,84,2019-09-04,1510,"Заробітна плата, премії","Заробітна плата, лікарняні, вагітності, відрядження, компенсації",361257,Центральний офіс,37279703,Україна,"заробітна плата за липень, серпень",26009580176,state,11007.45,Яковлєва Вероніка Павлівна,,фізична особа
РПЛ,м. Кропивницький,84,2019-09-04,1508,"Заробітна плата, премії","Заробітна плата, лікарняні, вагітності, відрядження, компенсації",361256,Центральний офіс,37279703,Україна,"заробітна плата за липень, серпень",26009580176,state,7067.09,Щуцька Тетяна Григорівна,,фізична особа
РПЛ,"Дніпропетровська область, Дніпро́",84,2019-09-04,1508,"Заробітна плата, премії","Заробітна плата, лікарняні, вагітності, відрядження, компенсації",361255,Центральний офіс,37279703,Україна,"заробітна плата за липень, серпень",26009580176,state,8598.33,Штогрін Тетяна Миколаївна,,фізична особа
РПЛ,"Волинська область, Маневицький район, Маневичі",84,2019-09-04,1508,"Заробітна плата, премії","Заробітна плата, лікарняні, вагітності, відрядження, компенсації",361254,Центральний офіс,37279703,Україна,"заробітна плата за липень, серпень",26009580176,state,8268.75,Шедько Тетяна Василівна,,фізична особа
РПЛ,"Київська обл., Миронівський район, Миронівка",84,2019-09-04,1510,"Заробітна плата, премії","Заробітна плата, лікарняні, вагітності, відрядження, компенсації",361253,Центральний офіс,37279703,Україна,"заробітна плата за липень, серпень",26009580176,state,21636.20,Цидик Роман Володимирович,,фізична особа
РПЛ,"Херсонська область, Херсон",84,2019-09-04,1508,"Заробітна плата, премії","Заробітна плата, лікарняні, вагітності, відрядження, компенсації",361252,Центральний офіс,37279703,Україна,"заробітна плата за липень, серпень",26009580176,state,9517.07,Цивільський Андрій Миколайович,,фізична особа
РПЛ,"Дніпропетровська область, Дніпро́",84,2019-09-04,1508,"Заробітна плата, премії","Заробітна плата, лікарняні, вагітності, відрядження, компенсації",361251,Центральний офіс,37279703,Україна,"заробітна плата за липень, серпень",26009580176,state,8904.58,Цаплін Євген Костянтинович,,фізична особа
РПЛ,"Чернівецька область, Кіцманський район, Витилівка",84,2019-09-04,1508,"Заробітна плата, премії","Заробітна плата, лікарняні, вагітності, відрядження, компенсації",361250,Центральний офіс,37279703,Україна,"заробітна плата за липень, серпень",26009580176,state,7067.09,Худик Ірина Іванівна,,фізична особа
РПЛ,"Запорізька область, Запоріжжя",84,2019-09-04,1508,"Заробітна плата, премії","Заробітна плата, лікарняні, вагітності, відрядження, компенсації",361249,Центральний офіс,37279703,Україна,"заробітна плата за липень, серпень",26009580176,state,6584.58,Хохлов Юрій Станіславович,,фізична особа
РПЛ,"Миколаївська область, Миколаїв",84,2019-09-04,1510,"Заробітна плата, премії","Заробітна плата, лікарняні, вагітності, відрядження, компенсації",361248,Центральний офіс,37279703,Україна,"заробітна плата за липень, серпень",26009580176,state,12250.00,Хомик Діана Валентинівна,,фізична особа
РПЛ,"Чернівецька область, Чернівці",84,2019-09-04,1508,"Заробітна плата, премії","Заробітна плата, лікарняні, вагітності, відрядження, компенсації",361247,Центральний офіс,37279703,Україна,"заробітна плата за липень, серпень",26009580176,state,5842.08,Фостій Олександр Олександрович,,фізична особа
РПЛ,Житомирська область,84,2019-09-04,1508,"Заробітна плата, премії","Заробітна плата, лікарняні, вагітності, відрядження, компенсації",361246,Центральний офіс,37279703,Україна,"заробітна плата за липень, серпень",26009580176,state,6847.39,Фещук Микола Андрійович,,фізична особа
РПЛ,"Житомирська область, Олевський район, Стовпинка",84,2019-09-04,1508,"Заробітна плата, премії","Заробітна плата, лікарняні, вагітності, відрядження, компенсації",361245,Центральний офіс,37279703,Україна,"заробітна плата за липень, серпень",26009580176,state,9287.67,Фещук Діана Аркадіївна,,фізична особа
РПЛ,"Київська обл., Бориспіль",84,2019-09-04,1510,"Заробітна плата, премії","Заробітна плата, лікарняні, вагітності, відрядження, компенсації",361244,Центральний офіс,37279703,Україна,"заробітна плата за липень, серпень",26009580176,state,20703.05,Федун Юрій Степанович,,фізична особа
РПЛ,"Вінницька область, Вінниця",84,2019-09-04,1508,"Заробітна плата, премії","Заробітна плата, лікарняні, вагітності, відрядження, компенсації",361243,Центральний офіс,37279703,Україна,"заробітна плата за липень, серпень",26009580176,state,8904.58,Федорова Ольга Іванівна,,фізична особа
РПЛ,"Івано-Франківська область, Долинський район, Долина",84,2019-09-04,1508,"Заробітна плата, премії","Заробітна плата, лікарняні, вагітності, відрядження, компенсації",361242,Центральний офіс,37279703,Україна,"заробітна плата за липень, серпень",26009580176,state,8904.58,Федів Іван Ігорович,,фізична особа
РПЛ,"Луганська область, Сєвєродонецьк",84,2019-09-04,1508,"Заробітна плата, премії","Заробітна плата, лікарняні, вагітності, відрядження, компенсації",361241,Центральний офіс,37279703,Україна,"заробітна плата за липень, серпень",26009580176,state,6935.87,Трощій Світлана Леонідівна,,фізична особа
РПЛ,Київ,84,2019-09-04,1510,"Заробітна плата, премії","Заробітна плата, лікарняні, вагітності, відрядження, компенсації",361240,Центральний офіс,37279703,Україна,"заробітна плата за липень, серпень",26009580176,state,21070.57,Торговець Юлія Василівна,,фізична особа
РПЛ,"Чернігівська область, Чернігів",84,2019-09-04,1508,"Заробітна плата, премії","Заробітна плата, лікарняні, вагітності, відрядження, компенсації",361239,Центральний офіс,37279703,Україна,"заробітна плата за липень, серпень",26009580176,state,5856.38,Ткаченко Тетяна Вадимівна,,фізична особа
РПЛ,Київ,84,2019-09-04,1508,"Заробітна плата, премії","Заробітна плата, лікарняні, вагітності, відрядження, компенсації",361238,Центральний офіс,37279703,Україна,"заробітна плата за липень, серпень",26009580176,state,517.66,Ткаченко Катерина Станіславівна,,фізична особа
РПЛ,"Київська обл., Володарський район, Володарка",84,2019-09-04,1508,"Заробітна плата, премії","Заробітна плата, лікарняні, вагітності, відрядження, компенсації",361237,Центральний офіс,37279703,Україна,"заробітна плата за липень, серпень",26009580176,state,6837.69,Тихонова Світлана Ігорівна,,фізична особа
РПЛ,"Львівська область, Львів",84,2019-09-04,1508,"Заробітна плата, премії","Заробітна плата, лікарняні, вагітності, відрядження, компенсації",361236,Центральний офіс,37279703,Україна,"заробітна плата за липень, серпень",26009580176,state,8475.55,Тернавський Віталій Богданович,,фізична особа
РПЛ,"Хмельницька область, Хмельницький",84,2019-09-04,1508,"Заробітна плата, премії","Заробітна плата, лікарняні, вагітності, відрядження, компенсації",361235,Центральний офіс,37279703,Україна,"заробітна плата за липень, серпень",26009580176,state,6737.51,Тарасюк Валентина Михайлівна,,фізична особа
РПЛ,"Чернігівська область, Чернігів",84,2019-09-04,1508,"Заробітна плата, премії","Заробітна плата, лікарняні, вагітності, відрядження, компенсації",361234,Центральний офіс,37279703,Україна,"заробітна плата за липень, серпень",26009580176,state,8904.58,Сухін Павло Сергійович,,фізична особа
РПЛ,"Полтавська область, Полтавський район, Копили",84,2019-09-04,1508,"Заробітна плата, премії","Заробітна плата, лікарняні, вагітності, відрядження, компенсації",361233,Центральний офіс,37279703,Україна,"заробітна плата за липень, серпень",26009580176,state,5512.50,Ступар Анастасія Василівна,,фізична особа
РПЛ,м. Кропивницький,84,2019-09-04,1508,"Заробітна плата, премії","Заробітна плата, лікарняні, вагітності, відрядження, компенсації",361232,Центральний офіс,37279703,Україна,"заробітна плата за липень, серпень",26009580176,state,9517.07,Сторчаус Віталій Сергійович,,фізична особа
РПЛ,"Тернопільська область, Тернопіль",84,2019-09-04,1508,"Заробітна плата, премії","Заробітна плата, лікарняні, вагітності, відрядження, компенсації",361231,Центральний офіс,37279703,Україна,"заробітна плата за липень, серпень",26009580176,state,9187.49,Стець Сергій Романович,,фізична особа
РПЛ,"Луганська область, Луганськ",84,2019-09-04,1508,"Заробітна плата, премії","Заробітна плата, лікарняні, вагітності, відрядження, компенсації",361230,Центральний офіс,37279703,Україна,"заробітна плата за липень, серпень",26009580176,state,8904.58,Старицький Владислав Олександрович,,фізична особа
РПЛ,"Чернігівська область, Чернігів",84,2019-09-04,1508,"Заробітна плата, премії","Заробітна плата, лікарняні, вагітності, відрядження, компенсації",361229,Центральний офіс,37279703,Україна,"заробітна плата за липень, серпень",26009580176,state,7067.09,Соломаха Сергій Васильович,,фізична особа
РПЛ,"Вінницька область, Вінниця",84,2019-09-04,1508,"Заробітна плата, премії","Заробітна плата, лікарняні, вагітності, відрядження, компенсації",361228,Центральний офіс,37279703,Україна,"заробітна плата за липень, серпень",26009580176,state,9517.07,Сокур Микола Миколайович,,фізична особа
РПЛ,"Чернігівська область, Чернігів",84,2019-09-04,1508,"Заробітна плата, премії","Заробітна плата, лікарняні, вагітності, відрядження, компенсації",361227,Центральний офіс,37279703,Україна,"заробітна плата за липень, серпень",26009580176,state,8904.58,Соколова Ольга Вікторівна,,фізична особа
РПЛ,"Чернігівська область, Чернігів",84,2019-09-04,1510,"Заробітна плата, премії","Заробітна плата, лікарняні, вагітності, відрядження, компенсації",361226,Центральний офіс,37279703,Україна,"заробітна плата за липень, серпень",26009580176,state,20703.05,Соколова Анжеліка Артурівна,,фізична особа
РПЛ,"Київська обл., Броварський район, Світильня",84,2019-09-04,1510,"Заробітна плата, премії","Заробітна плата, лікарняні, вагітності, відрядження, компенсації",361225,Центральний офіс,37279703,Україна,"заробітна плата за липень, серпень",26009580176,state,31410.78,Сметана Тетяна Володимирівна,,фізична особа
РПЛ,Київ,84,2019-09-04,1510,"Заробітна плата, премії","Заробітна плата, лікарняні, вагітності, відрядження, компенсації",361224,Центральний офіс,37279703,Україна,"заробітна плата за липень, серпень",26009580176,state,5212.10,Сірик Тетяна Василівна,,фізична особа
РПЛ,"Сумська область, Сумський район, Сад",84,2019-09-04,1508,"Заробітна плата, премії","Заробітна плата, лікарняні, вагітності, відрядження, компенсації",361223,Центральний офіс,37279703,Україна,"заробітна плата за липень, серпень",26009580176,state,6944.31,Сич Ірина Олександрівна,,фізична особа
РПЛ,"Сумська область, Сумський район, Суми",84,2019-09-04,1508,"Заробітна плата, премії","Заробітна плата, лікарняні, вагітності, відрядження, компенсації",361222,Центральний офіс,37279703,Україна,"заробітна плата за липень, серпень",26009580176,state,9517.07,Сидоренко Дарʼя Олександрівна,,фізична особа
РПЛ,"Львівська область, Львів",84,2019-09-04,1508,"Заробітна плата, премії","Заробітна плата, лікарняні, вагітності, відрядження, компенсації",361221,Центральний офіс,37279703,Україна,"заробітна плата за липень, серпень",26009580176,state,8692.32,Сидор Адріана Ігорівна,,фізична особа
РПЛ,"Волинська область, Луцьк",84,2019-09-04,1508,"Заробітна плата, премії","Заробітна плата, лікарняні, вагітності, відрядження, компенсації",361220,Центральний офіс,37279703,Україна,"заробітна плата за липень, серпень",26009580176,state,9517.07,Семчук Юрій Анатолійович,,фізична особа
РПЛ,Київ,84,2019-09-04,1510,"Заробітна плата, премії","Заробітна плата, лікарняні, вагітності, відрядження, компенсації",361219,Центральний офіс,37279703,Україна,"заробітна плата за липень, серпень",26009580176,state,19034.30,Самсонова Аліна Вікторівна,,фізична особа
РПЛ,"Луганська область, Сєвєродонецьк",84,2019-09-04,1508,"Заробітна плата, премії","Заробітна плата, лікарняні, вагітності, відрядження, компенсації",361218,Центральний офіс,37279703,Україна,"заробітна плата за липень, серпень",26009580176,state,9517.07,Руденко Ганна Володимирівна,,фізична особа
РПЛ,"Черкаська область, Черкаси",84,2019-09-04,1508,"Заробітна плата, премії","Заробітна плата, лікарняні, вагітності, відрядження, компенсації",361217,Центральний офіс,37279703,Україна,"заробітна плата за липень, серпень",26009580176,state,8904.58,Романча Андрій Юрійович,,фізична особа
РПЛ,"Одеська область, Одеса",84,2019-09-04,1508,"Заробітна плата, премії","Заробітна плата, лікарняні, вагітності, відрядження, компенсації",361216,Центральний офіс,37279703,Україна,"заробітна плата за липень, серпень",26009580176,state,6944.31,Розманін Олександр Петрович,,фізична особа
РПЛ,"Тернопільська область, Тернопільський район, Довжанка",84,2019-09-04,1508,"Заробітна плата, премії","Заробітна плата, лікарняні, вагітності, відрядження, компенсації",361215,Центральний офіс,37279703,Україна,"заробітна плата за липень, серпень",26009580176,state,7067.09,Репко Євгенія Олексіївна,,фізична особа
РПЛ,"Дніпропетровська область, Дніпро́",84,2019-09-04,1508,"Заробітна плата, премії","Заробітна плата, лікарняні, вагітності, відрядження, компенсації",361214,Центральний офіс,37279703,Україна,"заробітна плата за липень, серпень",26009580176,state,8904.58,Ревенко Юлія Сергіївна,,фізична особа
РПЛ,м. Кропивницький,84,2019-09-04,1508,"Заробітна плата, премії","Заробітна плата, лікарняні, вагітності, відрядження, компенсації",361213,Центральний офіс,37279703,Україна,"заробітна плата за липень, серпень",26009580176,state,6840.91,Пустовойт Марина Едуардівна,,фізична особа
РПЛ,Київ,84,2019-09-04,1510,"Заробітна плата, премії","Заробітна плата, лікарняні, вагітності, відрядження, компенсації",361212,Центральний офіс,37279703,Україна,"заробітна плата за липень, серпень",26009580176,state,20159.44,Пугачова Ярослава Павлівна,,фізична особа
РПЛ,"Донецька область, Маріуполь",84,2019-09-04,1508,"Заробітна плата, премії","Заробітна плата, лікарняні, вагітності, відрядження, компенсації",361211,Центральний офіс,37279703,Україна,"заробітна плата за липень, серпень",26009580176,state,8904.58,Прудніченко Алла Дмитрівна,,фізична особа
РПЛ,"Хмельницька область, Красилівський район, Красилів",84,2019-09-04,1508,"Заробітна плата, премії","Заробітна плата, лікарняні, вагітності, відрядження, компенсації",361210,Центральний офіс,37279703,Україна,"заробітна плата за липень, серпень",26009580176,state,4287.50,Процюк Наталія Юріївна,,фізична особа
РПЛ,"Київська обл., Обухівський район, Обухів",84,2019-09-04,1510,"Заробітна плата, премії","Заробітна плата, лікарняні, вагітності, відрядження, компенсації",361209,Центральний офіс,37279703,Україна,"заробітна плата за липень, серпень",26009580176,state,18985.08,Потеряйко Вадим Юрійович,,фізична особа
РПЛ,Київ,84,2019-09-04,1510,"Заробітна плата, премії","Заробітна плата, лікарняні, вагітності, відрядження, компенсації",361208,Центральний офіс,37279703,Україна,"заробітна плата за липень, серпень",26009580176,state,17950.20,Поліщук Анна Валентинівна,,фізична особа
РПЛ,"Рівненська область, Рівне",84,2019-09-04,1508,"Заробітна плата, премії","Заробітна плата, лікарняні, вагітності, відрядження, компенсації",361207,Центральний офіс,37279703,Україна,"заробітна плата за липень, серпень",26009580176,state,9394.29,Пікарська Оксана Миколаївна,,фізична особа
РПЛ,"Полтавська область, Полтава",84,2019-09-04,1508,"Заробітна плата, премії","Заробітна плата, лікарняні, вагітності, відрядження, компенсації",361206,Центральний офіс,37279703,Україна,"заробітна плата за липень, серпень",26009580176,state,12515.32,Пєшкова Світлана Григорівна,,фізична особа
РПЛ,Київ,84,2019-09-04,1510,"Заробітна плата, премії","Заробітна плата, лікарняні, вагітності, відрядження, компенсації",361205,Центральний офіс,37279703,Україна,"заробітна плата за липень, серпень",26009580176,state,9187.49,Перчета Андрій Ігорович,,фізична особа
РПЛ,"Одеська область, Одеса",84,2019-09-04,1508,"Заробітна плата, премії","Заробітна плата, лікарняні, вагітності, відрядження, компенсації",361204,Центральний офіс,37279703,Україна,"заробітна плата за липень, серпень",26009580176,state,8598.33,Перчеклій Микола Васильович,,фізична особа
РПЛ,Київ,84,2019-09-04,1508,"Заробітна плата, премії","Заробітна плата, лікарняні, вагітності, відрядження, компенсації",361203,Центральний офіс,37279703,Україна,"заробітна плата за липень, серпень",26009580176,state,8710.43,Парака Ярослава Володимирівна,,фізична особа
РПЛ,"Київська обл., Васильків",84,2019-09-04,1510,"Заробітна плата, премії","Заробітна плата, лікарняні, вагітності, відрядження, компенсації",361202,Центральний офіс,37279703,Україна,"заробітна плата за липень, серпень",26009580176,state,19476.00,Падурець Людмила Володимирівна,,фізична особа
РПЛ,"Київська обл., Біла Церква",84,2019-09-04,1510,"Заробітна плата, премії","Заробітна плата, лікарняні, вагітності, відрядження, компенсації",361201,Центральний офіс,37279703,Україна,"заробітна плата за липень, серпень",26009580176,state,7288.75,Остапенко Сергій Анатолійович,,фізична особа
РПЛ,"Рівненська область, Рівненський район, Кустин",84,2019-09-04,1508,"Заробітна плата, премії","Заробітна плата, лікарняні, вагітності, відрядження, компенсації",361200,Центральний офіс,37279703,Україна,"заробітна плата за липень, серпень",26009580176,state,8222.08,Оксенюк Антон Олексійович,,фізична особа
РПЛ,Київ,84,2019-09-04,1510,"Заробітна плата, премії","Заробітна плата, лікарняні, вагітності, відрядження, компенсації",361199,Центральний офіс,37279703,Україна,"заробітна плата за липень, серпень",26009580176,state,16905.56,Новохацька Олександра Вікторівна,,фізична особа
РПЛ,Київ,84,2019-09-04,1510,"Заробітна плата, премії","Заробітна плата, лікарняні, вагітності, відрядження, компенсації",361198,Центральний офіс,37279703,Україна,"заробітна плата за липень, серпень",26009580176,state,21070.57,Нечипорук Олександр Григорович,,фізична особа
РПЛ,"Одеська область, Одеса",84,2019-09-04,1508,"Заробітна плата, премії","Заробітна плата, лікарняні, вагітності, відрядження, компенсації",361197,Центральний офіс,37279703,Україна,"заробітна плата за липень, серпень",26009580176,state,8012.08,Неводчікова Ганна Ігорівна,,фізична особа
РПЛ,"Рівненська область, Рівненський район, Городок",84,2019-09-04,1508,"Заробітна плата, премії","Заробітна плата, лікарняні, вагітності, відрядження, компенсації",361196,Центральний офіс,37279703,Україна,"заробітна плата за липень, серпень",26009580176,state,5842.08,Наумець Надія Стефанівна,,фізична особа
РПЛ,"Херсонська область, Херсон",84,2019-09-04,1508,"Заробітна плата, премії","Заробітна плата, лікарняні, вагітності, відрядження, компенсації",361195,Центральний офіс,37279703,Україна,"заробітна плата за липень, серпень",26009580176,state,5512.50,Найдьонова Анастасія Юріївна,,фізична особа
РПЛ,"Рівненська область, Рівне",84,2019-09-04,1508,"Заробітна плата, премії","Заробітна плата, лікарняні, вагітності, відрядження, компенсації",361194,Центральний офіс,37279703,Україна,"заробітна плата за липень, серпень",26009580176,state,8904.58,Назарчук Юлія Юріївна,,фізична особа
РПЛ,"Львівська область, Городоцький район, Керниця",84,2019-09-04,1508,"Заробітна плата, премії","Заробітна плата, лікарняні, вагітності, відрядження, компенсації",361193,Центральний офіс,37279703,Україна,"заробітна плата за липень, серпень",26009580176,state,8372.15,Назарчук Наталія Андріївна,,фізична особа
РПЛ,"Тернопільська область, Збаразький район, Травневе",84,2019-09-04,1508,"Заробітна плата, премії","Заробітна плата, лікарняні, вагітності, відрядження, компенсації",361192,Центральний офіс,37279703,Україна,"заробітна плата за липень, серпень",26009580176,state,8575.00,Назар Наталія Степанівна,,фізична особа
РПЛ,"Полтавська область, Полтава",84,2019-09-04,1508,"Заробітна плата, премії","Заробітна плата, лікарняні, вагітності, відрядження, компенсації",361191,Центральний офіс,37279703,Україна,"заробітна плата за липень, серпень",26009580176,state,6944.31,Мороз Максим Вікторович,,фізична особа
РПЛ,"Полтавська область, Лубенський район, Новооріхівка",84,2019-09-04,1508,"Заробітна плата, премії","Заробітна плата, лікарняні, вагітності, відрядження, компенсації",361190,Центральний офіс,37279703,Україна,"заробітна плата за липень, серпень",26009580176,state,4593.75,Моренко Лідія Сергіївна,,фізична особа
РПЛ,"Полтавська область, Лубенський район, Новооріхівка",84,2019-09-04,1508,"Заробітна плата, премії","Заробітна плата, лікарняні, вагітності, відрядження, компенсації",361189,Центральний офіс,37279703,Україна,"заробітна плата за липень, серпень",26009580176,state,4593.75,Мірошниченко Віталій Григорович,,фізична особа
РПЛ,"Запорізька область, Запоріжжя",84,2019-09-04,1508,"Заробітна плата, премії","Заробітна плата, лікарняні, вагітності, відрядження, компенсації",361188,Центральний офіс,37279703,Україна,"заробітна плата за липень, серпень",26009580176,state,3368.75,Міненко Ірина Анатоліївна,,фізична особа
РПЛ,"Вінницька область, Вінниця",84,2019-09-04,1508,"Заробітна плата, премії","Заробітна плата, лікарняні, вагітності, відрядження, компенсації",361187,Центральний офіс,37279703,Україна,"заробітна плата за липень, серпень",26009580176,state,5842.08,Мисака Дарʼя Вячеславівна,,фізична особа
РПЛ,Київ,84,2019-09-04,1510,"Заробітна плата, премії","Заробітна плата, лікарняні, вагітності, відрядження, компенсації",361186,Центральний офіс,37279703,Україна,"заробітна плата за липень, серпень",26009580176,state,28221.49,Мелещук Наталія Володимирівна,,фізична особа
РПЛ,Київ,84,2019-09-04,1510,"Заробітна плата, премії","Заробітна плата, лікарняні, вагітності, відрядження, компенсації",361185,Центральний офіс,37279703,Україна,"заробітна плата за липень, серпень",26009580176,state,20787.07,Машир Олександр Іванович,,фізична особа
РПЛ,"Тернопільська область, Тернопіль",84,2019-09-04,1508,"Заробітна плата, премії","Заробітна плата, лікарняні, вагітності, відрядження, компенсації",361184,Центральний офіс,37279703,Україна,"заробітна плата за липень, серпень",26009580176,state,9592.92,Мацюк Роман Володимирович,,фізична особа
РПЛ,"Полтавська область, Полтава",84,2019-09-04,1510,"Заробітна плата, премії","Заробітна плата, лікарняні, вагітності, відрядження, компенсації",361183,Центральний офіс,37279703,Україна,"заробітна плата за липень, серпень",26009580176,state,18115.38,Матяш Руслан Анатолійович,,фізична особа
РПЛ,"Черкаська область, Черкаси",84,2019-09-04,1508,"Заробітна плата, премії","Заробітна плата, лікарняні, вагітності, відрядження, компенсації",361182,Центральний офіс,37279703,Україна,"заробітна плата за липень, серпень",26009580176,state,9517.07,Мартюшева Наталія Вікторівна,,фізична особа
РПЛ,Київ,84,2019-09-04,1510,"Заробітна плата, премії","Заробітна плата, лікарняні, вагітності, відрядження, компенсації",361181,Центральний офіс,37279703,Україна,"заробітна плата за липень, серпень",26009580176,state,18481.34,Макарова Юлія Миколаївна,,фізична особа
РПЛ,"Одеська область, Одеса",84,2019-09-04,1508,"Заробітна плата, премії","Заробітна плата, лікарняні, вагітності, відрядження, компенсації",361180,Центральний офіс,37279703,Україна,"заробітна плата за липень, серпень",26009580176,state,9517.07,Лисейко Оксана Вікторівна,,фізична особа
РПЛ,Київ,84,2019-09-04,1510,"Заробітна плата, премії","Заробітна плата, лікарняні, вагітності, відрядження, компенсації",361179,Центральний офіс,37279703,Україна,"заробітна плата за липень, серпень",26009580176,state,16699.47,Линовицький Ігор Олександрович,,фізична особа
РПЛ,"Львівська область, Турківський район, Турка",84,2019-09-04,1508,"Заробітна плата, премії","Заробітна плата, лікарняні, вагітності, відрядження, компенсації",361178,Центральний офіс,37279703,Україна,"заробітна плата за липень, серпень",26009580176,state,5719.30,Левченко Анастасія Едуардівна,,фізична особа
РПЛ,"Сумська область, Сумський район, Суми",84,2019-09-04,1508,"Заробітна плата, премії","Заробітна плата, лікарняні, вагітності, відрядження, компенсації",361177,Центральний офіс,37279703,Україна,"заробітна плата за липень, серпень",26009580176,state,8678.40,Левенко Марина Володимирівна,,фізична особа
РПЛ,"Дніпропетровська область, Дніпро́",84,2019-09-04,1508,"Заробітна плата, премії","Заробітна плата, лікарняні, вагітності, відрядження, компенсації",361176,Центральний офіс,37279703,Україна,"заробітна плата за липень, серпень",26009580176,state,7067.09,Лашкевич Олена Леонідівна,,фізична особа
РПЛ,"Житомирська область, Коростенський район, Сингаї",84,2019-09-04,1508,"Заробітна плата, премії","Заробітна плата, лікарняні, вагітності, відрядження, компенсації",361175,Центральний офіс,37279703,Україна,"заробітна плата за липень, серпень",26009580176,state,6737.51,Лазаренко Анатолій Іванович,,фізична особа
РПЛ,Київ,84,2019-09-04,1510,"Заробітна плата, премії","Заробітна плата, лікарняні, вагітності, відрядження, компенсації",361174,Центральний офіс,37279703,Україна,"заробітна плата за липень, серпень",26009580176,state,20703.05,Куц Тарас Федорович,,фізична особа
РПЛ,"Київська обл., Києво-Святошинський район, Чабани",84,2019-09-04,1508,"Заробітна плата, премії","Заробітна плата, лікарняні, вагітності, відрядження, компенсації",361173,Центральний офіс,37279703,Україна,"заробітна плата за липень, серпень",26009580176,state,5612.68,Кухарук Володимир Васильович,,фізична особа
РПЛ,"Черкаська область, Черкаський район, Дубіївка",84,2019-09-04,1510,"Заробітна плата, премії","Заробітна плата, лікарняні, вагітності, відрядження, компенсації",361172,Центральний офіс,37279703,Україна,"заробітна плата за липень, серпень",26009580176,state,19756.08,Кутілова Вікторія Володимирівна,,фізична особа
РПЛ,"Львівська область, Городоцький район",84,2019-09-04,1508,"Заробітна плата, премії","Заробітна плата, лікарняні, вагітності, відрядження, компенсації",361171,Центральний офіс,37279703,Україна,"заробітна плата за липень, серпень",26009580176,state,9340.81,Кузьмин Марина Миколаївна,,фізична особа
РПЛ,"Івано-Франківська область, Тисменицький район, Чукалівка",84,2019-09-04,1508,"Заробітна плата, премії","Заробітна плата, лікарняні, вагітності, відрядження, компенсації",361170,Центральний офіс,37279703,Україна,"заробітна плата за липень, серпень",26009580176,state,9517.07,Кривченко Тетяна Миколаївна,,фізична особа
РПЛ,"Київська обл., Васильків",84,2019-09-04,1510,"Заробітна плата, премії","Заробітна плата, лікарняні, вагітності, відрядження, компенсації",361169,Центральний офіс,37279703,Україна,"заробітна плата за липень, серпень",26009580176,state,19047.84,Криворучко Ігор Олегович,,фізична особа
РПЛ,"Київська обл., Вишгородський район, Тарасівщина",84,2019-09-04,1510,"Заробітна плата, премії","Заробітна плата, лікарняні, вагітності, відрядження, компенсації",361168,Центральний офіс,37279703,Україна,"заробітна плата за липень, серпень",26009580176,state,18742.50,Крамар Оксана Станіславівна,,фізична особа
РПЛ,"Чернігівська область, Ічнянський район, Ічня",84,2019-09-04,1508,"Заробітна плата, премії","Заробітна плата, лікарняні, вагітності, відрядження, компенсації",361167,Центральний офіс,37279703,Україна,"заробітна плата за липень, серпень",26009580176,state,4593.75,Крамаренко Сергій Миколайович,,фізична особа
РПЛ,Київ,84,2019-09-04,1510,"Заробітна плата, премії","Заробітна плата, лікарняні, вагітності, відрядження, компенсації",361166,Центральний офіс,37279703,Україна,"заробітна плата за липень, серпень",26009580176,state,16905.56,Кравченко Сергій Вікторович,,фізична особа
РПЛ,"Київська обл., Бровари",84,2019-09-04,1508,"Заробітна плата, премії","Заробітна плата, лікарняні, вагітності, відрядження, компенсації",361165,Центральний офіс,37279703,Україна,"заробітна плата за липень, серпень",26009580176,state,8904.58,Кравченко Олександр Миколайович,,фізична особа
РПЛ,Тернопільська область,84,2019-09-04,1508,"Заробітна плата, премії","Заробітна плата, лікарняні, вагітності, відрядження, компенсації",361164,Центральний офіс,37279703,Україна,"заробітна плата за липень, серпень",26009580176,state,5612.68,Кошляк Вікторія Михайлівна,,фізична особа
РПЛ,"Івано-Франківська область, Івано-Франківськ",84,2019-09-04,1508,"Заробітна плата, премії","Заробітна плата, лікарняні, вагітності, відрядження, компенсації",361163,Центральний офіс,37279703,Україна,"заробітна плата за липень, серпень",26009580176,state,7067.09,Кочержук Вячеслав Володимирович,,фізична особа
РПЛ,"Сумська область, Сумський район, Суми",84,2019-09-04,1508,"Заробітна плата, премії","Заробітна плата, лікарняні, вагітності, відрядження, компенсації",361162,Центральний офіс,37279703,Україна,"заробітна плата за липень, серпень",26009580176,state,5512.50,Кохана Віра Сергіївна,,фізична особа
РПЛ,Київ,84,2019-09-04,1510,"Заробітна плата, премії","Заробітна плата, лікарняні, вагітності, відрядження, компенсації",361161,Центральний офіс,37279703,Україна,"заробітна плата за липень, серпень",26009580176,state,20156.46,Короткий Геннадій Леонідович,,фізична особа
РПЛ,"Черкаська область, Черкаси",84,2019-09-04,1508,"Заробітна плата, премії","Заробітна плата, лікарняні, вагітності, відрядження, компенсації",361160,Центральний офіс,37279703,Україна,"заробітна плата за липень, серпень",26009580176,state,4287.50,Короп Наталія Іванівна,,фізична особа
РПЛ,"Донецька область, Маріуполь",84,2019-09-04,1508,"Заробітна плата, премії","Заробітна плата, лікарняні, вагітності, відрядження, компенсації",361159,Центральний офіс,37279703,Україна,"заробітна плата за липень, серпень",26009580176,state,9517.07,Коробських Сергій Олександрович,,фізична особа
РПЛ,"Донецька область, Маріуполь",84,2019-09-04,1508,"Заробітна плата, премії","Заробітна плата, лікарняні, вагітності, відрядження, компенсації",361158,Центральний офіс,37279703,Україна,"заробітна плата за липень, серпень",26009580176,state,8575.00,Корицька Олена Олександрівна,,фізична особа
РПЛ,"Донецька область, Маріуполь",84,2019-09-04,1508,"Заробітна плата, премії","Заробітна плата, лікарняні, вагітності, відрядження, компенсації",361157,Центральний офіс,37279703,Україна,"заробітна плата за липень, серпень",26009580176,state,5842.08,Корицька Крістіна Анатоліївна,,фізична особа
РПЛ,Київ,84,2019-09-04,1508,"Заробітна плата, премії","Заробітна плата, лікарняні, вагітності, відрядження, компенсації",361156,Центральний офіс,37279703,Україна,"заробітна плата за липень, серпень",26009580176,state,9517.07,Кондюх Андрій Олегович,,фізична особа
РПЛ,"Рівненська область, Рівненський район, Велика Омеляна",84,2019-09-04,1508,"Заробітна плата, премії","Заробітна плата, лікарняні, вагітності, відрядження, компенсації",361155,Центральний офіс,37279703,Україна,"заробітна плата за липень, серпень",26009580176,state,8575.00,Конєва Тетяна Михайлівна,,фізична особа
РПЛ,"Чернігівська область, Чернігів",84,2019-09-04,1510,"Заробітна плата, премії","Заробітна плата, лікарняні, вагітності, відрядження, компенсації",361154,Центральний офіс,37279703,Україна,"заробітна плата за липень, серпень",26009580176,state,9517.07,Коверзнева Марина Віталіївна,,фізична особа
РПЛ,"Волинська область, Луцьк",84,2019-09-04,1508,"Заробітна плата, премії","Заробітна плата, лікарняні, вагітності, відрядження, компенсації",361153,Центральний офіс,37279703,Україна,"заробітна плата за липень, серпень",26009580176,state,11560.69,Ковальчук Віктор Євгенович,,фізична особа
РПЛ,"Чернігівська область, Городнянський район, Городня",84,2019-09-04,1508,"Заробітна плата, премії","Заробітна плата, лікарняні, вагітності, відрядження, компенсації",361152,Центральний офіс,37279703,Україна,"заробітна плата за липень, серпень",26009580176,state,4923.33,Климович Тетяна Вікторівна,,фізична особа
РПЛ,"Одеська область, Тарутинський район, Тарутине",84,2019-09-04,1508,"Заробітна плата, премії","Заробітна плата, лікарняні, вагітності, відрядження, компенсації",361151,Центральний офіс,37279703,Україна,"заробітна плата за липень, серпень",26009580176,state,8904.58,Кисса Святослав Вікторович,,фізична особа
РПЛ,"Миколаївська область, Миколаїв",84,2019-09-04,1508,"Заробітна плата, премії","Заробітна плата, лікарняні, вагітності, відрядження, компенсації",361150,Центральний офіс,37279703,Україна,"заробітна плата за липень, серпень",26009580176,state,8459.32,Карлашевич Євген Володимирович,,фізична особа
РПЛ,Київ,84,2019-09-04,1510,"Заробітна плата, премії","Заробітна плата, лікарняні, вагітності, відрядження, компенсації",361149,Центральний офіс,37279703,Україна,"заробітна плата за липень, серпень",26009580176,state,14577.50,Карімов Осман Мусайович,,фізична особа
РПЛ,"Херсонська область, Херсон",84,2019-09-04,1508,"Заробітна плата, премії","Заробітна плата, лікарняні, вагітності, відрядження, компенсації",361148,Центральний офіс,37279703,Україна,"заробітна плата за липень, серпень",26009580176,state,6584.58,Іванов Роман Анатолійович,,фізична особа
РПЛ,"Одеська область, Одеса",84,2019-09-04,1508,"Заробітна плата, премії","Заробітна плата, лікарняні, вагітності, відрядження, компенсації",361147,Центральний офіс,37279703,Україна,"заробітна плата за липень, серпень",26009580176,state,8598.33,Зубок Михайло Леонідович,,фізична особа
РПЛ,"Чернівецька область, Чернівці",84,2019-09-04,1510,"Заробітна плата, премії","Заробітна плата, лікарняні, вагітності, відрядження, компенсації",361146,Центральний офіс,37279703,Україна,"заробітна плата за липень, серпень",26009580176,state,21070.57,Закієв Артур Вячеславович,,фізична особа
РПЛ,Київська обл.,84,2019-09-04,1508,"Заробітна плата, премії","Заробітна плата, лікарняні, вагітності, відрядження, компенсації",361145,Центральний офіс,37279703,Україна,"заробітна плата за липень, серпень",26009580176,state,8904.58,Заваліна Ксенія Валеріївна,,фізична особа
РПЛ,"Запорізька область, Запоріжжя",84,2019-09-04,1508,"Заробітна плата, премії","Заробітна плата, лікарняні, вагітності, відрядження, компенсації",361144,Центральний офіс,37279703,Україна,"заробітна плата за липень, серпень",26009580176,state,7067.09,Єршова Надія Геннадіївна,,фізична особа
РПЛ,Київ,84,2019-09-04,1510,"Заробітна плата, премії","Заробітна плата, лікарняні, вагітності, відрядження, компенсації",361143,Центральний офіс,37279703,Україна,"заробітна плата за липень, серпень",26009580176,state,19476.00,Євтушенко Наталія Федорівна,,фізична особа
РПЛ,"Луганська область, Сєвєродонецьк",84,2019-09-04,1508,"Заробітна плата, премії","Заробітна плата, лікарняні, вагітності, відрядження, компенсації",361142,Центральний офіс,37279703,Україна,"заробітна плата за липень, серпень",26009580176,state,5817.23,Дроздова Олена Михайлівна,,фізична особа
РПЛ,"Житомирська область, Житомир",84,2019-09-04,1508,"Заробітна плата, премії","Заробітна плата, лікарняні, вагітності, відрядження, компенсації",361141,Центральний офіс,37279703,Україна,"заробітна плата за липень, серпень",26009580176,state,8961.65,Довбня Юлія Володимирівна,,фізична особа
РПЛ,"Київська обл., Біла Церква",84,2019-09-04,1510,"Заробітна плата, премії","Заробітна плата, лікарняні, вагітності, відрядження, компенсації",361140,Центральний офіс,37279703,Україна,"заробітна плата за липень, серпень",26009580176,state,20892.75,Дністрян Володимир Семенович,,фізична особа
РПЛ,"Сумська область, Сумський район, Суми",84,2019-09-04,1508,"Заробітна плата, премії","Заробітна плата, лікарняні, вагітності, відрядження, компенсації",361139,Центральний офіс,37279703,Україна,"заробітна плата за липень, серпень",26009580176,state,7067.09,Демеха Сергій Васильович,,фізична особа
РПЛ,"Хмельницька область, Хмельницький",84,2019-09-04,1508,"Заробітна плата, премії","Заробітна плата, лікарняні, вагітності, відрядження, компенсації",361138,Центральний офіс,37279703,Україна,"заробітна плата за липень, серпень",26009580176,state,9187.49,Дашевський Олександр Валерійович,,фізична особа
РПЛ,"Хмельницька область, Хмельницький",84,2019-09-04,1508,"Заробітна плата, премії","Заробітна плата, лікарняні, вагітності, відрядження, компенсації",361137,Центральний офіс,37279703,Україна,"заробітна плата за липень, серпень",26009580176,state,5842.08,Данілкова Марина Юріївна,,фізична особа
РПЛ,"Чернігівська область, Сновський район, Сновськ",84,2019-09-04,1510,"Заробітна плата, премії","Заробітна плата, лікарняні, вагітності, відрядження, компенсації",361136,Центральний офіс,37279703,Україна,"заробітна плата за липень, серпень",26009580176,state,10710.00,Данильченко Ніна Василівна,,фізична особа
РПЛ,Київ,84,2019-09-04,1510,"Заробітна плата, премії","Заробітна плата, лікарняні, вагітності, відрядження, компенсації",361135,Центральний офіс,37279703,Україна,"заробітна плата за липень, серпень",26009580176,state,22395.06,Даниленко Антон Олександрович,,фізична особа
РПЛ,"Запорізька область, Запоріжжя",84,2019-09-04,1508,"Заробітна плата, премії","Заробітна плата, лікарняні, вагітності, відрядження, компенсації",361134,Центральний офіс,37279703,Україна,"заробітна плата за липень, серпень",26009580176,state,8904.59,Гусейнова Марія Юріївна,,фізична особа
РПЛ,"Донецька область, Маріуполь",84,2019-09-04,1508,"Заробітна плата, премії","Заробітна плата, лікарняні, вагітності, відрядження, компенсації",361133,Центральний офіс,37279703,Україна,"заробітна плата за липень, серпень",26009580176,state,7067.09,Горох Юрій Анатолійович,,фізична особа
РПЛ,"Чернівецька область, Заставнівський район, Заставна",84,2019-09-04,1508,"Заробітна плата, премії","Заробітна плата, лікарняні, вагітності, відрядження, компенсації",361132,Центральний офіс,37279703,Україна,"заробітна плата за липень, серпень",26009580176,state,7067.09,Гольцов Леонід Петрович,,фізична особа
РПЛ,"Івано-Франківська область, Тисменицький район, Старий Лисець",84,2019-09-04,1508,"Заробітна плата, премії","Заробітна плата, лікарняні, вагітності, відрядження, компенсації",361131,Центральний офіс,37279703,Україна,"заробітна плата за липень, серпень",26009580176,state,8904.58,Голинський Ігор Михайлович,,фізична особа
РПЛ,м. Кропивницький,84,2019-09-04,1508,"Заробітна плата, премії","Заробітна плата, лікарняні, вагітності, відрядження, компенсації",361130,Центральний офіс,37279703,Україна,"заробітна плата за липень, серпень",26009580176,state,6300.00,Глушко Світлана Михайлівна,,фізична особа
РПЛ,"Донецька область, Маріуполь",84,2019-09-04,1508,"Заробітна плата, премії","Заробітна плата, лікарняні, вагітності, відрядження, компенсації",361129,Центральний офіс,37279703,Україна,"заробітна плата за липень, серпень",26009580176,state,8598.33,Глєбова Яна Олександрівна,,фізична особа
РПЛ,"Хмельницька область, Хмельницький",84,2019-09-04,1508,"Заробітна плата, премії","Заробітна плата, лікарняні, вагітності, відрядження, компенсації",361128,Центральний офіс,37279703,Україна,"заробітна плата за липень, серпень",26009580176,state,7067.09,Герас Ігор Богданович,,фізична особа
РПЛ,"Чернігівська область, Чернігів",84,2019-09-04,1508,"Заробітна плата, премії","Заробітна плата, лікарняні, вагітності, відрядження, компенсації",361127,Центральний офіс,37279703,Україна,"заробітна плата за липень, серпень",26009580176,state,7067.09,Галаган Ольга Сергіївна,,фізична особа
РПЛ,"Вінницька область, Немирівський район, Немирів",84,2019-09-04,1508,"Заробітна плата, премії","Заробітна плата, лікарняні, вагітності, відрядження, компенсації",361126,Центральний офіс,37279703,Україна,"заробітна плата за липень, серпень",26009580176,state,6837.69,Гаєвська Галина Петрівна,,фізична особа
РПЛ,"Полтавська область, Полтава",84,2019-09-04,1508,"Заробітна плата, премії","Заробітна плата, лікарняні, вагітності, відрядження, компенсації",361125,Центральний офіс,37279703,Україна,"заробітна плата за липень, серпень",26009580176,state,8904.58,Гавриш Світлана Іванівна,,фізична особа
РПЛ,"Волинська область, Рожищенський район, Копачівка",84,2019-09-04,1508,"Заробітна плата, премії","Заробітна плата, лікарняні, вагітності, відрядження, компенсації",361124,Центральний офіс,37279703,Україна,"заробітна плата за липень, серпень",26009580176,state,8904.58,Воробйова Жанна Миколаївна,,фізична особа
РПЛ,"Вінницька область, Чернівецький район, Шендерівка",84,2019-09-04,1508,"Заробітна плата, премії","Заробітна плата, лікарняні, вагітності, відрядження, компенсації",361123,Центральний офіс,37279703,Україна,"заробітна плата за липень, серпень",26009580176,state,9411.22,Войцех Юлія Миколаївна,,фізична особа
РПЛ,"Львівська область, Львів",84,2019-09-04,1508,"Заробітна плата, премії","Заробітна плата, лікарняні, вагітності, відрядження, компенсації",361122,Центральний офіс,37279703,Україна,"заробітна плата за липень, серпень",26009580176,state,3368.75,Вітик Оксана Петрівна,,фізична особа
РПЛ,Київ,84,2019-09-04,1510,"Заробітна плата, премії","Заробітна плата, лікарняні, вагітності, відрядження, компенсації",361121,Центральний офіс,37279703,Україна,"заробітна плата за липень, серпень",26009580176,state,10092.74,Відмиш Євген Аркадійович,,фізична особа
РПЛ,"Миколаївська область, Миколаїв",84,2019-09-04,1510,"Заробітна плата, премії","Заробітна плата, лікарняні, вагітності, відрядження, компенсації",361120,Центральний офіс,37279703,Україна,"заробітна плата за липень, серпень",26009580176,state,18842.68,Виноградова Ольга Сергіївна,,фізична особа
РПЛ,Київ,84,2019-09-04,1510,"Заробітна плата, премії","Заробітна плата, лікарняні, вагітності, відрядження, компенсації",361119,Центральний офіс,37279703,Україна,"заробітна плата за липень, серпень",26009580176,state,8575.00,Василенко Ніна Дмитрівна,,фізична особа
РПЛ,"Хмельницька область, Хмельницький",84,2019-09-04,1508,"Заробітна плата, премії","Заробітна плата, лікарняні, вагітності, відрядження, компенсації",361118,Центральний офіс,37279703,Україна,"заробітна плата за липень, серпень",26009580176,state,8904.58,Брезденюк Аліна Олегівна,,фізична особа
РПЛ,Київ,84,2019-09-04,1510,"Заробітна плата, премії","Заробітна плата, лікарняні, вагітності, відрядження, компенсації",361117,Центральний офіс,37279703,Україна,"заробітна плата за липень, серпень",26009580176,state,20703.05,Бондаренко Юрій Леонідович,,фізична особа
РПЛ,"Луганська область, Сєвєродонецьк",84,2019-09-04,1508,"Заробітна плата, премії","Заробітна плата, лікарняні, вагітності, відрядження, компенсації",361116,Центральний офіс,37279703,Україна,"заробітна плата за липень, серпень",26009580176,state,6847.39,Бондаренко Андрій Васильович,,фізична особа
РПЛ,"Хмельницька область, Полонський район, Хмельницький",84,2019-09-04,1508,"Заробітна плата, премії","Заробітна плата, лікарняні, вагітності, відрядження, компенсації",361115,Центральний офіс,37279703,Україна,"заробітна плата за липень, серпень",26009580176,state,8904.58,Богачик Яна Валентинівна,,фізична особа
РПЛ,Київ,84,2019-09-04,1510,"Заробітна плата, премії","Заробітна плата, лікарняні, вагітності, відрядження, компенсації",361114,Центральний офіс,37279703,Україна,"заробітна плата за липень, серпень",26009580176,state,20479.47,Бистрякова Юлія Ігорівна,,фізична особа
РПЛ,Київ,84,2019-09-04,1510,"Заробітна плата, премії","Заробітна плата, лікарняні, вагітності, відрядження, компенсації",361113,Центральний офіс,37279703,Україна,"заробітна плата за липень, серпень",26009580176,state,17028.06,Бєлов Ігор Ігорович,,фізична особа
РПЛ,Київ,84,2019-09-04,1510,"Заробітна плата, премії","Заробітна плата, лікарняні, вагітності, відрядження, компенсації",361112,Центральний офіс,37279703,Україна,"заробітна плата за липень, серпень",26009580176,state,18586.71,Безпалько Вʼячеслав Андрійович,,фізична особа
РПЛ,"Київська обл., Бородянський район, Шибене",84,2019-09-04,1510,"Заробітна плата, премії","Заробітна плата, лікарняні, вагітності, відрядження, компенсації",361111,Центральний офіс,37279703,Україна,"заробітна плата за липень, серпень",26009580176,state,20974.57,Бардаш Олег Миколайович,,фізична особа
РПЛ,"Вінницька область, Ладижин",84,2019-09-04,1510,"Заробітна плата, премії","Заробітна плата, лікарняні, вагітності, відрядження, компенсації",361110,Центральний офіс,37279703,Україна,"заробітна плата за липень, серпень",26009580176,state,9187.49,Базанков Максим Сергійович,,фізична особа
РПЛ,"Київська обл., Обухівський район, Українка",84,2019-09-04,1508,"Заробітна плата, премії","Заробітна плата, лікарняні, вагітності, відрядження, компенсації",361109,Центральний офіс,37279703,Україна,"заробітна плата за липень, серпень",26009580176,state,8598.33,Байбула Юрій Михайлович,,фізична особа
РПЛ,"Миколаївська область, Миколаїв",84,2019-09-04,1508,"Заробітна плата, премії","Заробітна плата, лікарняні, вагітності, відрядження, компенсації",361108,Центральний офіс,37279703,Україна,"заробітна плата за липень, серпень",26009580176,state,11535.41,Баженов Сергій Владиславович,,фізична особа
РПЛ,"Херсонська область, Олешківський район, Привітне",84,2019-09-04,1508,"Заробітна плата, премії","Заробітна плата, лікарняні, вагітності, відрядження, компенсації",361107,Центральний офіс,37279703,Україна,"заробітна плата за липень, серпень",26009580176,state,8904.58,Ахтулова Альона Олександрівна,,фізична особа
РПЛ,"Черкаська область, Черкаси",84,2019-09-04,1508,"Заробітна плата, премії","Заробітна плата, лікарняні, вагітності, відрядження, компенсації",361106,Центральний офіс,37279703,Україна,"заробітна плата за липень, серпень",26009580176,state,8781.80,Асанова Інна Володимирівна,,фізична особа
РПЛ,"Закарпатська область, Ужгород",84,2019-09-04,1508,"Заробітна плата, премії","Заробітна плата, лікарняні, вагітності, відрядження, компенсації",361105,Центральний офіс,37279703,Україна,"заробітна плата за липень, серпень",26009580176,state,8575.00,Андрушко Кветослава Антонівна,,фізична особа
РПЛ,"Волинська область, Луцьк",84,2019-09-04,1508,"Заробітна плата, премії","Заробітна плата, лікарняні, вагітності, відрядження, компенсації",361104,Центральний офіс,37279703,Україна,"заробітна плата за липень, серпень",26009580176,state,8904.58,Андрейчук Наталія Василівна,,фізична особа
РПЛ,"Херсонська область, Херсон, вулиця Стрітенська, 7",79,2019-09-04,1519,"Оренда будинків і приміщень та експлуатаційні витрати (прибирання, страхування орендованих будинків, охорона, сигналізація, ремонт, вивіз сміття, тощо)",Оренда нерухомості,358671,Центральний офіс,37279703,Україна,Відрахування із заробіт.плати за 08 Іванова Романа Анатолійовича,26009580176,state,2320.00,ВДВС Корабельного РУЮ м. Херсон,34906677,юридична особа
РПЛ,"Київ, вулиця Миколи Лєскова, 9",70,2019-08-30,bn,Банківські послуги,Інші витрати,362307,Центральний офіс,37279703,Україна,Комісія за вих. Перекази в національній валюті (Клієнт-Банк),26009580176,state,26.00,"АТ ""Райффайзен банк Аваль""",14305909,юридична особа
РПЛ,"Київ, вулиця Миколи Лєскова, 9",70,2019-08-30,bn,Банківські послуги,Інші витрати,362288,Центральний офіс,37279703,Україна,Комісія за ведення поточних рахунків клієнта,26006580179,current,42.00,"АТ ""Райффайзен банк Аваль""",14305909,юридична особа
РПЛ,"Київ, вулиця Миколи Лєскова, 9",70,2019-08-30,bn,Банківські послуги,Інші витрати,362287,Центральний офіс,37279703,Україна,Комісія за ведення поточних рахунків клієнта,26006580179,current,250.00,"АТ ""Райффайзен банк Аваль""",14305909,юридична особа
РПЛ,"Чернігівська область, Сновський район, Сновськ, вулиця Декабристів, 11",62,2019-08-29,1507,Сплата ЄСВ,Податкові платежі,361830,Центральний офіс,37279703,Україна,За папір А4,26009580176,state,220.00,Анищенко Т В,2488913769,фізична особа
РПЛ,"Київ, вулиця Миколи Лєскова, 9",70,2019-08-28,1506,Банківські послуги,Інші витрати,362286,Центральний офіс,37279703,Україна,Комсія банку за зарахування коштів на СКР працівників,26006580179,current,38.96,"АТ ""Райффайзен банк Аваль""",14305909,юридична особа
РПЛ,"Київ, вулиця Шолуденка, 33/19",62,2019-08-28,1503,Сплата ЄСВ,Податкові платежі,361816,Центральний офіс,37279703,Україна,Єдиний соціальний внесок нарахований на дох.громадян-заробітна плата за серпень,26006580179,current,5325.00,ГУ ДФС у м. Києві,39439980,юридична особа
РПЛ,"Київ, вулиця Леоніда Первомайського, 9А",63,2019-08-28,1504,Податок на доходи,Податкові платежі,361695,Центральний офіс,37279703,Україна,Податок на доходи фізичних осіб-заробітна плата за серпень,26006580179,current,4357.00,УДКСУ у Печерському районі м. Києва,38004897,юридична особа
РПЛ,"Київська обл., Броварський район, Зазим'є",84,2019-08-28,1505,"Заробітна плата, премії","Заробітна плата, лікарняні, вагітності, відрядження, компенсації",360772,Центральний офіс,37279703,Україна,Заробітна плата за серпень,26006580179,current,11983.11,Бадюл Анастасія Анатоліївна,,фізична особа
РПЛ,"Тернопільська область, Тернопіль",84,2019-08-28,1505,"Заробітна плата, премії","Заробітна плата, лікарняні, вагітності, відрядження, компенсації",360771,Центральний офіс,37279703,Україна,Заробітна плата за серпень,26006580179,current,7498.90,Ковальчук Віталія Валеріївна,,фізична особа
РПЛ,"Київ, вулиця Миколи Лєскова, 9",70,2019-08-27,1501,Банківські послуги,Інші витрати,362285,Центральний офіс,37279703,Україна,Комсія банку за зарахування коштів на СКР працівників,26006580179,current,24.72,"АТ ""Райффайзен банк Аваль""",14305909,юридична особа
РПЛ,"Київ, вулиця Леоніда Первомайського, 9А",61,2019-08-27,1500,Військовий збір,Податкові платежі,361933,Центральний офіс,37279703,Україна,Військовий збір нарахований на доходи громадян-заробітна плата за серпень,26006580179,current,364.00,УДКСУ у Шевченківському районі м. Києва,37995466,юридична особа
РПЛ,"Київ, вулиця Леоніда Первомайського, 9А",61,2019-08-27,1499,Військовий збір,Податкові платежі,361932,Центральний офіс,37279703,Україна,Військовий збір нарахований на доходи громадян-заробітна плата за серпень,26006580179,current,231.00,УДКСУ у Шевченківському районі м. Києва,37995466,юридична особа
РПЛ,"Київ, вулиця Леоніда Первомайського, 9А",63,2019-08-27,1497,Податок на доходи,Податкові платежі,361694,Центральний офіс,37279703,Україна,Податок на доходи фізичних осіб-заробітна плата за серпень,26006580179,current,2764.00,УДКСУ у Печерському районі м. Києва,38004897,юридична особа
РПЛ,"Сумська область, Сумський район, Суми",84,2019-08-27,1500,"Заробітна плата, премії","Заробітна плата, лікарняні, вагітності, відрядження, компенсації",360770,Центральний офіс,37279703,Україна,Заробітна плата за серпень,26006580179,current,12360.74,Скляров Олександр Павлович,,фізична особа
РПЛ,"Київ, вулиця Шолуденка, 33/19",62,2019-08-27,1498,Сплата ЄСВ,Податкові платежі,358819,Центральний офіс,37279703,Україна,Єдиний соціальний внесок нарахований на дох.громадян-заробітна плата за серпень,26006580179,current,3379.00,ГУ ДФС у м. Києві,39439980,юридична особа
РПЛ,"Івано-Франківська область, Івано-Франківськ, вулиця Галицька, 130",62,2019-08-23,1489,Сплата ЄСВ,Податкові платежі,361829,Центральний офіс,37279703,Україна,Орендна плата за липень,26009580176,state,1500.00,"ПП ""Фармацевтична компанія ""Здорова родина",34078368,юридична особа
РПЛ,"Чернівецька область, Глибоцький район, Молодія, вулиця Головна, 72",79,2019-08-23,1496,"Оренда будинків і приміщень та експлуатаційні витрати (прибирання, страхування орендованих будинків, охорона, сигналізація, ремонт, вивіз сміття, тощо)",Оренда нерухомості,358670,Центральний офіс,37279703,Україна,Відшкодування витрат за спожиту електроенергію у лютому,26009580176,state,99.49,Центральна районна комунальна аптека №22,01980688,юридична особа
РПЛ,"Чернівецька область, Глибоцький район, Молодія, вулиця Головна, 72",79,2019-08-23,1495,"Оренда будинків і приміщень та експлуатаційні витрати (прибирання, страхування орендованих будинків, охорона, сигналізація, ремонт, вивіз сміття, тощо)",Оренда нерухомості,358669,Центральний офіс,37279703,Україна,Відшкодування витрат за спожиту електроенергію у лютому,26009580176,state,541.32,Центральна районна комунальна аптека №22,01980688,юридична особа
РПЛ,"Чернівецька область, Глибоцький район, Молодія, вулиця Головна, 72",79,2019-08-23,1494,"Оренда будинків і приміщень та експлуатаційні витрати (прибирання, страхування орендованих будинків, охорона, сигналізація, ремонт, вивіз сміття, тощо)",Оренда нерухомості,358668,Центральний офіс,37279703,Україна,Оренда приміщення за серпень,26009580176,state,207.74,Центральна районна комунальна аптека №22,01980688,юридична особа
РПЛ,"Чернівецька область, Глибоцький район, Молодія, вулиця Головна, 72",79,2019-08-23,1493,"Оренда будинків і приміщень та експлуатаційні витрати (прибирання, страхування орендованих будинків, охорона, сигналізація, ремонт, вивіз сміття, тощо)",Оренда нерухомості,358667,Центральний офіс,37279703,Україна,Оренда приміщення за липень,26009580176,state,208.58,Центральна районна комунальна аптека №22,01980688,юридична особа
РПЛ,"Чернівецька область, Глибоцький район, Молодія, вулиця Головна, 72",79,2019-08-23,1492,"Оренда будинків і приміщень та експлуатаційні витрати (прибирання, страхування орендованих будинків, охорона, сигналізація, ремонт, вивіз сміття, тощо)",Оренда нерухомості,358666,Центральний офіс,37279703,Україна,Оренда приміщення за липень,26009580176,state,208.99,Центральна районна комунальна аптека №22,01980688,юридична особа
РПЛ,"Чернівецька область, Глибоцький район, Молодія, вулиця Головна, 72",79,2019-08-23,1491,"Оренда будинків і приміщень та експлуатаційні витрати (прибирання, страхування орендованих будинків, охорона, сигналізація, ремонт, вивіз сміття, тощо)",Оренда нерухомості,358665,Центральний офіс,37279703,Україна,Оренда приміщення за квітень,26009580176,state,206.52,Центральна районна комунальна аптека №22,01980688,юридична особа
РПЛ,"Чернівецька область, Глибоцький район, Молодія, вулиця Головна, 72",79,2019-08-23,1490,"Оренда будинків і приміщень та експлуатаційні витрати (прибирання, страхування орендованих будинків, охорона, сигналізація, ремонт, вивіз сміття, тощо)",Оренда нерухомості,358664,Центральний офіс,37279703,Україна,Оренда приміщення за березень,26009580176,state,204.67,Центральна районна комунальна аптека №22,01980688,юридична особа
РПЛ,"Київ, вулиця Зодчих, 70, 66",72,2019-08-21,1487,"Придбання, ремонт офісної техніки та програмного забезпечення (Бухгалтерські програми, Ліга.закон, домени)",Придбання офісної техніки та програмного забезпечення,358818,Центральний офіс,37279703,Україна,Надання в строкове платне користування Віртуальної інфраструктури у режимі гіпервізора за серпень,26006580179,current,9653.62,Мельник Володимир Миколайович,2915401614,фізична особа
РПЛ,"Київ, вулиця Зодчих, 70, 66",77,2019-08-21,1486,"Оренда, ремонт та обслуговування автомобілів","Оренда, ремонт та обслуговування автомобілів",358708,Центральний офіс,37279703,Україна,За надання в строкове платне користування Віртуальної інфраструктури за серпень,26009580176,state,1232.26,Мельник Володимир Миколайович,2915401614,фізична особа
РПЛ,"Івано-Франківська область, Івано-Франківськ, вулиця Галицька, 130",77,2019-08-21,1485,"Оренда, ремонт та обслуговування автомобілів","Оренда, ремонт та обслуговування автомобілів",358707,Центральний офіс,37279703,Україна,Орендна плата за серпень,26009580176,state,1500.00,"ПП ""Фармацевтична компанія ""Здорова родина",34078368,юридична особа
РПЛ,"Івано-Франківська область, Івано-Франківськ, вулиця Галицька, 130",79,2019-08-21,1484,"Оренда будинків і приміщень та експлуатаційні витрати (прибирання, страхування орендованих будинків, охорона, сигналізація, ремонт, вивіз сміття, тощо)",Оренда нерухомості,358662,Центральний офіс,37279703,Україна,Відшкодування витрат за комунальні послуги у липні 2019,26009580176,state,27.75,"ПП ""Фармацевтична компанія ""Здорова родина",34078368,юридична особа
РПЛ,"Київ, вулиця Миколи Лєскова, 9",70,2019-08-20,1483,Банківські послуги,Інші витрати,362284,Центральний офіс,37279703,Україна,Комсія банку за зарахування коштів на СКР працівників,26006580179,current,18.10,"АТ ""Райффайзен банк Аваль""",14305909,юридична особа
РПЛ,"Київ, вулиця Леоніда Первомайського, 9А",61,2019-08-20,1479,Військовий збір,Податкові платежі,361931,Центральний офіс,37279703,Україна,Військовий збір нарахований на доходи громадян-відпускні за серпень,26006580179,current,169.00,УДКСУ у Шевченківському районі м. Києва,37995466,юридична особа
РПЛ,"Київ, вулиця Леоніда Первомайського, 9А",63,2019-08-20,1481,Податок на доходи,Податкові платежі,361693,Центральний офіс,37279703,Україна,Податок на доходи фізичних осіб-відпускні за серпень,26006580179,current,2023.00,УДКСУ у Печерському районі м. Києва,38004897,юридична особа
РПЛ,"Київська обл., Броварський район, Зазим'є",83,2019-08-20,1482,"Виплати працівникам (не зарплата): лікарняні, вагітності, відрядження, компенсації ","Заробітна плата, лікарняні, вагітності, відрядження, компенсації",361597,Центральний офіс,37279703,Україна,Відпускні за серпень,26006580179,current,9050.64,Бадюл Андрій Костянтинович,,фізична особа
РПЛ,"Київ, вулиця Шолуденка, 33/19",62,2019-08-20,1480,Сплата ЄСВ,Податкові платежі,358817,Центральний офіс,37279703,Україна,Єдиний соціальний внесок нарахований на дох.громадян-відпускні за серпень,26006580179,current,2475.00,ГУ ДФС у м. Києві,39439980,юридична особа
РПЛ,"Чернігівська область, Чернігів",84,2019-08-16,1598,"Заробітна плата, премії","Заробітна плата, лікарняні, вагітності, відрядження, компенсації",361404,Центральний офіс,37279703,Україна,"Заробітна плата за вересень, компен.за невик.відпустку",26009580176,state,8880.31,Коверзнева Марина Віталіївна,,фізична особа
РПЛ,"Київ, вулиця Миколи Лєскова, 9",70,2019-08-07,bn,Банківські послуги,Інші витрати,362283,Центральний офіс,37279703,Україна,Комісія за ведення поточних рахунків клієнта,26006580179,current,50.00,"АТ ""Райффайзен банк Аваль""",14305909,юридична особа
РПЛ,"Київ, вулиця Миколи Лєскова, 9",70,2019-08-02,1472,Банківські послуги,Інші витрати,362282,Центральний офіс,37279703,Україна,Комсія банку за зарахування коштів на СКР працівників,26006580179,current,13.72,"АТ ""Райффайзен банк Аваль""",14305909,юридична особа
РПЛ,"Київ, вулиця Леоніда Первомайського, 9А",61,2019-08-02,1469,Військовий збір,Податкові платежі,361930,Центральний офіс,37279703,Україна,Військовий збір нарахований на доходи громадян-відпускні за серпень,26006580179,current,128.00,УДКСУ у Шевченківському районі м. Києва,37995466,юридична особа
РПЛ,"Київ, вулиця Леоніда Первомайського, 9А",63,2019-08-02,1470,Податок на доходи,Податкові платежі,361692,Центральний офіс,37279703,Україна,Податок на доходи фізичних осіб-відпускні за серпень,26006580179,current,1535.00,УДКСУ у Печерському районі м. Києва,38004897,юридична особа
РПЛ,"Чернівецька область, Чернівці",83,2019-08-02,1471,"Виплати працівникам (не зарплата): лікарняні, вагітності, відрядження, компенсації ","Заробітна плата, лікарняні, вагітності, відрядження, компенсації",361596,Центральний офіс,37279703,Україна,Відпускні за серпень,26006580179,current,6862.00,Юхимець Олександр Олександрович,,фізична особа
РПЛ,"Київ, вулиця Шолуденка, 33/19",62,2019-08-02,1468,Сплата ЄСВ,Податкові платежі,358816,Центральний офіс,37279703,Україна,Єдиний соціальний внесок нарахований на дох.громадян-відпускні за серпень,26006580179,current,1876.00,ГУ ДФС у м. Києві,39439980,юридична особа
